{"text_format":"1","workbook":"xlsx","n_sheets":5,"sheets":["Справочники","Сотрудники на открытие счетов","Информация","dictionary_city","dictionary_branches_1"],"not_rendered":{"charts":0,"images":0,"macros":1,"external_links":1,"defined_names":11,"comments":0,"pivot_tables":0},"unopened":[],"bounds":{"document_bytes":16777216,"sheet_cells":100000,"rows_first":2000,"rows_last":500,"rows_between":2000,"halvings":0,"cell_chars":16384,"cell_head_chars":4096},"cells_cut":0,"cells_raw":0,"read":"whole","date_system":"1900"}

{"sheet":"Справочники","index":0,"n_rows":597,"n_cols":16,"rows_kept":597,"cut":false,"hidden":false,"merged":[[5,0,5,1],[14,0,14,1],[0,12,0,13],[0,14,0,15],[0,6,0,7],[0,9,0,10],[0,0,0,1],[0,3,0,4]]}
["Тип Документа (удостоверяющий личность)",null,null,"Код страны гражданства",null,null,"Код страны регистраци адреса",null,null,"Код региона (для адреса на территории РФ)",null,null,"Мнемоника "]
["Наименование","Код",null,"Наименование","Код",null,"Наименование","Код",null,"Наименование","Код",null,"Код","Наименование","Адрес","Город"]
["Иностранный паспорт","10",null,"АБХАЗИЯ(ГРУЗИЯ)","AB",null,"АБХАЗИЯ(ГРУЗИЯ)","AB",null,"РЕСПУБЛИКА АДЫГЕЯ","01",null,"0739","ДО \"Абакан-Черногорский парк\" в г.Абакан АО \"АЛЬФА-БАНК\"","655017, г. Абакан, ул. Щетинкина, д. 63","Абакан"]
[null,null,null,"АВСТРАЛИЯ","AU",null,"АВСТРАЛИЯ","AU",null,"РЕСПУБЛИКА БАШКОРТОСТАН","02",null,"1821","ДО \"Азов-Центральный\" в г. Азов АО\"АЛЬФА-БАНК\"","346787, г. Азов, ул. Мира, д. 45/64","Азов"]
[null,null,null,"АВСТРИЯ","AT",null,"АВСТРИЯ","AT",null,"РЕСПУБЛИКА БУРЯТИЯ","03",null,"1791","ДО \"Аксай-проспект Ленина\" в г. Аксай АО \"АЛЬФА-БАНК\"","346720, г. Аксай, пр-кт Ленина, д. 26","Аксай"]
["Код ДУП (для нерезидентов, Документ, Удостоверяющий право Пребывания)",null,null,"АЗЕРБАЙДЖАН","AZ",null,"АЗЕРБАЙДЖАН","AZ",null,"РЕСПУБЛИКА АЛТАЙ","04",null,"8107","ДО \"Александров-улица Ленина\" в г.Александров АО \"АЛЬФА-БАНК\"","601650, г. Александров, ул. Ленина, д. 22","Александров"]
["Название документа","Код",null,"АЛБАНИЯ","AL",null,"АЛБАНИЯ","AL",null,"РЕСПУБЛИКА ДАГЕСТАН","05",null,"8078","ДО \"Алексеевка-улица Мостовая\" в г.Алексеевка АО \"АЛЬФА-БАНК\"","309857, г. Алексеевка, ул. Мостовая, зд. 90","Алексеевка"]
["Вид на жительство","01",null,"АЛЖИР","DZ",null,"АЛЖИР","DZ",null,"ИНГУШСКАЯ РЕСПУБЛИКА","06",null,"1666","ДО \"Алексин-улица Мира\" в г. Алексин АО \"АЛЬФА-БАНК\"","301361, г. Алексин, ул. Мира, 20","Алексин"]
["Разрешение на временное проживание","02",null,"АНГИЛЬЯ","AI",null,"АНГИЛЬЯ","AI",null,"КАБАРДИНО - БАЛКАРСКАЯ РЕСПУБЛИКА","07",null,"0953","ДО \"Альметьевск-улица Ленина\" в г.Альметьевск АО \"АЛЬФА-БАНК\"","423452, г. Альметьевск, ул. Ленина, 29","Альметьевск"]
["Виза","03",null,"АНГОЛА","AO",null,"АНГОЛА","AO",null,"РЕСПУБЛИКА КАЛМЫКИЯ","08",null,"1186","ДО \"Анапа-улица Крымская\" в г. Анапа АО \"АЛЬФА-БАНК\"","353440, г. Анапа, ул. Крымская, д. 172","Анапа"]
["Участник ЭПР","04",null,"АНДОРРА","AD",null,"АНДОРРА","AD",null,"КАРАЧАЕВО - ЧЕРКЕССКАЯ РЕСПУБЛИКА","09",null,"0886","ДО \"Ангарск-Ленинградский проспект\"в г. Ангарск АО \"АЛЬФА-БАНК\"","665824, г. Ангарск, квартал 212, д. 15","Ангарск"]
["Уведомление о прибытии","05",null,"АНТАРКТИДА","AQ",null,"АНТАРКТИДА","AQ",null,"РЕСПУБЛИКА КАРЕЛИЯ","10",null,"1656","ДО \"Анжеро-Судженск-ул. Ленина\" в г. Анжеро-Судженск АО \"АЛЬФА-БАНК\"","652470, г. Анжеро-Судженск, ул. Ленина, д. 22","Анжеро-Судженск"]
["Патент","14",null,"АНТИГУАИБАРБУДА","AG",null,"АНТИГУАИБАРБУДА","AG",null,"РЕСПУБЛИКА КОМИ","11",null,"1811","ДО \"Апатиты-улица Ленина\" в г. Апатиты АО \"АЛЬФА-БАНК\"","184209, г. Апатиты, ул. Ленина, д. 4","Апатиты"]
["Разрешение на работу","15",null,"АНТИЛЬСКИЕОСТРОВА","AN",null,"АНТИЛЬСКИЕОСТРОВА","AN",null,"РЕСПУБЛИКА МАРИЙ ЭЛ","12",null,"1817","ДО \"Арзамас-проспект Ленина\" в г. Арзамас АО \"АЛЬФА-БАНК\"","607228, г. Арзамас, пр-кт Ленина, д. 198","Арзамас"]
["Тип МК (для нерезидентов)",null,null,"АОМЫНЬ(МАКАО)","MO",null,"АОМЫНЬ(МАКАО)","MO",null,"РЕСПУБЛИКА МОРДОВИЯ","13",null,"1151","ДО \"Армавир-улица Ленина\" в г. Армавир АО \"АЛЬФА-БАНК\"","352900, г. Армавир, ул. Ленина, д. 101а","Армавир"]
["Наименование","Код",null,"АРГЕНТИНА","AR",null,"АРГЕНТИНА","AR",null,"РЕСПУБЛИКА САХА (ЯКУТИЯ)","14",null,"1812","ДО \"Арсеньев-улица Калининская\" в г. Арсеньев АО \"АЛЬФА-БАНК\"","692342, г. Арсеньев, ул. Калининская, д. 24","Арсеньев"]
["Миграционная карта","01",null,"АРМЕНИЯ","AM",null,"АРМЕНИЯ","AM",null,"РЕСПУБЛИКА СЕВЕРНАЯ ОСЕТИЯ","15",null,"8166","ДО \"Арск-площадь Советская\" в г. Арск АО \"АЛЬФА-БАНК\"","422000, г. Арск, пл. Советская, д. 23","Арск"]
[null,null,null,"АРУБА","AW",null,"АРУБА","AW",null,"РЕСПУБЛИКА ТАТАРСТАН (ТАТАРСТАН)","16",null,"1700","ДО \"Артем-улица Фрунзе\" в г. АртемАО \"АЛЬФА-БАНК\"","692760, г. Артем,ул. Фрунзе, д. 65","Артем"]
[null,null,null,"АФГАНИСТАН","AF",null,"АФГАНИСТАН","AF",null,"РЕСПУБЛИКА ТЫВА","17",null,"0876","ДО \"Архангельск-Воскресенский\" в г.Архангельск АО \"АЛЬФА-БАНК\"","163060, г. Архангельск, ул.Воскресенская, д. 108","Архангельск"]
[null,null,null,"БАГАМСКИЕОСТРОВА","BS",null,"БАГАМСКИЕОСТРОВА","BS",null,"УДМУРТСКАЯ РЕСПУБЛИКА","18",null,"1058","ДО \"Архангельск-Поморский\" в г. Архангельск АО \"АЛЬФА-БАНК\"","163000, г. Архангельск, ул. Воскресенская, д. 6","Архангельск"]
[null,null,null,"БАНГЛАДЕШ","BD",null,"БАНГЛАДЕШ","BD",null,"РЕСПУБЛИКА ХАКАСИЯ","19",null,"1617","ДО \"Асбест-проспект Ленина\" в г. Асбест АО \"АЛЬФА-БАНК\"","624272, г. Асбест, пр-кт имени В.И. Ленина, д. 15","Асбест"]
[null,null,null,"БАРБАДОС","BB",null,"БАРБАДОС","BB",null,"ЧЕЧЕНСКАЯ РЕСПУБЛИКА","20",null,"1534","ДО \"Астрахань-Каспийский\" в г. Астрахань АО \"АЛЬФА-БАНК\"","414000, г. Астрахань, ул. Кирова, д. 12/2","Астрахань"]
[null,null,null,"БАХРЕЙН","BH",null,"БАХРЕЙН","BH",null,"ЧУВАШСКАЯ РЕСПУБ. - ЧАВАШ РЕСПУБ.","21",null,"8158","ДО \"Астрахань-Вокзальная площадь\" вг. Астрахань АО \"АЛЬФА-БАНК\"","414040, г. Астрахань, пл. Вокзальная, стр. 20б","Астрахань"]
[null,null,null,"БЕЛИЗ","BZ",null,"БЕЛИЗ","BZ",null,"АЛТАЙСКИЙ КРАЙ","22",null,"0686","ДО \"Ачинск-Чулым\" в г. Ачинск АО \"АЛЬФА-БАНК\"","662153, г. Ачинск, ул. 28 квартал, д. 5,пом.30","Ачинск"]
[null,null,null,"БЕЛОРУССИЯ","BY",null,"БЕЛОРУССИЯ","BY",null,"КРАСНОДАРСКИЙ КРАЙ","23",null,"1539","ДО \"Балаково-улица Трнавская\" в г.Балаково АО \"АЛЬФА-БАНК\"","413860, г. Балаково, ул. Трнавская, д. 23","Балаково"]
[null,null,null,"БЕЛЬГИЯ","BE",null,"БЕЛЬГИЯ","BE",null,"КРАСНОЯРСКИЙ КРАЙ","24",null,"0620","ДО \"БАЛАШИХА\" в г. Балашиха АО \"АЛЬФА-БАНК\"","143912, г. Балашиха, ш. Энтузиастов, д.7/1","БАЛАШИХА"]
[null,null,null,"БЕНИН","BJ",null,"БЕНИН","BJ",null,"ПРИМОРСКИЙ КРАЙ","25",null,"1181","ДО \"БАЛАШИХА-ЖЕЛЕЗНОДОРОЖНЫЙ\" в г.Балашиха АО \"АЛЬФА-БАНК\"","143980, г. Балашиха, ул. Пролетарская, д. 2А","БАЛАШИХА"]
[null,null,null,"БЕРМУДСКИЕОСТРОВА(БРИТАНИЯ)","BM",null,"БЕРМУДСКИЕОСТРОВА(БРИТАНИЯ)","BM",null,"СТАВРОПОЛЬСКИЙ КРАЙ","26",null,"1608","ДО \"Балашов-улица Ленина\" в г. Балашов АО \"АЛЬФА-БАНК\"","412309, г. Балашов, ул. Ленина, д. 21Б","Балашов"]
[null,null,null,"БОЛГАРИЯ","BG",null,"БОЛГАРИЯ","BG",null,"ХАБАРОВСКИЙ КРАЙ","27",null,"0813","ДО \"Барнаул-Алтай\" в г. Барнаул АО\"АЛЬФА-БАНК\"","656049, г. Барнаул,пр-кт Красноармейский, д. 58 \"Б\"","Барнаул"]
[null,null,null,"БОЛИВИЯ","BO",null,"БОЛИВИЯ","BO",null,"АМУРСКАЯ ОБЛАСТЬ","28",null,"0859","ДО \"Барнаул-площадь Победы\" в г. Барнаул АО \"АЛЬФА-БАНК\"","656015, г. Барнаул, пр-т Социалистический, д. 130","Барнаул"]
[null,null,null,"БОСНИЯИГЕРЦЕГОВИНА","BA",null,"БОСНИЯИГЕРЦЕГОВИНА","BA",null,"АРХАНГЕЛЬСКАЯ ОБЛАСТЬ","29",null,"0896","ДО \"Барнаул-площадь Советов\" в г. Барнаул АО \"АЛЬФА-БАНК\"","656038, г. Барнаул, пр-т Ленина, д. 58","Барнаул"]
[null,null,null,"БОТСВАНА","BW",null,"БОТСВАНА","BW",null,"АСТРАХАНСКАЯ ОБЛАСТЬ","30",null,"1120","ДО \"Барнаул-Огни\" в г. Барнаул АО \"АЛЬФА-БАНК\"","656039, г. Барнаул,ул. Антона Петрова, д. 219 Б","Барнаул"]
[null,null,null,"БРАЗИЛИЯ","BR",null,"БРАЗИЛИЯ","BR",null,"БЕЛГОРОДСКАЯ ОБЛАСТЬ","31",null,"1155","ДО \"Барнаул-Лето\" в г. Барнаул АО \"АЛЬФА-БАНК\"","656057, г. Барнаул,тракт Павловский, д. 251А","Барнаул"]
[null,null,null,"БРИТАНСКАЯТЕР-ЯВИНДИЙСКОМОКЕАНЕ","IO",null,"БРИТАНСКАЯТЕР-ЯВИНДИЙСКОМОКЕАНЕ","IO",null,"БРЯНСКАЯ ОБЛАСТЬ","32",null,"1173","ДО \"Батайск-улица Энгельса\" в г. Батайск АО \"АЛЬФА-БАНК\"","346880, г. Батайск, ул. Энгельса, д. 182","Батайск"]
[null,null,null,"БРУНЕЙ","BN",null,"БРУНЕЙ","BN",null,"ВЛАДИМИРСКАЯ ОБЛАСТЬ","33",null,"0957","ДО \"Белгород-улица Попова\" в г. Белгород АО \"АЛЬФА-БАНК\"","308009, г. Белгород, ул. Попова, д. 12","Белгород"]
[null,null,null,"БУВЕ","BV",null,"БУВЕ","BV",null,"ВОЛГОГРАДСКАЯ ОБЛАСТЬ","34",null,"1061","ДО \"Белгород-проспект Ватутина\" в г. Белгород АО \"АЛЬФА-БАНК\"","308000, г. Белгород, пр-кт Ватутина, д. 9б","Белгород"]
[null,null,null,"БУРКИНА-ФАСО","BF",null,"БУРКИНА-ФАСО","BF",null,"ВОЛОГОДСКАЯ ОБЛАСТЬ","35",null,"1123","ДО \"Белгород-улица Щорса\" в г. Белгород АО \"АЛЬФА-БАНК\"","308027, г. Белгород, ул. Щорса, 8","Белгород"]
[null,null,null,"БУРУНДИ","BI",null,"БУРУНДИ","BI",null,"ВОРОНЕЖСКАЯ ОБЛАСТЬ","36",null,"8117","ДО \"Белгород-Рио\" в г. Белгород АО\"АЛЬФА-БАНК\"","308010, г. Белгород, пр-кт Б. Хмельницкого, д. 164","Белгород"]
[null,null,null,"БУТАН","BT",null,"БУТАН","BT",null,"ИВАНОВСКАЯ ОБЛАСТЬ","37",null,"1716","ДО \"Белебей-ул. Красная\" в г. Белебей АО \"АЛЬФА-БАНК\"","452005, г. Белебей, ул. Красная, д. 134","Белебей"]
[null,null,null,"ВАНУАТУ","VU",null,"ВАНУАТУ","VU",null,"ИРКУТСКАЯ ОБЛАСТЬ","38",null,"1734","ДО \"Белово-улица Юбилейная\" в г. Белово АО \"АЛЬФА-БАНК\"","652600, г. Белово, ул. Юбилейная, д. 8","Белово"]
[null,null,null,"ВАТИКАН","VA",null,"ВАТИКАН","VA",null,"КАЛИНИНГРАДСКАЯ ОБЛАСТЬ","39",null,"1744","ДО \"Белогорск-улица Кирова\" в г. Белогорск АО \"АЛЬФА-БАНК\"","676805, г. Белогорск, ул. Кирова, д. 119","Белогорск"]
[null,null,null,"ВЕЛИКОБРИТАНИЯ","GB",null,"ВЕЛИКОБРИТАНИЯ","GB",null,"КАЛУЖСКАЯ ОБЛАСТЬ","40",null,"1745","ДО \"Белорецк-улица Карла Маркса\" вг. Белорецк АО \"АЛЬФА-БАНК\"","453509, г. Белорецк, ул. Карла Маркса, д. 75","Белорецк"]
[null,null,null,"ВЕНГРИЯ","HU",null,"ВЕНГРИЯ","HU",null,"КАМЧАТСКАЯ ОБЛАСТЬ","41",null,"1615","ДО \"Белореченск-улица Ленина\" в г.Белореченск АО \"АЛЬФА-БАНК\"","352630, г. Белореченск, ул. Ленина, д. 145","Белореченск"]
[null,null,null,"ВЕНЕСУЭЛА","VE",null,"ВЕНЕСУЭЛА","VE",null,"КЕМЕРОВСКАЯ ОБЛАСТЬ","42",null,"0722","ДО \"Бердск-Парковый\" в г. Бердск АО\"АЛЬФА-БАНК\"","633010, г. Бердск, ул. Ленина, 41А","Бердск"]
[null,null,null,"ВИРГИНСКИЕОСТРОВА(БРИТАНИЯ)","VG",null,"ВИРГИНСКИЕОСТРОВА(БРИТАНИЯ)","VG",null,"КИРОВСКАЯ ОБЛАСТЬ","43",null,"1170","ДО \"Березники-ул. Пятилетки\" в г. Березники АО \"АЛЬФА-БАНК\"","618419, г. Березники, ул. Пятилетки, д. 50","Березники"]
[null,null,null,"ВИРГИНСКИЕОСТРОВА(США)","VI",null,"ВИРГИНСКИЕОСТРОВА(США)","VI",null,"КОСТРОМСКАЯ ОБЛАСТЬ","44",null,"1713","ДО \"Березовский-улица Восточная\" вг. Березовский АО \"АЛЬФА-БАНК\"","623700, г. Березовский, ул. Восточная, д. 11а","Березовский"]
[null,null,null,"ВОСТОЧНОЕСАМОА(США)","AS",null,"ВОСТОЧНОЕСАМОА(США)","AS",null,"КУРГАНСКАЯ ОБЛАСТЬ","45",null,"0777","ДО \"Бийск-улица Васильева\" в г. Бийск АО \"АЛЬФА-БАНК\"","659305, г. Бийск, ул. имени Героя Советского Союза Васильева, зд. 26","Бийск"]
[null,null,null,"ВОСТОЧНЫЙТИМОР","TP",null,"ВОСТОЧНЫЙТИМОР","TP",null,"КУРСКАЯ ОБЛАСТЬ","46",null,"1606","ДО \"Биробиджан-Сквер Победы\" в г. Биробиджан АО \"АЛЬФА-БАНК\"","679016, г. Биробиджан, ул. Шолом-Алейхема, зд. 8","Биробиджан"]
[null,null,null,"ВЬЕТНАМ","VN",null,"ВЬЕТНАМ","VN",null,"ЛЕНИНГРАДСКАЯ ОБЛАСТЬ","47",null,"1178","ДО \"Благовещенск-Островского\" в г.Благовещенск АО \"АЛЬФА-БАНК\"","675004, г. Благовещенск, ул. Островского, д. 12","Благовещенск"]
[null,null,null,"ГАБОН","GA",null,"ГАБОН","GA",null,"ЛИПЕЦКАЯ ОБЛАСТЬ","48",null,"1671","ДО \"Большой Камень-Звезда\" в г. Большой Камень АО \"АЛЬФА-БАНК\"","692806, г. БольшойКамень, ул. Карла Маркса, д. 13","Большой Камень"]
[null,null,null,"ГАИТИ","HT",null,"ГАИТИ","HT",null,"МАГАДАНСКАЯ ОБЛАСТЬ","49",null,"1631","ДО \"Бор-улица Ленина\" в г. Бор АО \"АЛЬФА-БАНК\"","606440, г. Бор, ул. Ленина, д. 129","Бор"]
[null,null,null,"ГАЙАНА","GY",null,"ГАЙАНА","GY",null,"МОСКОВСКАЯ ОБЛАСТЬ","50",null,"1680","ДО \"Борисоглебск-улица Свободы\" в г. Борисоглебск АО \"АЛЬФА-БАНК\"","397160, г. Борисоглебск, ул. Свободы, зд. 213/ул.Советская, д. 8","Борисоглебск"]
[null,null,null,"ГАМБИЯ","GM",null,"ГАМБИЯ","GM",null,"МУРМАНСКАЯ ОБЛАСТЬ","51",null,"1652","ДО \"Боровичи-улица Подбельского\" вг. Боровичи АО \"АЛЬФА-БАНК\"","174411, г. Боровичи, ул. Подбельского, д. 36","Боровичи"]
[null,null,null,"ГАНА","GH",null,"ГАНА","GH",null,"НИЖЕГОРОДСКАЯ ОБЛАСТЬ","52",null,"1831","ДО \"Братск-улица Кирова\" в г. Братск АО \"АЛЬФА-БАНК\"","665708, г. Братск, ул. Кирова, д. 18","Братск"]
[null,null,null,"ГВАДЕЛУПА","GP",null,"ГВАДЕЛУПА","GP",null,"НОВГОРОДСКАЯ ОБЛАСТЬ","53",null,"1154","ДО \"Брянск-улица Красноармейская\" вг. Брянск АО \"АЛЬФА-БАНК\"","241050, г. Брянск, ул. Красноармейская, д. 41","Брянск"]
[null,null,null,"ГВАТЕМАЛА","GT",null,"ГВАТЕМАЛА","GT",null,"НОВОСИБИРСКАЯ ОБЛАСТЬ","54",null,"8178","ДО \"Брянск-Старая Бежица\" в г. Брянск АО \"АЛЬФА-БАНК\"","241035, г. Брянск, ул. Комсомольская, д. 12","Брянск"]
[null,null,null,"ГВИАНА","GF",null,"ГВИАНА","GF",null,"ОМСКАЯ ОБЛАСТЬ","55",null,"1825","ДО \"Бугульма-Дом техники\" в г. Бугульма АО \"АЛЬФА-БАНК\"","423236, г. Бугульма, ул. Газинура Гафиатуллина, д. 31","Бугульма"]
[null,null,null,"ГВИНЕЯ","GN",null,"ГВИНЕЯ","GN",null,"ОРЕНБУРГСКАЯ ОБЛАСТЬ","56",null,"1662","ДО \"Буденновск-улица Октябрьская\" вг. Буденновск АО \"АЛЬФА-БАНК\"","356800, г. Буденновск, ул. Октябрьская, д. 79","Буденновск"]
[null,null,null,"ГВИНЕЯ-БИСАУ","GW",null,"ГВИНЕЯ-БИСАУ","GW",null,"ОРЛОВСКАЯ ОБЛАСТЬ","57",null,"0958","ДО \"Бузулук-ул. Комсомольская\" в г.Бузулук АО \"АЛЬФА-БАНК\"","461040, г. Бузулук, ул. Комсомольская, зд. 81","Бузулук"]
[null,null,null,"ГЕРМАНИЯ","DE",null,"ГЕРМАНИЯ","DE",null,"ПЕНЗЕНСКАЯ ОБЛАСТЬ","58",null,"1175","ДО \"Великие Луки\" в г. Великие ЛукиАО \"АЛЬФА-БАНК\"","182113, г. Великие Луки, пр-кт Ленина, д. 39","Великие Луки"]
[null,null,null,"ГИБРАЛТАР","GI",null,"ГИБРАЛТАР","GI",null,"ПЕРМСКАЯ ОБЛАСТЬ","59",null,"1157","ДО \"Великий Новгород-Волхов\" в г. Великий Новгород АО \"АЛЬФА-БАНК\"","173001, г. Великий Новгород, ул. Большая Санкт-Петербургская, 13","Великий Новгород"]
[null,null,null,"ГОНДУРАС","HN",null,"ГОНДУРАС","HN",null,"ПСКОВСКАЯ ОБЛАСТЬ","60",null,"1194","ДО \"Верхняя Пышма-Успенский пр-кт\"в г.Верхняя Пышма АО \"АЛЬФА-БАНК\"","624090, г. Верхняя Пышма, пр-кт Успенский, д. 20","Верхняя Пышма"]
[null,null,null,"ГРЕНАДА","GD",null,"ГРЕНАДА","GD",null,"РОСТОВСКАЯ ОБЛАСТЬ","61",null,"1171","ДО \"ВИДНОЕ\" в г. Видное АО \"АЛЬФА-БАНК\"","142703, г. Видное, ул. Школьная, 23","Видное"]
[null,null,null,"ГРЕНЛАНДИЯ","GL",null,"ГРЕНЛАНДИЯ","GL",null,"РЯЗАНСКАЯ ОБЛАСТЬ","62",null,"0685","ДО \"Владивосток-Тихоокеанский\" в г.Владивосток АО \"АЛЬФА-БАНК\"","690002, г. Владивосток, пр-т Острякова, д. 5Г","Владивосток"]
[null,null,null,"ГРЕЦИЯ","GR",null,"ГРЕЦИЯ","GR",null,"САМАРСКАЯ ОБЛАСТЬ","63",null,"0893","ДО \"Владивосток-пр-кт Столетия\" в г. Владивосток АО \"АЛЬФА-БАНК\"","690048, г. Владивосток ,пр-кт 100 лет Владивостока, д. 51","Владивосток"]
[null,null,null,"ГРУЗИЯ","GE",null,"ГРУЗИЯ","GE",null,"САРАТОВСКАЯ ОБЛАСТЬ","64",null,"1128","ДО \"Владивосток-Золотой Рог\" в г. Владивосток АО \"АЛЬФА-БАНК\"","690035, г. Владивосток, ул. Харьковская, д. 8","Владивосток"]
[null,null,null,"ГУАМ","GU",null,"ГУАМ","GU",null,"САХАЛИНСКАЯ ОБЛАСТЬ","65",null,"0504","ДО \"Владивосток-Центральный\" в г. Владивосток АО \"АЛЬФА-БАНК\"","690091, г. Владивосток, ул. Светланская, д. 43","Владивосток"]
[null,null,null,"ДАНИЯ","DK",null,"ДАНИЯ","DK",null,"СВЕРДЛОВСКАЯ ОБЛАСТЬ","66",null,"1830","ДО \"Владикавказ-Центральный\" в г. Владикавказ АО \"АЛЬФА-БАНК\"","362008, г. Владикавказ, ул. Генерала Плиева, д. 10","Владикавказ"]
[null,null,null,"ДЖИБУТИ","DJ",null,"ДЖИБУТИ","DJ",null,"СМОЛЕНСКАЯ ОБЛАСТЬ","67",null,"0792","ДО \"Владимир-Золотые ворота\" в г. Владимир АО \"АЛЬФА-БАНК\"","600015, г. Владимир, ул. Ленина, д. 26, 26А","Владимир"]
[null,null,null,"ДОМИНИКА","DM",null,"ДОМИНИКА","DM",null,"ТАМБОВСКАЯ ОБЛАСТЬ","68",null,"0805","ДО \"Волгоград-Царицынский\" в г. Волгоград АО \"АЛЬФА-БАНК\"","400066, г. Волгоград, пр-кт имени В.И. Ленина, д. 2","Волгоград"]
[null,null,null,"ДОМИНИКАНСКАЯРЕСПУБЛИКА","DO",null,"ДОМИНИКАНСКАЯРЕСПУБЛИКА","DO",null,"ТВЕРСКАЯ ОБЛАСТЬ","69",null,"0824","ДО \"Волгоград-Красноармейский\" в г.Волгоград АО \"АЛЬФА-БАНК\"","400112, г. Волгоград, пр-кт им. Героев Сталинграда, д. 49","Волгоград"]
[null,null,null,"ДУБАИ(ОБЪЕДИН.АРАБСКИЕЭМИРАТЫ)","XD",null,"ДУБАИ(ОБЪЕДИН.АРАБСКИЕЭМИРАТЫ)","XD",null,"ТОМСКАЯ ОБЛАСТЬ","70",null,"0861","ДО \"Волгоград-Комсомольский\" в г. Волгоград АО \"АЛЬФА-БАНК\"","400066, г. Волгоград, ул.Комсомольская, д. 10","Волгоград"]
[null,null,null,"ДУБЛИН(ИРЛАНДИЯ)","XI",null,"ДУБЛИН(ИРЛАНДИЯ)","XI",null,"ТУЛЬСКАЯ ОБЛАСТЬ","71",null,"0864","ДО \"Волгоград-Спартановка\" в г. Волгоград АО \"АЛЬФА-БАНК\"","400121, г. Волгоград, ул. Николая Отрады, д. 6","Волгоград"]
[null,null,null,"ЕГИПЕТ","EG",null,"ЕГИПЕТ","EG",null,"ТЮМЕНСКАЯ ОБЛАСТЬ","72",null,"1121","ДО \"Волгоград-Семь Ветров\" в г. Волгоград АО \"АЛЬФА-БАНК\"","400117, г. Волгоград, ул. 8-й Воздушной Армии,д. 47а","Волгоград"]
[null,null,null,"ЗАИР","ZR",null,"ЗАИР","ZR",null,"УЛЬЯНОВСКАЯ ОБЛАСТЬ","73",null,"8143","ДО \"Волгоград-ул. Маршала Еременко\"в г. Волгоград АО \"АЛЬФА-БАНК\"","400123, г. Волгоград, ул. им. маршала Еременко,д. 124","Волгоград"]
[null,null,null,"ЗАМБИЯ","ZM",null,"ЗАМБИЯ","ZM",null,"ЧЕЛЯБИНСКАЯ ОБЛАСТЬ","74",null,"1196","ДО \"Волгодонск-пр-кт Строителей\" вг. Волгодонск АО \"АЛЬФА-БАНК\"","347382, г. Волгодонск, пр-кт Строителей, д. 21","Волгодонск"]
[null,null,null,"ЗАПАДНАЯСАХАРА","EH",null,"ЗАПАДНАЯСАХАРА","EH",null,"ЗАБАЙКАЛЬСКИЙ КРАЙ","75",null,"1702","ДО \"Волжск-улица Ленина\" в г. Волжск АО \"АЛЬФА-БАНК\"","425000, г. Волжск, ул. Ленина, д. 56б","Волжск"]
[null,null,null,"ЗАПАДНОЕСАМОА","WS",null,"ЗАПАДНОЕСАМОА","WS",null,"ЯРОСЛАВСКАЯ ОБЛАСТЬ","76",null,"0863","ДО \"Волжский-улица Мира\" в г. Волжский АО \"АЛЬФА-БАНК\"","404105, г. Волжский, ул. Мира, д. 74 А","Волжский"]
[null,null,null,"ЗИМБАБВЕ","ZW",null,"ЗИМБАБВЕ","ZW",null,"Г. МОСКВА","77",null,"1162","ДО \"Вологда-площадь Возрождения\" вг. Вологда АО \"АЛЬФА-БАНК\"","160000, г. Вологда, ул. Ленина, д. 5","Вологда"]
[null,null,null,"ИЗРАИЛЬ","IL",null,"ИЗРАИЛЬ","IL",null,"Г. САНКТ - ПЕТЕРБУРГ","78",null,"8001","ДО \"ВОЛОКОЛАМСК\" в г. Волоколамск АО \"АЛЬФА-БАНК\"","143600, г. Волоколамск, ул. Советская, д. 1/1","Волоколамск"]
[null,null,null,"ИНДИЯ","IN",null,"ИНДИЯ","IN",null,"ЕВРЕЙСКАЯ АВТОНОМНАЯ ОБЛАСТЬ","79",null,"1642","ДО \"Вольск-пл. 10-летия Октября\" вг. Вольск АО \"АЛЬФА-БАНК\"","412906, г. Вольск, пл. 10-летия Октября, д. 4/1","Вольск"]
[null,null,null,"ИНДОНЕЗИЯ","ID",null,"ИНДОНЕЗИЯ","ID",null,"КОРЯКСКИЙ АВТОНОМНЫЙ ОКРУГ","82",null,"0452","ДО \"Воронеж-улица Кольцовская\" в г.Воронеж АО \"АЛЬФА-БАНК\"","394030, г. Воронеж, ул. Кольцовская, д. 31","Воронеж"]
[null,null,null,"ИОРДАНИЯ","JO",null,"ИОРДАНИЯ","JO",null,"НЕНЕЦКИЙ АВТОНОМНЫЙ ОКРУГ","83",null,"0733","ДО \"Воронеж-улица Кирова\" в г. Воронеж АО \"АЛЬФА-БАНК\"","394006, г. Воронеж, ул. Кирова, д.11","Воронеж"]
[null,null,null,"ИРАК","IQ",null,"ИРАК","IQ",null,"ТАЙМЫР.(ДОЛГАН-НЕНЕЦК.) АВТ. ОКРУГ","84",null,"1050","ДО \"Воронеж-улица Лизюкова\" в г. Воронеж АО \"АЛЬФА-БАНК\"","394088, г. Воронеж, ул. Генерала Лизюкова, д. 50","Воронеж"]
[null,null,null,"ИРЛАНДИЯ","IE",null,"ИРЛАНДИЯ","IE",null,"ХАНТЫ - МАНСИЙСКИЙ АВТ. ОКР.","86",null,"1147","ДО \"Воронеж-Олимпийский квартал\" вг. Воронеж АО \"АЛЬФА-БАНК\"","394053, г. Воронеж, ул. Загоровского, д. 1","Воронеж"]
[null,null,null,"ИСЛАНДИЯ","IS",null,"ИСЛАНДИЯ","IS",null,"ЧУКОТСКИЙ АВТОНОМНЫЙ ОКРУГ","87",null,"1169","Дополнительный офис \"Воронеж-Димитрова\" в г. Воронеж АО \"АЛЬФА-БАНК\"","394007, г. Воронеж, Ленинский пр-кт, д. 116А","Воронеж"]
[null,null,null,"ИСПАНИЯ","ES",null,"ИСПАНИЯ","ES",null,"ЭВЕНКИЙСКИЙ АВТОНОМНЫЙ ОКРУГ","88",null,"1806","ДО \"ВОСКРЕСЕНСК\" в г. Воскресенск АО \"АЛЬФА-БАНК\"","140200, г. Воскресенск, ул. Октябрьская, д. 2","Воскресенск"]
[null,null,null,"ИТАЛИЯ","IT",null,"ИТАЛИЯ","IT",null,"ЯМАЛО - НЕНЕЦКИЙ АВТОНОМНЫЙ ОКРУГ","89",null,"1728","ДО \"Воткинск-улица 1 мая\" в г. Воткинск АО \"АЛЬФА-БАНК\"","427433, г. Воткинск, ул. 1 Мая, д. 102","Воткинск"]
[null,null,null,"ЙЕМЕН","YE",null,"ЙЕМЕН","YE",null,"ЗАПОРОЖСКАЯ ОБЛАСТЬ","90",null,"1804","ДО \"Всеволожск-Всеволожский пр-кт\"в г. Всеволожск АО \"АЛЬФА-БАНК\"","188640, г. Всеволожск, Всеволожский пр-кт, д. 29","Всеволожск"]
[null,null,null,"КАБО-ВЕРДЕ","CV",null,"КАБО-ВЕРДЕ","CV",null,"РЕСПУБЛИКА КРЫМ","91",null,"1768","ДО \"Выборг-улица Вокзальная\" в г. Выборг АО \"АЛЬФА-БАНК\"","188800, г. Выборг, ул. Вокзальная, д. 7","Выборг"]
[null,null,null,"КАЗАХСТАН","KZ",null,"КАЗАХСТАН","KZ",null,"Г.СЕВАСТОПОЛЬ","92",null,"1658","ДО \"Выкса-улица Островского\" в г. Выкса АО \"АЛЬФА-БАНК\"","607061, г. Выкса, ул. Островского, зд. 33","Выкса"]
[null,null,null,"КАЙМАН","KY",null,"КАЙМАН","KY",null,"ДОНЕЦКАЯ НАРОДНАЯ РЕСПУБЛИКА","93",null,"1813","ДО \"В.Волочек-Казанский проспект\" вг. Вышний Волочек АО \"АЛЬФА-БАНК\"","171163, г. Вышний Волочек, пр-кт Казанский, д. 44","Вышний Волочек"]
[null,null,null,"КАМБОДЖА","KH",null,"КАМБОДЖА","KH",null,"ЛУГАНСКАЯ НАРОДНАЯ РЕСПУБЛИКА","94",null,"1654","ДО \"Вязьма-улица 25 Октября\" в г. Вязьма АО \"АЛЬФА-БАНК\"","215110, г. Вязьма, ул. 25 Октября, д. 4","Вязьма"]
[null,null,null,"КАМЕРУН","CM",null,"КАМЕРУН","CM",null,"ХЕРСОНСКАЯ ОБЛАСТЬ","95",null,"1754","ДО \"Гатчина-проспект 25 Октября\" вг. Гатчина АО \"АЛЬФА-БАНК\"","188300, г. Гатчина, пр-кт 25 Октября, д. 11/13","Гатчина"]
[null,null,null,"КАНАДА","CA",null,"КАНАДА","CA",null,"ГОРОД И КОСМОДРОМ БАЙКОНУР","99",null,"8034","ДО \"Геленджик-улица Херсонская\" в г. Геленджик АО \"АЛЬФА-БАНК\"","353460, г. Геленджик, ул. Херсонская, д. 23","Геленджик"]
[null,null,null,"КАНТОНЖЕНЕВА(ШВЕЙЦАРИЯ)","XJ",null,"КАНТОНЖЕНЕВА(ШВЕЙЦАРИЯ)","XJ",null,null,null,null,"8028","ДО \"Георгиевск-улица Салогубова\" вг. Георгиевск АО \"АЛЬФА-БАНК\"","357821, г. Георгиевск, ул. Салогубова, д. 16","Георгиевск"]
[null,null,null,"КАНТОННЕШЕТАЛЬ(НЕВШАТЕЛЬ)(ШВЕЙЦ)","XN",null,"КАНТОННЕШЕТАЛЬ(НЕВШАТЕЛЬ)(ШВЕЙЦ)","XN",null,null,null,null,"0874","ДО \"Глазов-Чепецкий\" в г. Глазов АО\"АЛЬФА-БАНК\"","427620, г. Глазов,ул. Кирова, д. 13","Глазов"]
[null,null,null,"КАНТОНФРИБУРГ(ШВЕЙЦАРИЯ)","XF",null,"КАНТОНФРИБУРГ(ШВЕЙЦАРИЯ)","XF",null,null,null,null,"1616","ДО \"Горно-Алтайск-Родник\" в г. Горно-Алтайск АО \"АЛЬФА-БАНК\"","649000, г. Горно-Алтайск, пр-кт Коммунистический, д.27","Горно-Алтайск"]
[null,null,null,"КАНТОНЦУГ(ШВЕЙЦАРИЯ)","XC",null,"КАНТОНЦУГ(ШВЕЙЦАРИЯ)","XC",null,null,null,null,"1836","ДО \"Грозный-Центральный\" в г. Грозный АО \"АЛЬФА-БАНК\"","364024, г. Грозный, ул. им. С. Ш. Лорсанова, д.14","ГРОЗНЫЙ"]
[null,null,null,"КАТАР","QA",null,"КАТАР","QA",null,null,null,null,"1725","ДО \"Губкин-улица Кирова\" в г. Губкин АО \"АЛЬФА-БАНК\"","309181, г. Губкин, ул. Кирова, д. 53","Губкин"]
[null,null,null,"КЕНИЯ","KE",null,"КЕНИЯ","KE",null,null,null,null,"1762","ДО \"Гусь-Хрустальный-ул. Калинина\"в г. Гусь-Хрустальный АО АЛЬФА-БАНК","601501, г. Гусь-Хрустальный, ул. Калинина, д. 30","Гусь-Хрустальный"]
[null,null,null,"КИПР","CY",null,"КИПР","CY",null,null,null,null,"0753","ДО \"Дзержинск-улица Гайдара\" в г. Дзержинск АО \"АЛЬФА-БАНК\"","606029, г. Дзержинск, ул. Гайдара, д. 61","Дзержинск"]
[null,null,null,"КИРГИЗИЯ","KG",null,"КИРГИЗИЯ","KG",null,null,null,null,"1177","ДО \"Димитровград-Черемшан\" в г. Димитровград АО \"АЛЬФА-БАНК\"","433512, г. Димитровград, пр-кт. Ленина, зд. 39д","Димитровград"]
[null,null,null,"КИРИБАТИ","KI",null,"КИРИБАТИ","KI",null,null,null,null,"1739","ДО \"ДМИТРОВ\" в г. Дмитров АО \"АЛЬФА-БАНК\"","141800, г. Дмитров, ул. Загорская, д. 24","Дмитров"]
[null,null,null,"КИТАЙ","CN",null,"КИТАЙ","CN",null,null,null,null,"1525","ДО \"ДОЛГОПРУДНЫЙ\" в г. ДолгопрудныйАО \"АЛЬФА-БАНК\"","141700, г. Долгопрудный, Новый бульвар, д. 2","Долгопрудный"]
[null,null,null,"КОКОСОВЫЕОСТРОВА","CC",null,"КОКОСОВЫЕОСТРОВА","CC",null,null,null,null,"1527","ДО \"ДОМОДЕДОВО\" в г. Домодедово АО\"АЛЬФА-БАНК\"","142000, г. Домодедово, Каширское шоссе, д. 51","Домодедово"]
[null,null,null,"КОЛУМБИЯ","CO",null,"КОЛУМБИЯ","CO",null,null,null,null,"8067","ДО \"Донецк-улица Горького\" в г. Донецк АО \"АЛЬФА-БАНК\"","346330, г. Донецк, ул. Максима Горького, д. 67","Донецк"]
[null,null,null,"КОМОРСКИЕОСТРОВА","KM",null,"КОМОРСКИЕОСТРОВА","KM",null,null,null,null,"1727","ДО \"Донской-улица Октябрьская\" в г.Донской АО \"АЛЬФА-БАНК\"\"","301764, г. Донской, ул. Октябрьская, д. 59а","Донской"]
[null,null,null,"КОНГО","CG",null,"КОНГО","CG",null,null,null,null,"1818","ДО \"ДУБНА\" в г. Дубна АО \"АЛЬФА-БАНК\"","141986, г. Дубна, пр-кт Боголюбова, д. 14А","Дубна"]
[null,null,null,"КОНГО,ДЕМОКРАТИЧЕСКАЯРЕСПУБЛИКА","CD",null,"КОНГО,ДЕМОКРАТИЧЕСКАЯРЕСПУБЛИКА","CD",null,null,null,null,"1669","ДО \"ЕГОРЬЕВСК\" в г. Егорьевск АО \"АЛЬФА-БАНК\"","140301, г. Егорьевск, ул. Советская, д. 82А","Егорьевск"]
[null,null,null,"КОРЕЯ(РЕСПУБЛИКА)","KR",null,"КОРЕЯ(РЕСПУБЛИКА)","KR",null,null,null,null,"8195","ДО \"Ейск-улица Победы\" в г. Ейск АО\"АЛЬФА-БАНК\"","353680, г. Ейск, ул. Победы, д. 78","Ейск"]
[null,null,null,"КОСТА-РИКА","CR",null,"КОСТА-РИКА","CR",null,null,null,null,"0482","ДО \"Екатеринбург-улица 8 Марта\" в г. Екатеринбург АО \"АЛЬФА-БАНК\"","620014, г. Екатеринбург, ул. 8 Марта, д. 10/ ул. Малышева, д. 42 (литер А)","Екатеринбург"]
[null,null,null,"КОТ-Д'ИВУАР","CI",null,"КОТ-Д'ИВУАР","CI",null,null,null,null,"0684","ДО \"Екатеринбург-улица Уральская\" вг. Екатеринбург АО \"АЛЬФА-БАНК\"","620041, г. Екатеринбург, ул.Уральская д 75","Екатеринбург"]
[null,null,null,"КОТ-Д'ИВУАР","IC",null,"КОТ-Д'ИВУАР","IC",null,null,null,null,"0818","ДО \"Екатеринбург-улица Южная\" в г.Екатеринбург АО \"АЛЬФА-БАНК\"","620144, г. Екатеринбург, ул. 8 марта, д. 194","Екатеринбург"]
[null,null,null,"КУБА","CU",null,"КУБА","CU",null,null,null,null,"0978","ДО \"Екатеринбург-ул. Белореченская\"в г. Екатеринбург АО \"АЛЬФА-БАНК\"","620086, г. Екатеринбург ул. Белореченская, д. 12а","Екатеринбург"]
[null,null,null,"КУВЕЙТ","KW",null,"КУВЕЙТ","KW",null,null,null,null,"0981","ДО \"Екатеринбург-улица Кузнецова\" вг. Екатеринбург АО \"АЛЬФА-БАНК\"","620000, г. Екатеринбург, ул. Кузнецова , д. 2","Екатеринбург"]
[null,null,null,"ЛАОС","LA",null,"ЛАОС","LA",null,null,null,null,"0982","ДО \"Екатеринбург-проспект Ленина\" вг. Екатеринбург АО \"АЛЬФА-БАНК\"","620062, г. Екатеринбург, пр-кт Ленина, д. 60","Екатеринбург"]
[null,null,null,"ЛАТВИЯ","LV",null,"ЛАТВИЯ","LV",null,null,null,null,"0983","ДО \"Екатеринбург-Уралмаш\" в г. Екатеринбург АО \"АЛЬФА-БАНК\"","620012, г. Екатеринбург, ул.Машиностроителей, д. 19","Екатеринбург"]
[null,null,null,"ЛЕСОТО","LS",null,"ЛЕСОТО","LS",null,null,null,null,"0984","ДО \"Екатеринбург-улица Родонитовая\"в г. Екатеринбург АО \"АЛЬФА-БАНК\"","620089, г. Екатеринбург, ул. Родонитовая, д. 4","Екатеринбург"]
[null,null,null,"ЛИТВА","LT",null,"ЛИТВА","LT",null,null,null,null,"0986","ДО \"Екатеринбург-Морозовский\" в г.Екатеринбург АО \"АЛЬФА-БАНК\"","620000, г. Екатеринбург ул. Сони Морозовой, д. 190","Екатеринбург"]
[null,null,null,"ЛИХТЕНШТЕЙН","LI",null,"ЛИХТЕНШТЕЙН","LI",null,null,null,null,"0998","ДО \"Екатеринбург-улица Горького\" вг. Екатеринбург АО \"АЛЬФА-БАНК\"","620000, г. Екатеринбург, ул. Горького, стр. 7-а","Екатеринбург"]
[null,null,null,"ЛЮКСЕМБУРГ","LU",null,"ЛЮКСЕМБУРГ","LU",null,null,null,null,"1097","ДО \"Екатеринбург-улица Крауля\" в г.Екатеринбург АО \"АЛЬФА-БАНК\"","620109, г. Екатеринбург, ул. Крауля, 44","Екатеринбург"]
[null,null,null,"МАВРИКИЙ","MU",null,"МАВРИКИЙ","MU",null,null,null,null,"1163","ДО \"Екатеринбург-Академический\" в г. Екатеринбург АО \"АЛЬФА-БАНК\"","620105, г. Екатеринбург, ул. Вильгельма деГеннина, д. 31","Екатеринбург"]
[null,null,null,"МАВРИТАНИЯ","MR",null,"МАВРИТАНИЯ","MR",null,null,null,null,"1682","ДО \"Елабуга-пр-кт Нефтяников\" в г.Елабуга АО \"АЛЬФА-БАНК\"","423603, г. Елабуга, пр-кт Нефтяников, д. 17","Елабуга"]
[null,null,null,"МАДАГАСКАР","MG",null,"МАДАГАСКАР","MG",null,null,null,null,"1192","ДО \"Елец-улица Мира\" в г. Елец АО \"АЛЬФА-БАНК\"","399770, г. Елец,улица Мира, д. 133","Елец"]
[null,null,null,"МАЙОТТА","YT",null,"МАЙОТТА","YT",null,null,null,null,"1624","ДО \"Ессентуки-Привокзальная площадь\" в г. Ессентуки АО \"АЛЬФА-БАНК\"","357601, г. Ессентуки,  Привокзальная площадь, пом. 1к","Ессентуки"]
[null,null,null,"МАКЕДОНИЯ","MK",null,"МАКЕДОНИЯ","MK",null,null,null,null,"0880","ДО \"Железногорск-Саяны\" в г. Железногорск АО \"АЛЬФА-БАНК\"","662971, г. Железногорск, ул. Свердлова, д. 21","Железногорск"]
[null,null,null,"МАЛАВИ","MW",null,"МАЛАВИ","MW",null,null,null,null,"1672","ДО \"Железногорск-Юность\" в г. Железногорск АО \"АЛЬФА-БАНК\"","307179, г. Железногорск, ул. Воинов-интернационалистов, д. 6","Железногорск"]
[null,null,null,"МАЛАЙЗИЯ","MY",null,"МАЛАЙЗИЯ","MY",null,null,null,null,"1529","ДО \"ЖУКОВСКИЙ\" в г. Жуковский АО \"АЛЬФА-БАНК\"","140184, г. Жуковский, ул. Гагарина, д. 24","Жуковский"]
[null,null,null,"МАЛИ","ML",null,"МАЛИ","ML",null,null,null,null,"8015","ДО \"Заречный-улица Ленина\" в г. Заречный АО \"АЛЬФА-БАНК\"","442963, г. Заречный, ул. Ленина, д. 20А","Заречный"]
[null,null,null,"МАЛЫЕТИХООКЕАНСКИЕОСТРОВА","UM",null,"МАЛЫЕТИХООКЕАНСКИЕОСТРОВА","UM",null,null,null,null,"8084","ДО \"Зеленогорск-улица Ленина\" в г.Зеленогорск АО \"АЛЬФА-БАНК\"","663693, г. Зеленогорск, ул. Ленина, д. 2","Зеленогорск"]
[null,null,null,"МАЛЬДИВЫ","MV",null,"МАЛЬДИВЫ","MV",null,null,null,null,"1696","ДО \"Зеленодольск-улица Ленина\" в г.Зеленодольск АО \"АЛЬФА-БАНК\"","422550, г. Зеленодольск, ул. Ленина, д. 25","Зеленодольск"]
[null,null,null,"МАЛЬТА","MT",null,"МАЛЬТА","MT",null,null,null,null,"1005","ДО \"Златоуст-проспект Гагарина\" в г. Златоуст АО \"АЛЬФА-БАНК\"","456228, г. Златоуст, пр. им. Ю.А. Гагарина, 3 м/р-н, д. 14-в","Златоуст"]
[null,null,null,"МАРОККО","MA",null,"МАРОККО","MA",null,null,null,null,"1146","ДО \"Иваново-Центральный\" в г. Иваново АО \"АЛЬФА-БАНК\"","153000, г. Иваново, пр-кт Ленина, 11","Иваново"]
[null,null,null,"МАРТИНИКА","MQ",null,"МАРТИНИКА","MQ",null,null,null,null,"8190","ДО \"Иваново-Ясень\" в г. Иваново АО\"АЛЬФА-БАНК\"","153038, г. Иваново, пр-кт Строителей, д. 25","Иваново"]
[null,null,null,"МАРШАЛЛОВЫОСТРОВА","MH",null,"МАРШАЛЛОВЫОСТРОВА","MH",null,null,null,null,"0736","ДО \"Ижевск-улица Пушкинская\" в г. Ижевск АО \"АЛЬФА-БАНК\"","426008, г. Ижевск, ул. Пушкинская д. 216","Ижевск"]
[null,null,null,"МЕКСИКА","MX",null,"МЕКСИКА","MX",null,null,null,null,"0804","ДО \"Ижевск-Центральный\" в г. ИжевскАО \"АЛЬФА-БАНК\"","426004, г. Ижевск, ул. Ленина, д. 21","Ижевск"]
[null,null,null,"МИКРОНЕЗИЯ","FM",null,"МИКРОНЕЗИЯ","FM",null,null,null,null,"0869","ДО \"Ижевск-Устиновский\" в г. ИжевскАО \"АЛЬФА-БАНК\"","426073, г. Ижевск, ул. Молодежная,д. 87","Ижевск"]
[null,null,null,"МОЗАМБИК","MZ",null,"МОЗАМБИК","MZ",null,null,null,null,"0741","ДО \"Иркутск-Лермонтовский\" в г. Иркутск АО \"АЛЬФА-БАНК\"","664074, г. Иркутск  ул. Лермонтова, д. 63","Иркутск"]
[null,null,null,"МОЛДАВИЯ","MD",null,"МОЛДАВИЯ","MD",null,null,null,null,"0865","ДО \"Иркутск-Амурские ворота\" в г. Иркутск АО \"АЛЬФА-БАНК\"","664003, г. Иркутск ул. Ленина  д. 25","Иркутск"]
[null,null,null,"МОНАКО","MC",null,"МОНАКО","MC",null,null,null,null,"0891","ДО \"Иркутск-Байкал\" в г. Иркутск АО\"АЛЬФА-БАНК\"","664003, г. Иркутск,  ул. Литвинова  д. 2","Иркутск"]
[null,null,null,"МОНГОЛИЯ","MN",null,"МОНГОЛИЯ","MN",null,null,null,null,"0991","ДО \"Иркутск-Ангара\" в г. Иркутск АО\"АЛЬФА-БАНК\"","664022, г. Иркутск, ул. Кожова, д. 20","Иркутск"]
[null,null,null,"МОНТСЕРРАТ","MS",null,"МОНТСЕРРАТ","MS",null,null,null,null,"1633","ДО \"Искитим-улица Пушкина\" в г. Искитим АО \"АЛЬФА-БАНК\"","633209, г. Искитим, ул. Пушкина, д. 40А","Искитим"]
[null,null,null,"НАМИБИЯ","NA",null,"НАМИБИЯ","NA",null,null,null,null,"8047","ДО \"ИСТРА\" в г. Истра АО \"АЛЬФА-БАНК\"","143500, г. Истра, ул. Ленина, д. 75","Истра"]
[null,null,null,"НАУРУ","NR",null,"НАУРУ","NR",null,null,null,null,"1703","ДО \"Ишим-улица Карла Маркса\" в г. Ишим АО \"АЛЬФА-БАНК\"","627754, г. Ишим,ул. Карла Маркса, д. 77А","Ишим"]
[null,null,null,"НЕПАЛ","NP",null,"НЕПАЛ","NP",null,null,null,null,"1006","ДО \"Йошкар-Ола-Новопокровская\" в г.Йошкар-Ола АО \"АЛЬФА-БАНК\"","424008, г. Йошкар-Ола, ул. Первомайская, д. 164","Йошкар-Ола"]
[null,null,null,"НИГЕР","NE",null,"НИГЕР","NE",null,null,null,null,"8182","ДО \"Йошкар-Ола-улица Эшкинина\" в г.Йошкар-Ола АО \"АЛЬФА-БАНК\"","424033, г. Йошкар-Ола, ул. Эшкинина, д. 10д","Йошкар-Ола"]
[null,null,null,"НИГЕРИЯ","NG",null,"НИГЕРИЯ","NG",null,null,null,null,"0705","ДО \"Казань-улица Ершова\" в г. Казань АО \"АЛЬФА-БАНК\"","420061, г. Казань, ул. Николая Ершова, д. 29 \"Б\"","Казань"]
[null,null,null,"НИДЕРЛАНДЫ","NL",null,"НИДЕРЛАНДЫ","NL",null,null,null,null,"0825","ДО \"Казань-улица Островского\" в г.Казань АО \"АЛЬФА-БАНК\"","420107, г. Казань, ул. Островского, д. 103","Казань"]
[null,null,null,"НИКАРАГУА","NI",null,"НИКАРАГУА","NI",null,null,null,null,"0843","ДО \"Казань-Савиново\" в г. Казань АО\"АЛЬФА-БАНК\"","420126, г. Казань, пр-т Ямашева, д. 82","Казань"]
[null,null,null,"НИУЭ","NU",null,"НИУЭ","NU",null,null,null,null,"0848","ДО \"Казань-улица Зорге\" в г. КазаньАО \"АЛЬФА-БАНК\"","420110, г. Казань, ул. Рихарда Зорге, д. 75","Казань"]
[null,null,null,"НОВАЯЗЕЛАНДИЯ","NZ",null,"НОВАЯЗЕЛАНДИЯ","NZ",null,null,null,null,"0885","ДО \"Казань-улица Декабристов\" в г.Казань АО \"АЛЬФА-БАНК\"","420080, г. Казань, ул. Декабристовд.129","Казань"]
[null,null,null,"НОВАЯКАЛЕДОНИЯ","NC",null,"НОВАЯКАЛЕДОНИЯ","NC",null,null,null,null,"1115","ДО \"Казань-улица Закиева\" в г. Казань АО \"АЛЬФА-БАНК\"","420100, г. Казань, ул. Закиева, д. 1","Казань"]
[null,null,null,"НОРВЕГИЯ","NO",null,"НОРВЕГИЯ","NO",null,null,null,null,"0455","ДО \"Калининград-Янтарь\" в г. Калининград АО \"АЛЬФА-БАНК\"","236022, г. Калининград, площадь Победы, д. 4","Калининград"]
[null,null,null,"НОРМАНДСКИЕО-ВАГЕРНСИ,ДЖЕРСИ,САРК","XG",null,"НОРМАНДСКИЕО-ВАГЕРНСИ,ДЖЕРСИ,САРК","XG",null,null,null,null,"0732","ДО \"Калининград-Южный\" в г. Калининград АО \"АЛЬФА-БАНК\"","236044, г. Калининград, б-р Л.Шевцовой, д. 1А","Калининград"]
[null,null,null,"НОРФОЛК","NF",null,"НОРФОЛК","NF",null,null,null,null,"0836","ДО \"Калининград-Плаза\" в г. Калининград АО \"АЛЬФА-БАНК\"","236006, г. Калининград, ул Шевченко, д. 11а","Калининград"]
[null,null,null,"О.КЕРГЕЛЕН(ФРАНЦИЯ)","XK",null,"О.КЕРГЕЛЕН(ФРАНЦИЯ)","XK",null,null,null,null,"1533","ДО \"Калининград-Академический\" в г.Калининград АО \"АЛЬФА-БАНК\"","236041, г. Калининград , ул. Куйбышева, д. 2","Калининград"]
[null,null,null,"О.ЛАБУАН(МАЛАЙЗИЯ)","XL",null,"О.ЛАБУАН(МАЛАЙЗИЯ)","XL",null,null,null,null,"8164","ДО \"Калининград-улица Челнокова\" вг. Калининград АО \"АЛЬФА-БАНК\"","236001, г. Калининград, ул. Генерала Челнокова, д. 11","Калининград"]
[null,null,null,"О.МАДЕЙРА(ПОРТУГАЛИЯ)","XM",null,"О.МАДЕЙРА(ПОРТУГАЛИЯ)","XM",null,null,null,null,"0672","ДО \"Калуга-площадь Победы\" в г. Калуга АО \"АЛЬФА-БАНК\"","248023, г. Калуга, пл. Победы, д. 15","Калуга"]
[null,null,null,"О.МЭН(ВЕЛИКОБРИТАНИЯ)","IM",null,"О.МЭН(ВЕЛИКОБРИТАНИЯ)","IM",null,null,null,null,"1140","ДО \"Калуга-улица Плеханова\" в г. Калуга АО \"АЛЬФА-БАНК\"","248001, г. Калуга, ул. Кирова, д. 14","Калуга"]
[null,null,null,"ОБЪЕДИНЕННЫЕАРАБСКИЕЭМИРАТЫ","AE",null,"ОБЪЕДИНЕННЫЕАРАБСКИЕЭМИРАТЫ","AE",null,null,null,null,"0990","ДО \"Каменск-Уральский-пр.Победы\" вг.Каменск-Уральский АО \"АЛЬФА-БАНК\"","623400, г. Каменск-Уральский, пр-кт Победы, д. 39а","Каменск-Уральский"]
[null,null,null,"ОМАН","OM",null,"ОМАН","OM",null,null,null,null,"1667","ДО Каменск-Шахтинский-пр-кт Марксав Каменск-Шахтинский АО АЛЬФА-БАНК","347810, г. Каменск-Шахтинский, пр-кт Карла Маркса,д. 73","Каменск-Шахтинский"]
[null,null,null,"ОСТРОВАКУКА","CK",null,"ОСТРОВАКУКА","CK",null,null,null,null,"1657","ДО \"Камышин-улица Пролетарская\" в г. Камышин АО \"АЛЬФА-БАНК\"","403873, г. Камышин, ул. Пролетарская, д. 101","Камышин"]
[null,null,null,"ОСТРОВРОЖДЕСТВА","CX",null,"ОСТРОВРОЖДЕСТВА","CX",null,null,null,null,"1802","ДО \"Канск-ул. 40 лет Октября\" в г.Канск АО \"АЛЬФА-БАНК\"","663604, г. Канск, ул. 40 лет Октября, зд. 62, стр.4","Канск"]
[null,null,null,"ОСТРОВСВЯТОЙЕЛЕНЫ","SH",null,"ОСТРОВСВЯТОЙЕЛЕНЫ","SH",null,null,null,null,"0838","ДО \"Кемерово-Кузбасс\" в г. КемеровоАО \"АЛЬФА-БАНК\"","650991, г. Кемерово, пр-кт Советский, д. 32","Кемерово"]
[null,null,null,"ПАКИСТАН","PK",null,"ПАКИСТАН","PK",null,null,null,null,"0960","ДО \"Кемерово-Бульвар Строителей\" вг. Кемерово АО \"АЛЬФА-БАНК\"","650003, г. Кемерово, бр. Строителей, д. 28, лит. А","Кемерово"]
[null,null,null,"ПАЛАУ","PW",null,"ПАЛАУ","PW",null,null,null,null,"0999","ДО \"Кемерово-Центральный\" в г. Кемерово АО \"АЛЬФА-БАНК\"","650066, г. Кемерово, пр-кт Ленина, д. 64а","Кемерово"]
[null,null,null,"ПАНАМА","PA",null,"ПАНАМА","PA",null,null,null,null,"8123","ДО \"Кингисепп-улица Б. Советская\" вг. Кингисепп АО \"АЛЬФА-БАНК\"","188480, г. Кингисепп, ул. Большая Советская, д.39Б","Кингисепп"]
[null,null,null,"ПАПУА-НОВАЯГВИНЕЯ","PG",null,"ПАПУА-НОВАЯГВИНЕЯ","PG",null,null,null,null,"1665","ДО \"Кинешма-улица Ленина\" в г. Кинешма АО \"АЛЬФА-БАНК\"","155800, г. Кинешма, ул. им. Ленина, д. 6","Кинешма"]
[null,null,null,"ПАРАГВАЙ","PY",null,"ПАРАГВАЙ","PY",null,null,null,null,"8074","ДО \"Кириши-проспект Героев\" в г. Кириши АО \"АЛЬФА-БАНК\"","187112, г. Кириши, пр-кт Героев, д. 2","Кириши"]
[null,null,null,"ПЕРУ","PE",null,"ПЕРУ","PE",null,null,null,null,"0763","ДО \"Киров-улица Карла Маркса\" в г.Киров АО \"АЛЬФА-БАНК\"","610027, г. Киров,ул. Карла Маркса, д. 99","Киров"]
[null,null,null,"ПИТКЭРН","PN",null,"ПИТКЭРН","PN",null,null,null,null,"1839","ДО \"Киров-ул. Маршала Конева\" в г.Киров АО \"АЛЬФА-БАНК\"","610045, г. Киров, ул. Маршала И. С. Конева, д. 1","Киров"]
[null,null,null,"ПОЛЬША","PL",null,"ПОЛЬША","PL",null,null,null,null,"1635","ДО \"Кирово-Чепецк-проспект Мира\" вг. Кирово-Чепецк АО \"АЛЬФА-БАНК\"","613050, г. Кирово-Чепецк, пр-кт Мира, д. 74","Кирово-Чепецк"]
[null,null,null,"ПОРТУГАЛИЯ","PT",null,"ПОРТУГАЛИЯ","PT",null,null,null,null,"8110","ДО \"Кировск-улица Набережная\" в г.Кировск АО \"АЛЬФА-БАНК\"","187342, г. Кировск, ул. Набережная, д. 6","Кировск"]
[null,null,null,"ПРИДНЕСТРОВЬЕ(МОЛДАВИЯ)","RP",null,"ПРИДНЕСТРОВЬЕ(МОЛДАВИЯ)","RP",null,null,null,null,"1692","ДО \"Киселевск-улица Ленина\" в г. Киселевск АО \"АЛЬФА-БАНК\"","652700, г. Киселевск, ул. Ленина, д. 38","Киселевск"]
[null,null,null,"ПУЭРТО-РИКО","PR",null,"ПУЭРТО-РИКО","PR",null,null,null,null,"1612","ДО \"Кисловодск-улица Горького\" в г.Кисловодск АО \"АЛЬФА-БАНК\"","357700, г. Кисловодск, ул. Горького, д. 17Б","Кисловодск"]
[null,null,null,"РЕСПУБЛИКА СЕРБИЯ","RS",null,"РЕСПУБЛИКА СЕРБИЯ","RS",null,null,null,null,"1659","ДО \"КЛИН\" в г. Клин АО \"АЛЬФА-БАНК\"","141607, г. Клин, ул. К. Маркса, д. 4","Клин"]
[null,null,null,"РЕСПУБЛИКА ЧЕРНОГОРИЯ","ME",null,"РЕСПУБЛИКА ЧЕРНОГОРИЯ","ME",null,null,null,null,"1197","ДО \"Клинцы-проспект Ленина\" в г. Клинцы АО \"АЛЬФА-БАНК\"","243140, г. Клинцы, пр-кт Ленина, д. 21","Клинцы"]
[null,null,null,"РЕЮНЬОН","RE",null,"РЕЮНЬОН","RE",null,null,null,null,"1542","ДО \"Ковров-Дегтяревский\" в г. Ковров АО \"АЛЬФА-БАНК\"","601900, г. Ковров, пр-кт Ленина, д. 38","Ковров"]
[null,null,null,"РУАНДА","RW",null,"РОССИЯ","RU",null,null,null,null,"1826","ДО \"Когалым-улица Ленинградская\" вг. Когалым АО \"АЛЬФА-БАНК\"","628484, г. Когалым, ул. Ленинградская, д. 17","Когалым"]
[null,null,null,"РУМЫНИЯ","RO",null,"РУАНДА","RW",null,null,null,null,"1622","ДО \"КОЛОМНА\" в г. Коломна АО \"АЛЬФА-БАНК\"","140408, г. Коломна, пл. Восстания, д. 7","Коломна"]
[null,null,null,"САЛЬВАДОР","SV",null,"РУМЫНИЯ","RO",null,null,null,null,"1820","ДО \"Колпино-улица Тверская\" в г. Колпино АО \"АЛЬФА-БАНК\"","196655, г. Санкт-Петербург, г. Колпино, ул. Тверская, д. 34, лит. А","Колпино"]
[null,null,null,"САН-МАРИНО","SM",null,"САЛЬВАДОР","SV",null,null,null,null,"1729","ДО \"КОММУНАРКА\" в г. Москва АО \"АЛЬФА-БАНК\"","108801, г. Москва, пос. Коммунарка,ул. Липовый парк, д. 11","Коммунарка"]
[null,null,null,"САН-ТОМЕИПРИНСИПИ","ST",null,"САН-МАРИНО","SM",null,null,null,null,"0690","ДО \"Комсомольск нА-пр-т Ленина\" в г.Комсомольск-на-Амуре АО АЛЬФА-БАНК","681013, г. Комсомольск-на-Амуре, пр-кт Ленина, д. 13, пом. 1002","Комсомольск-на-Амуре"]
[null,null,null,"САУДОВСКАЯАРАВИЯ","SA",null,"САН-ТОМЕИПРИНСИПИ","ST",null,null,null,null,"1621","ДО \"Копейск-пр-кт Победы\" в г. Копейск АО \"АЛЬФА-БАНК\"","456618, г. Копейск, пр-кт Коммунистический, д. 28","Копейск"]
[null,null,null,"СВАЗИЛЕНД","SZ",null,"САУДОВСКАЯАРАВИЯ","SA",null,null,null,null,"0613","ДО \"КОРОЛЕВ\" в г. Королев АО \"АЛЬФА-БАНК\"","141080, г. Королев, пр. Космонавтов, д.  27б","Королев"]
[null,null,null,"СЕВЕРНЫЕМАРИАНСКИЕОСТРОВА","MP",null,"СВАЗИЛЕНД","SZ",null,null,null,null,"1165","ДО \"Кострома-Романовский\" в г. Кострома АО \"АЛЬФА-БАНК\"","156000, г. Кострома, ул. Советская, д. 30","Кострома"]
[null,null,null,"СЕЙШЕЛЬСКИЕОСТРОВА","SC",null,"СЕВЕРНЫЕМАРИАНСКИЕОСТРОВА","MP",null,null,null,null,"8181","ДО \"Кострома-проспект Мира\" в г. Кострома АО \"АЛЬФА-БАНК\"","156013, г. Кострома, пр-кт Мира, д. 65/51","Кострома"]
[null,null,null,"СЕНЕГАЛ","SN",null,"СЕЙШЕЛЬСКИЕОСТРОВА","SC",null,null,null,null,"8018","ДО \"КОТЕЛЬНИКИ\" в г. Котельники АО\"АЛЬФА-БАНК\"","140056, г. Котельники, ул. Сосновая, д. 2, корп. 4","Котельники"]
[null,null,null,"СЕН-ПЬЕРИМИКЕЛОН","PM",null,"СЕНЕГАЛ","SN",null,null,null,null,"1634","ДО \"Котлас-улица Невского\" в г. Котлас АО \"АЛЬФА-БАНК\"","165313, г. Котлас, ул. Невского, д. 20","Котлас"]
[null,null,null,"СЕНТ-ВИНСЕНТИГРЕНАДИНЫ","VC",null,"СЕН-ПЬЕРИМИКЕЛОН","PM",null,null,null,null,"0626","ДО \"КРАСНОГОРСК\" в г. Красногорск АО \"АЛЬФА-БАНК\"","143409, г. Красногорск, ул. Ленина, д. 38Б","Красногорск"]
[null,null,null,"СЕНТ-КИТСИНЕВИС","KN",null,"СЕНТ-ВИНСЕНТИГРЕНАДИНЫ","VC",null,null,null,null,"0480","ДО \"Краснодар-Театральная пл\" в г.Краснодаре АО \"АЛЬФА-БАНК\"","350000, г. Краснодар, ул Красная, д. 124, литер `Б`","Краснодар"]
[null,null,null,"СЕНТ-ЛЮСИЯ","LC",null,"СЕНТ-КИТСИНЕВИС","KN",null,null,null,null,"0688","ДО \"Краснодар-улица Селезнева\" в г.Краснодар АО \"АЛЬФА-БАНК\"","350075, г. Краснодар, ул.Селезнева, д.134","Краснодар"]
[null,null,null,"СИНГАПУР","SG",null,"СЕНТ-ЛЮСИЯ","LC",null,null,null,null,"0725","ДО \"Краснодар-Центр города\" в г. Краснодар АО \"АЛЬФА-БАНК\"","350015, г. Краснодар, ул. Красная, д. 176/1","Краснодар"]
[null,null,null,"СЛОВАКИЯ","SK",null,"СИНГАПУР","SG",null,null,null,null,"0807","ДО \"Краснодар-улица Тургенева\" в г.Краснодар АО \"АЛЬФА-БАНК\"","350049, г. Краснодар, ул. Тургенева, д. 107 лит А","Краснодар"]
[null,null,null,"СЛОВЕНИЯ","SI",null,"СЛОВАКИЯ","SK",null,null,null,null,"0808","ДО \"Краснодар-Вешняки\" в г. Краснодар АО \"АЛЬФА-БАНК\"","350001, г. Краснодар, ул. Ставропольская, д. 184","Краснодар"]
[null,null,null,"СОЕДИНЕННЫЕШТАТЫАМЕРИКИ","US",null,"СЛОВЕНИЯ","SI",null,null,null,null,"1052","ДО \"Краснодар-улица 1 Мая\" в г. Краснодар АО \"АЛЬФА-БАНК\"","350901, г. Краснодар, ул. 1 Мая, д. 158","Краснодар"]
[null,null,null,"СОЛОМОНОВЫОСТРОВА","SB",null,"СОЕДИНЕННЫЕШТАТЫАМЕРИКИ","US",null,null,null,null,"1080","ДО \"Краснодар-улица Красных Партизан\" в г. Краснодар АО \"АЛЬФА-БАНК\"","350051, г. Краснодар,ул. Красных Партизан, д. 525","Краснодар"]
[null,null,null,"СУРИНАМ","SR",null,"СОЛОМОНОВЫОСТРОВА","SB",null,null,null,null,"1705","ДО \"Краснокаменск-пр-кт Шахтеров\" вг. Краснокаменск АО \"АЛЬФА-БАНК\"","674676, г. Краснокаменск, пр-кт Шахтеров, д. 4а","Краснокаменск"]
[null,null,null,"СЬЕРРА-ЛЕОНЕ","SL",null,"СУРИНАМ","SR",null,null,null,null,"1623","ДО \"Краснокамск-пр-кт Мира\" в г. Краснокамск АО \"АЛЬФА-БАНК\"","617060, г. Краснокамск, пр-кт Мира, д. 6","Краснокамск"]
[null,null,null,"СЯНГАН(ГОНКОНГ)","HK",null,"СЬЕРРА-ЛЕОНЕ","SL",null,null,null,null,"1792","ДО \"Краснотурьинск-улица Ленина\" вг. Краснотурьинск АО \"АЛЬФА-БАНК\"","624440, г. Краснотурьинск, ул. Ленина, д. 37","Краснотурьинск"]
[null,null,null,"ТАДЖИКИСТАН","TJ",null,"СЯНГАН(ГОНКОНГ)","HK",null,null,null,null,"0456","ДО \"Красноярск-Енисей\" в г. Красноярск АО \"АЛЬФА-БАНК\"","660017, г. Красноярск, ул. Горького, д. 10","Красноярск"]
[null,null,null,"ТАИЛАНД","TH",null,"ТАДЖИКИСТАН","TJ",null,null,null,null,"0776","ДО \"Красноярск-Красный Яр\" в г. Красноярск АО \"АЛЬФА-БАНК\"","660049, г. Красноярск, ул. Мира, д. 10","Красноярск"]
[null,null,null,"ТАЙВАНЬ","TW",null,"ТАИЛАНД","TH",null,null,null,null,"0862","ДО \"Красноярск-Бирюса\" в г. Красноярск АО \"АЛЬФА-БАНК\"","660037, г. Красноярск, пр-кт им. газеты \"Красноярский рабочий\", д.35","Красноярск"]
[null,null,null,"ТАНЗАНИЯ","TZ",null,"ТАЙВАНЬ","TW",null,null,null,null,"0882","ДО \"Красноярск-Октябрьский\" в г. Красноярск АО \"АЛЬФА-БАНК\"","660041, г. Красноярск, ул. Высотная, д.1","Красноярск"]
[null,null,null,"ТЕРКСИКАЙКОС","TC",null,"ТАНЗАНИЯ","TZ",null,null,null,null,"0887","ДО \"Красноярск-Монолит\" в г. Красноярск АО \"АЛЬФА-БАНК\"","660135, г. Красноярск, ул. Взлётная, 18","Красноярск"]
[null,null,null,"ТОГО","TG",null,"ТЕРКСИКАЙКОС","TC",null,null,null,null,"0889","ДО \"Красноярск-Правобережный\" в г.Красноярск АО \"АЛЬФА-БАНК\"","660077, г. Красноярск, просп. им. газеты \"Красноярский рабочий\", д. 199","Красноярск"]
[null,null,null,"ТОКЕЛАУ(ЮНИОН)","TK",null,"ТОГО","TG",null,null,null,null,"1139","ДО \"Красноярск-Западный\" в г. Красноярск АО \"АЛЬФА-БАНК\"","660001, г. Красноярск, ул. Копылова, д. 66","Красноярск"]
[null,null,null,"ТОНГА","TO",null,"ТОКЕЛАУ(ЮНИОН)","TK",null,null,null,null,"1714","ДО \"Кропоткин-улица Красная\" в г. Кропоткин АО \"АЛЬФА-БАНК\"","352380, г. Кропоткин, ул. Красная, д. 96","Кропоткин"]
[null,null,null,"ТРИНИДАДИТОБАГО","TT",null,"ТОНГА","TO",null,null,null,null,"1723","ДО \"Крымск-улица Синева\" в г. Крымск АО \"АЛЬФА-БАНК\"","353380, г. Крымск, ул. Синева, д. 9Б","Крымск"]
[null,null,null,"ТУВАЛУ","TV",null,"ТРИНИДАДИТОБАГО","TT",null,null,null,null,"1602","ДО \"Кстово-ул. 40 лет Октября\" в г.Кстово АО \"АЛЬФА-БАНК\"","607651, г. Кстово, ул. 40 лет Октября, д. 4","Кстово"]
[null,null,null,"ТУНИС","TN",null,"ТУВАЛУ","TV",null,null,null,null,"8022","ДО \"Кудрово-проспект Европейский\" вг. Кудрово АО \"АЛЬФА-БАНК\"","188693, г. Кудрово, Европейский пр-кт, д. 8","Кудрово"]
[null,null,null,"ТУРКМЕНИЯ","TM",null,"ТУНИС","TN",null,null,null,null,"1613","ДО \"Кузнецк-улица Белинского\" в г.Кузнецк АО \"АЛЬФА-БАНК\"","442530, г. Кузнецк, ул. Белинского, д. 127/1","Кузнецк"]
[null,null,null,"ТУРЦИЯ","TR",null,"ТУРКМЕНИЯ","TM",null,null,null,null,"1685","ДО \"Кумертау-пл. Советов\" в г. Кумертау АО \"АЛЬФА-БАНК\"","453300, г. Кумертау, ул. Карла Маркса, д. 11","Кумертау"]
[null,null,null,"УГАНДА","UG",null,"ТУРЦИЯ","TR",null,null,null,null,"1676","ДО \"Кунгур-улица Пугачева\" в г. Кунгур АО \"АЛЬФА-БАНК\"","617470, г. Кунгур, ул. Пугачева, д. 25","Кунгур"]
[null,null,null,"УЗБЕКИСТАН","UZ",null,"УГАНДА","UG",null,null,null,null,"0694","ДО \"Курган-Выставочный центр\" в г.Курган АО \"АЛЬФА-БАНК\"","640002, г. Курган, ул. Гоголя, д. 17/1","Курган"]
[null,null,null,"УКРАИНА","UA",null,"УЗБЕКИСТАН","UZ",null,null,null,null,"0851","ДО \"Курган-Зауралье\" в г. Курган АО\"АЛЬФА-БАНК\"","640002, г. Курган, ул. Гоголя, д 39Б","Курган"]
[null,null,null,"УОЛЛИСИФУТУНА","WF",null,"УКРАИНА","UA",null,null,null,null,"1042","ДО \"Курск-улица Карла Маркса\" в г.Курск АО \"АЛЬФА-БАНК\"","305029, г. Курск, ул. Карла Маркса, д. 59А","Курск"]
[null,null,null,"УРУГВАЙ","UY",null,"УОЛЛИСИФУТУНА","WF",null,null,null,null,"1130","ДО \"Курск-улица Ленина\" в г. КурскАО \"АЛЬФА-БАНК\"","305000, г. Курск,ул. Ленина, д. 31, пом. 1б","Курск"]
[null,null,null,"ФАРЕРСКИЕОСТРОВА","FO",null,"УРУГВАЙ","UY",null,null,null,null,"1543","ДО \"Курск-улица Студенческая\" в г.Курск АО \"АЛЬФА-БАНК\"","305040, г. Курск,ул. Студенческая, д. 3","Курск"]
[null,null,null,"ФИДЖИ","FJ",null,"ФАРЕРСКИЕОСТРОВА","FO",null,null,null,null,"1793","ДО \"Курчатов-улица Садовая\" в г. Курчатов АО \"АЛЬФА-БАНК\"","307250, г. Курчатов, ул. Садовая, д. 11А","Курчатов"]
[null,null,null,"ФИЛИППИНЫ","PH",null,"ФИДЖИ","FJ",null,null,null,null,"8173","ДО \"Кызыл-улица Ленина\" в г. КызылАО \"АЛЬФА-БАНК\"","667000, г. Кызыл,ул. Ленина, д. 24","Кызыл"]
[null,null,null,"ФИНЛЯНДИЯ","FI",null,"ФИЛИППИНЫ","PH",null,null,null,null,"1794","ДО \"Лабинск-улица Халтурина\" в г. Лабинск АО \"АЛЬФА-БАНК\"","352500, г. Лабинск, ул. Халтурина, д. 18","Лабинск"]
[null,null,null,"ФОЛКЛЕНДСКИЕОСТРОВА","FK",null,"ФИНЛЯНДИЯ","FI",null,null,null,null,"1822","ДО \"Лениногорск-пр-кт 50 лет Победы\" в г. Лениногорск  АО \"АЛЬФА-БАНК\"","423250, г. Лениногорск, пр-кт 50 лет Победы, зд.11А","Лениногорск"]
[null,null,null,"ФРАНЦИЯ","FR",null,"ФОЛКЛЕНДСКИЕОСТРОВА","FK",null,null,null,null,"1188","ДО \"Ленинск-Кузнецкий\" в г. Ленинск-Кузнецкий АО \"АЛЬФА-БАНК\"","652500, г. Ленинск-Кузнецкий, проспект Кирова, д.49","Ленинск-Кузнецкий"]
[null,null,null,"ФРАНЦУЗСКАЯПОЛИНЕЗИЯ","PF",null,"ФРАНЦИЯ","FR",null,null,null,null,"8114","ДО \"Лесной-улица Ленина\" в г. Лесной АО \"АЛЬФА-БАНК\"","624205, г. Лесной, ул. Ленина, д. 64","Лесной"]
[null,null,null,"ФРАНЦУЗСКИЕЮЖНЫЕТЕРРИТОРИИ","TF",null,"ФРАНЦУЗСКАЯПОЛИНЕЗИЯ","PF",null,null,null,null,"1810","ДО \"Лесосибирск-улица Мира\" в г. Лесосибирск АО \"АЛЬФА-БАНК\"","662547, г. Лесосибирск, 5-й микрорайон, д. 26","Лесосибирск"]
[null,null,null,"ХЕРДИМАКДОНАЛЬД","HM",null,"ФРАНЦУЗСКИЕЮЖНЫЕТЕРРИТОРИИ","TF",null,null,null,null,"1619","ДО \"Ливны-улица Горького\" в г. Ливны АО \"АЛЬФА-БАНК\"","303850, г. Ливны, ул. Максима Горького, д. 2","Ливны"]
[null,null,null,"ХОРВАТИЯ","HR",null,"ХЕРДИМАКДОНАЛЬД","HM",null,null,null,null,"0726","ДО \"Липецк-Звездный\" в г. Липецк АО\"АЛЬФА-БАНК\"","398043, г. Липецк, ул. Космонавтов, д. 16/1","Липецк"]
[null,null,null,"ЦЕНТРАЛЬНОАФРИКАНСКАЯРЕСПУБЛИКА","CF",null,"ХОРВАТИЯ","HR",null,null,null,null,"0798","ДО \"Липецк-Петровский\" в г. ЛипецкАО \"АЛЬФА-БАНК\"","398059, г. Липецк, ул. Барышева д. 7","Липецк"]
[null,null,null,"ЧАД","TD",null,"ЦЕНТРАЛЬНОАФРИКАНСКАЯРЕСПУБЛИКА","CF",null,null,null,null,"0841","ДО \"Липецк-проспект Победы\" в г. Липецк АО \"АЛЬФА-БАНК\"","398024, г. Липецк, пр-кт Победы,д. 20","Липецк"]
[null,null,null,"ЧЕХИЯ","CZ",null,"ЧАД","TD",null,null,null,null,"1127","ДО \"Липецк-Октябрьский\" в г. ЛипецкАО \"АЛЬФА-БАНК\"","398046, г. Липецк, ул. Им. Генерала Меркулова, д. 10А, пом.1","Липецк"]
[null,null,null,"ЧИЛИ","CL",null,"ЧЕХИЯ","CZ",null,null,null,null,"8191","ДО \"Липецк-улица Эдуарда Белана\" вг. Липецк АО \"АЛЬФА-БАНК\"","398027, г. Липецк, ул. Героя России Эдуарда  Белана, д. 10а","Липецк"]
[null,null,null,"ШВЕЙЦАРИЯ","CH",null,"ЧИЛИ","CL",null,null,null,null,"8019","ДО \"Лиски-улица Коммунистическая\" вг. Лиски АО \"АЛЬФА-БАНК\"","397901, г. Лиски, ул. Коммунистическая, д. 36","Лиски"]
[null,null,null,"ШВЕЦИЯ","SE",null,"ШВЕЙЦАРИЯ","CH",null,null,null,null,"1639","ДО \"ЛОБНЯ-УЛИЦА ЛЕНИНА\" в г. ЛобняАО \"АЛЬФА-БАНК\"","141730, г. Лобня, ул. Ленина, д. 16","Лобня"]
[null,null,null,"ШЕННОН(ИРЛАНДИЯ)","XH",null,"ШВЕЦИЯ","SE",null,null,null,null,"1715","ДО \"Лысьва-улица Мира\" в г. ЛысьваАО \"АЛЬФА-БАНК\"","618900, г. Лысьва, ул. Мира, д. 11","Лысьва"]
[null,null,null,"ШПИЦБЕРГЕНОСТРОВА","SJ",null,"ШЕННОН(ИРЛАНДИЯ)","XH",null,null,null,null,"8113","ДО \"ЛЫТКАРИНО\" в г. Лыткарино АО \"АЛЬФА-БАНК\"","140080, г. Лыткарино, ул. Парковая, стр. 2","Лыткарино"]
[null,null,null,"ШРИ-ЛАНКА","LK",null,"ШПИЦБЕРГЕНОСТРОВА","SJ",null,null,null,null,"0639","ДО \"ЛЮБЕРЦЫ\" в г. Люберцы АО \"АЛЬФА-БАНК\"","140000, г. Люберцы, Октябрьский пр-кт, д.151/9","Люберцы"]
[null,null,null,"ШТАТВАЙОМИНГ(США)","XV",null,"ШРИ-ЛАНКА","LK",null,null,null,null,"1638","ДО \"Магадан-сквер Победы\" в г. Магадан АО \"АЛЬФА-БАНК\"","685000, г. Магадан, пр-кт Карла Маркса, д. 36/20","Магадан"]
[null,null,null,"ШТАТДЕЛАВЕР(США)","XE",null,"ШТАТВАЙОМИНГ(США)","XV",null,null,null,null,"0961","ДО \"Магнитогорск-Металлург\" в г. Магнитогорск АО \"АЛЬФА-БАНК\"","455000, г. Магнитогорск, пр-кт Ленина, д. 51","Магнитогорск"]
[null,null,null,"ЭКВАДОР","EC",null,"ШТАТДЕЛАВЕР(США)","XE",null,null,null,null,"0989","ДО \"Магнитогорск-Центральный\" в г.Магнитогорск АО \"АЛЬФА-БАНК\"","455037, г. Магнитогорск, пр-т Ленина, д. 90","Магнитогорск"]
[null,null,null,"ЭКВАТОРИАЛЬНАЯГВИНЕЯ","GQ",null,"ЭКВАДОР","EC",null,null,null,null,"1132","ДО \"Магнитогорск-проспект Маркса\" вг. Магнитогорск АО \"АЛЬФА-БАНК\"","455045, г. Магнитогорск, пр. Карла Маркса, д.179а","Магнитогорск"]
[null,null,null,"ЭСТОНИЯ","EE",null,"ЭКВАТОРИАЛЬНАЯГВИНЕЯ","GQ",null,null,null,null,"1814","ДО \"Майкоп-улица Жуковского\" в г. Майкоп АО \"АЛЬФА-БАНК\"","385000, г. Майкоп, ул. Жуковского, д. 20А/ ул. Советская, д. 199","Майкоп"]
[null,null,null,"ЭФИОПИЯ","ET",null,"ЭСТОНИЯ","EE",null,null,null,null,"1808","ДО \"Махачкала-Центральный\" в г. Махачкала АО \"АЛЬФА-БАНК\"","367026, г. Махачкала, пр-кт Имама Шамиля, д. 36К","Махачкала"]
[null,null,null,"ЮЖ.ГЕОРГИЯИЮЖ.САНДВИЧЕВЫО-ВА","GS",null,"ЭФИОПИЯ","ET",null,null,null,null,"0884","ДО \"Мегион-улица Нефтеразведочная\"в г. Мегион АО \"АЛЬФА-БАНК\"","628681, г. Мегион, ул.Нефтеразведочная, д. 2","Мегион"]
[null,null,null,"ЮЖНО-АФРИКАНСКАЯРЕСПУБЛИКА","ZA",null,"ЮЖ.ГЕОРГИЯИЮЖ.САНДВИЧЕВЫО-ВА","GS",null,null,null,null,"1636","ДО \"Междуреченск-улица Комарова\" вг. Междуреченск АО \"АЛЬФА-БАНК\"","652870, г. Междуреченск, Коммунистический пр-кт,д. 18","Междуреченск"]
[null,null,null,"ЯМАЙКА","JM",null,"ЮЖНО-АФРИКАНСКАЯРЕСПУБЛИКА","ZA",null,null,null,null,"1673","ДО \"Мелеуз-парк Славы\" в г. МелеузАО \"АЛЬФА-БАНК\"","453856, г. Мелеуз, ул. Ленина, д. 133","Мелеуз"]
[null,null,null,"ЯПОНИЯ","JP",null,"ЯМАЙКА","JM",null,null,null,null,"0696","ДО \"Миасс-пр-кт Автозаводцев\" в г.Миасс АО \"АЛЬФА-БАНК\"","456300, г. Миасс, пр. Автозаводцев, д. 61 Б","Миасс"]
[null,null,null,"ЛИЦО БЕЗ ГРАЖДАНСТВА","NN",null,"ЯПОНИЯ","JP",null,null,null,null,"1769","ДО \"Минеральные Воды-Вершина\" в г.Минеральные Воды АО \"АЛЬФА-БАНК\"","357207, г. Минеральные Воды, пр-кт 22 Партсъезда,влд. 94/1","Минеральные Воды"]
[null,null,null,null,null,null,"ЛИЦО БЕЗ ГРАЖДАНСТВА","NN",null,null,null,null,"1770","ДО \"Минусинск-ул. Абаканская\" в г.Минусинск АО \"АЛЬФА-БАНК\"","662606, г. Минусинск, ул. Абаканская, д. 48","Минусинск"]
[null,null,null,null,null,null,null,null,null,null,null,null,"1628","ДО \"Михайловка-улица Обороны\" в г.Михайловка АО \"АЛЬФА-БАНК\"","403343, г. Михайловка, ул. Обороны, д. 44/53","Михайловка"]
[null,null,null,null,null,null,null,null,null,null,null,null,"1740","ДО \"Михайловск-улица Войкова\" в г.Михайловск АО \"АЛЬФА-БАНК\"","356240, г. Михайловск, ул. Войкова, д. 454/1","Михайловск"]
[null,null,null,null,null,null,null,null,null,null,null,null,"1620","ДО \"Мичуринск-улица Советская\" в г.Мичуринск АО \"АЛЬФА-БАНК\"","393760, г. Мичуринск, ул. Советская, д. 323","Мичуринск"]
[null,null,null,null,null,null,null,null,null,null,null,null,"0404","ДО \"НОВОГИРЕЕВО\" в г. Москва АО \"АЛЬФА-БАНК\"","111396, г. Москва, пр-кт Свободный, д. 20А","Москва"]
[null,null,null,null,null,null,null,null,null,null,null,null,"0405","ДО \"ФРУНЗЕНСКИЙ\" в г. Москва АО \"АЛЬФА-БАНК\"","119021, г. Москва, пр-кт  Комсомольский, д. 24 , стр. 1","Москва"]
[null,null,null,null,null,null,null,null,null,null,null,null,"0410","ДО \"ПРЕСНЕНСКИЙ ВАЛ\" в г. Москва АО\"АЛЬФА-БАНК\"","123022, г. Москва, ул.ПресненскийВал, д. 7, стр. 1","Москва"]
[null,null,null,null,null,null,null,null,null,null,null,null,"0414","ДО \"СОКОЛЬНИКИ\" в г. Москва АО \"АЛЬФА-БАНК\"","107113, г. Москва, ул.Русаковская, д. 29","Москва"]
[null,null,null,null,null,null,null,null,null,null,null,null,"0417","ДО \"КУЗНЕЦКИЙ МОСТ\" в г. Москва АО\"АЛЬФА-БАНК\"","107031, г. Москва, ул. Неглинная, д. 10","Москва"]
[null,null,null,null,null,null,null,null,null,null,null,null,"0419","ДО \"БАУМАНСКАЯ\" в г. Москва АО \"АЛЬФА-БАНК\"","105066, г. Москва, ул. Нижняя Красносельская, д. 45/17","Москва"]
[null,null,null,null,null,null,null,null,null,null,null,null,"0420","ДО \"МЕНДЕЛЕЕВСКИЙ\" в г. Москва АО \"АЛЬФА-БАНК\"","127030, г. Москва,  ул. Новослободская, д. 23","Москва"]
[null,null,null,null,null,null,null,null,null,null,null,null,"0422","ДО \"АРБАТСКИЙ\" в г. Москва АО \"АЛЬФА-БАНК\"","119019, г. Москва, ул. Арбат, д. 4, стр. 1","Москва"]
[null,null,null,null,null,null,null,null,null,null,null,null,"0423","ДО \"АЛЕКСЕЕВСКИЙ\" в г. Москва АО \"АЛЬФА-БАНК\"","129085, г. Москва, пр-т Мира, д. 91, корп. 2","Москва"]
[null,null,null,null,null,null,null,null,null,null,null,null,"0426","ДО \"ТРЕТЬЯКОВСКИЙ\" АО \"АЛЬФА-БАНК\"в г. Москва","115035, г. Москва, ул. Большая Ордынка, д. 21, стр. 2","Москва"]
[null,null,null,null,null,null,null,null,null,null,null,null,"0427","ДО \"ОЛИМПИЙСКИЙ\" в г. Москва АО \"АЛЬФА-БАНК\"","129090, г. Москва, пр-кт. Мира, д. 42","Москва"]
[null,null,null,null,null,null,null,null,null,null,null,null,"0428","ДО \"КУТУЗОВСКИЙ ПРОСПЕКТ\" АО \"АЛЬФА-БАНК\" в г. Москва","121165, г. Москва, Кутузовский пр-кт, д. 30/32","Москва"]
[null,null,null,null,null,null,null,null,null,null,null,null,"0430","ДО \"ДАНИЛОВСКИЙ\" в г. Москва АО \"АЛЬФА-БАНК\"","115191, г. Москва, ул.Большая Тульская, д.2","Москва"]
[null,null,null,null,null,null,null,null,null,null,null,null,"0433","ДО \"ВАРШАВСКИЙ\" в г. Москва АО \"АЛЬФА-БАНК\"","117556, г. Москва, ш. Варшавское., д. 76, корп. 1","Москва"]
[null,null,null,null,null,null,null,null,null,null,null,null,"0436","ДО \"КУЗЬМИНКИ\" в г. Москва АО \"АЛЬФА-БАНК\"","109462, г. Москва, ул. Маршала Чуйкова, д. 3","Москва"]
[null,null,null,null,null,null,null,null,null,null,null,null,"0437","ДО \"НОВАТОРСКИЙ\" в г. Москва АО \"АЛЬФА-БАНК\"","119421, г. Москва, Ленинский проспект, д. 99","Москва"]
[null,null,null,null,null,null,null,null,null,null,null,null,"0440","ДО \"КУРСКАЯ\" в г. Москва АО \"АЛЬФА-БАНК\"","105120, г. Москва, ул. Земляной Вал, д. 41, стр. 1","Москва"]
[null,null,null,null,null,null,null,null,null,null,null,null,"0444","ДО \"МАРЬИНО\" в г. Москва АО \"АЛЬФА-БАНК\"","109652, г. Москва, ул. Люблинская, д. 165, корп. 1","Москва"]
[null,null,null,null,null,null,null,null,null,null,null,null,"0450","ДО \"БАЛТИЙСКИЙ\" в г. Москва АО \"АЛЬФА-БАНК\"","125315, г. Москва, пр-кт Ленинградский, д. 74, к. 1","Москва"]
[null,null,null,null,null,null,null,null,null,null,null,null,"0600","ДО \"РЕЧНОЙ ВОКЗАЛ\" в г. Москва АО \"АЛЬФА-БАНК\"","125565, г. Москва, ул.Фестивальная, д. 13, корп.1","Москва"]
[null,null,null,null,null,null,null,null,null,null,null,null,"0603","ДО \"ШУВАЛОВСКИЙ\" в г. Москва АО \"АЛЬФА-БАНК\"","119192, г. Москва, пр-кт  Мичуринский, д.7","Москва"]
[null,null,null,null,null,null,null,null,null,null,null,null,"0605","ДО \"МИТИНО\" в г. Москва АО \"АЛЬФА-БАНК\"","125430, г. Москва, ул. Митинская, д. 36, корп. 1","Москва"]
[null,null,null,null,null,null,null,null,null,null,null,null,"0610","ДО \"ЮГО-ЗАПАДНАЯ\" в г. Москва АО \"АЛЬФА-БАНК\"","119571, г. Москва, пр-кт Вернадского , д.119","Москва"]
[null,null,null,null,null,null,null,null,null,null,null,null,"0612","ДО \"БЕЛЯЕВО\" в г. Москва АО \"АЛЬФА-БАНК\"","117437, г. Москва, ул. Профсоюзная, д. 104","Москва"]
[null,null,null,null,null,null,null,null,null,null,null,null,"0616","ДО \"ДМИТРОВСКИЙ\" в г. Москва АО \"АЛЬФА-БАНК\"","127015, г. Москва, ул. Бутырская, д. 89","Москва"]
[null,null,null,null,null,null,null,null,null,null,null,null,"0617","ДО \"КРЫЛАТСКОЕ\" в г. Москва АО \"АЛЬФА-БАНК\"","121609, г. Москва, Осенний бульвар, д. 7, корп. 1","Москва"]
[null,null,null,null,null,null,null,null,null,null,null,null,"0619","ДО \"УНИВЕРСИТЕТ\" в г. Москва АО \"АЛЬФА-БАНК\"","119311, г. Москва, пр-кт Ломоносовский, д. 25 к.1","Москва"]
[null,null,null,null,null,null,null,null,null,null,null,null,"0621","ДО \"ХОРОШЕВСКИЙ\" в г. Москва АО \"АЛЬФА-БАНК\"","123007, г. Москва, ш. Хорошевское, д. 35, корп. 1","Москва"]
[null,null,null,null,null,null,null,null,null,null,null,null,"0625","ДО \"ЩУКИНСКИЙ\" в г. Москва АО \"АЛЬФА-БАНК\"","123182, г. Москва, ул. Авиационная, д. 66","Москва"]
[null,null,null,null,null,null,null,null,null,null,null,null,"0627","ДО \"АЛТУФЬЕВО\" в г. Москва АО \"АЛЬФА-БАНК\"","127349, г. Москва, ул. Лескова, д. 3Г","Москва"]
[null,null,null,null,null,null,null,null,null,null,null,null,"0628","ДО \"ПРОФСОЮЗНАЯ\" в г. Москва АО \"АЛЬФА-БАНК\"","117218, г. Москва, ул. Профсоюзная, д. 13/12","Москва"]
[null,null,null,null,null,null,null,null,null,null,null,null,"0630","ДО \"КОСИНО\" в г. Москва АО \"АЛЬФА-БАНК\"","109145, г. Москва, Лермонтовский пр-кт, д. 10, корп. 1","Москва"]
[null,null,null,null,null,null,null,null,null,null,null,null,"0631","ДО \"ЗЕЛЕНОГРАД\" в г. Москва АО \"АЛЬФА-БАНК\"","124683, г. Москва, Зеленоград, корп. 1824","Москва"]
[null,null,null,null,null,null,null,null,null,null,null,null,"0633","ДО \"ЧЕРТАНОВСКИЙ\" в г. Москва АО \"АЛЬФА-БАНК\"","117639, г. Москва, ул. Чертановская, д.1В, корп. 1","Москва"]
[null,null,null,null,null,null,null,null,null,null,null,null,"0635","ДО \"СМОЛЕНСКАЯ\" в г. Москва АО \"АЛЬФА-БАНК\"","119121, г. Москва, пл. Смоленская-Сенная, д. 27, стр.1","Москва"]
[null,null,null,null,null,null,null,null,null,null,null,null,"0636","ДО \"СХОДНЕНСКИЙ\" в г. Москва АО \"АЛЬФА-БАНК\"","125363, г. Москва, б-р Яна Райниса, д. 1","Москва"]
[null,null,null,null,null,null,null,null,null,null,null,null,"0637","ДО \"КОЛОМЕНСКИЙ\" в г. Москва АО \"АЛЬФА-БАНК\"","115470, г. Москва, пр-кт Андропова, д. 21","Москва"]
[null,null,null,null,null,null,null,null,null,null,null,null,"0638","ДО \"АВТОЗАВОДСКИЙ\" в г. Москва АО \"АЛЬФА-БАНК\"","115280, г. Москва, ул. Автозаводская, д. 5","Москва"]
[null,null,null,null,null,null,null,null,null,null,null,null,"0642","ДО \"ЦАРИЦЫНО\" в г. Москва АО \"АЛЬФА-БАНК\"","115516, г.Москва, ул.Луганская, д.10","Москва"]
[null,null,null,null,null,null,null,null,null,null,null,null,"0643","ДО \"ОТРАДНОЕ\" в г. Москва АО \"АЛЬФА-БАНК\"","127566, г. Москва, ул. Декабристов, д. 17","Москва"]
[null,null,null,null,null,null,null,null,null,null,null,null,"0644","ДО \"БУЛЬВАР ДМИТРИЯ ДОНСКОГО\" в г.Москва АО \"АЛЬФА-БАНК\"","117216, г. Москва, б-р Дмитрия Донского, д. 11","Москва"]
[null,null,null,null,null,null,null,null,null,null,null,null,"0645","ДО \"ПРАЖСКИЙ\" в г. Москва АО \"АЛЬФА-БАНК\"","117519, г. Москва, ул. Красного Маяка, д. 2Б","Москва"]
[null,null,null,null,null,null,null,null,null,null,null,null,"0646","ДО \"ТИМИРЯЗЕВСКИЙ\" в г. Москва АО \"АЛЬФА-БАНК\"","127434, г. Москва, ш. Дмитровское, д. 15, корпус 1","Москва"]
[null,null,null,null,null,null,null,null,null,null,null,null,"0651","ДО \"ВОЙКОВСКИЙ\" в г. Москва АО \"АЛЬФА-БАНК\"","125171, г. Москва, ш. Ленинградское, д. 15","Москва"]
[null,null,null,null,null,null,null,null,null,null,null,null,"0654","ДО \"ПРОЛЕТАРСКИЙ\" в г. Москва АО \"АЛЬФА-БАНК\"","109044, г. Москва, 3-й Крутицкий переулок, д. 13","Москва"]
[null,null,null,null,null,null,null,null,null,null,null,null,"0655","ДО \"КИЕВСКОЕ ШОССЕ\" в г. Москва АО\"АЛЬФА-БАНК\"","108811, г. Москва, п Московский, ш.Киевское  22-й км, вл.4, стр.1","Москва"]
[null,null,null,null,null,null,null,null,null,null,null,null,"0660","ДО \"КОМСОМОЛЬСКАЯ\" в г. Москва АО \"АЛЬФА-БАНК\"","107078, г. Москва,  ул. Каланчевская, д. 27","Москва"]
[null,null,null,null,null,null,null,null,null,null,null,null,"0661","ДО \"БРАТИСЛАВСКАЯ\" в г. Москва АО \"АЛЬФА-БАНК\"","109341, г. Москва, ул. Перерва, д. 43, корп. 1","Москва"]
[null,null,null,null,null,null,null,null,null,null,null,null,"0663","ДО \"ПАВЕЛЕЦКИЙ\" в г. Москва АО \"АЛЬФА-БАНК\"","115054, г. Москва, ул. Валовая, д. 6","Москва"]
[null,null,null,null,null,null,null,null,null,null,null,null,"0664","ДО \"БУЛЬВАР АДМ. УШАКОВА\" в г. Москва АО \"АЛЬФА-БАНК\"","117042, г. Москва, улица Венёвская, д. 6","Москва"]
[null,null,null,null,null,null,null,null,null,null,null,null,"0669","ДО \"Щелковский\"","107241, г. Москва, ул. Уральская, д. 1","Москва"]
[null,null,null,null,null,null,null,null,null,null,null,null,"1187","ДО \"РАССКАЗОВКА\" в г. Москва АО \"АЛЬФА-БАНК\"","108849, г. Москва, пос. Внуковское,ул. Корнея Чуковского, д. 2","Москва"]
[null,null,null,null,null,null,null,null,null,null,null,null,"1512","ДО \"МОЛОДЕЖНЫЙ\" в г. Москва АО \"АЛЬФА-БАНК\"","121552, г. Москва, ул. Ярцевская, д. 27, корп. 1","Москва"]
[null,null,null,null,null,null,null,null,null,null,null,null,"1513","ДО \"НЕКРАСОВКА\" в г. Москва АО \"АЛЬФА-БАНК\"","111674, г. Москва, ул. Покровская,д. 20","Москва"]
[null,null,null,null,null,null,null,null,null,null,null,null,"1515","ДО \"ПЕРВОМАЙСКИЙ\" в г. Москва АО \"АЛЬФА-БАНК\"","105043, г. Москва, ул. 9-я Парковая, д. 23","Москва"]
[null,null,null,null,null,null,null,null,null,null,null,null,"1516","ДО \"ВОРОТЫНСКИЙ\" в г. Москва АО \"АЛЬФА-БАНК\"","125466, г. Москва, ул. Воротынская,д. 2","Москва"]
[null,null,null,null,null,null,null,null,null,null,null,null,"1520","ДО \"ДОМОДЕДОВСКИЙ\" в г. Москва АО \"АЛЬФА-БАНК\"","115583, г. Москва, ул. Генерала Белова, д. 35","Москва"]
[null,null,null,null,null,null,null,null,null,null,null,null,"1521","ДО \"БАБУШКИНСКИЙ\" в г. Москва АО \"АЛЬФА-БАНК\"","129327, г. Москва, ул. Менжинского, д. 23 корп.1","Москва"]
[null,null,null,null,null,null,null,null,null,null,null,null,"1523","ДО \"МАЛАЯ БРОННАЯ\" в г. Москва  АО\"АЛЬФА-БАНК\"","123104, г. Москва, ул. Малая Бронная д.15 Б","Москва"]
[null,null,null,null,null,null,null,null,null,null,null,null,"1537","ДО \"МАЯКОВСКАЯ\" в г. Москва АО \"АЛЬФА-БАНК\"","125375, г. Москва, ул. Тверская, д.28, корп. 1","Москва"]
[null,null,null,null,null,null,null,null,null,null,null,null,"1598","ДОПОЛНИТЕЛЬНЫЙ ОФИС \"АВИАПАРК\" в г.Москва АО \"АЛЬФА-БАНК\"","125252, г. Москва, ул. Авиаконструктора Микояна, д. 12","Москва"]
[null,null,null,null,null,null,null,null,null,null,null,null,"1599","ДО \"ПЛОЩАДЬ ИЛЬИЧА\" в г. Москва АО\"АЛЬФА-БАНК\"","109544, г. Москва, б-р Энтузиастов,д. 2","Москва"]
[null,null,null,null,null,null,null,null,null,null,null,null,"1609","ДО \"МЕДВЕДКОВСКИЙ\" в г. Москва АО \"АЛЬФА-БАНК\"","127282, г. Москва, ул. Грекова, д.3, корп. 3","Москва"]
[null,null,null,null,null,null,null,null,null,null,null,null,"1801","ДО \"УЛ. НАРОДНОГО ОПОЛЧЕНИЯ\" в г. Москва АО \"АЛЬФА-БАНК\"","123060, г. Москва, ул. Народного Ополчения, д. 45","Москва"]
[null,null,null,null,null,null,null,null,null,null,null,null,"1838","ДО \"МОСКВА-СИТИ\" в г. Москва АО \"АЛЬФА-БАНК\"","123112, г. Москва, Пресненская наб., д. 2","Москва"]
[null,null,null,null,null,null,null,null,null,null,null,null,"8124","ДО \"ЛЮБЛИНО\" в г. Москва АО \"АЛЬФА-БАНК\"","109386, г. Москва, ул. Совхозная, д. 39","Москва"]
[null,null,null,null,null,null,null,null,null,null,null,null,"0658","ДО \"ТЕХНОПАРК\" в г. Москва АО \"АЛЬФА-БАНК\"","115432, г. Москва, пр-кт Андропова, д.18, корп.6","Москва"]
[null,null,null,null,null,null,null,null,null,null,null,null,"1504","ДО \"ЯСЕНЕВО\" в г. Москва АО \"АЛЬФА-БАНК\"","117588, г. Москва, пр-кт Новоясеневский, д. 7","Москва"]
[null,null,null,null,null,null,null,null,null,null,null,null,"8094","ДО \"МОСКОВСКИЙ\" в г. Московский АО\"АЛЬФА-БАНК\"","108811, г. Москва, г. Московский, ул. Никитина, д. 2","Московский"]
[null,null,null,null,null,null,null,null,null,null,null,null,"1800","ДО \"Мурино-бульвар Менделеева\" в г.Мурино АО \"АЛЬФА-БАНК\"","188677, г. Мурино, б-р Менделеева, д. 11, корп.1","Мурино"]
[null,null,null,null,null,null,null,null,null,null,null,null,"0445","ДО \"Мурманск-площадь Пять углов\" вг. Мурманск АО \"АЛЬФА-БАНК\"","183038, г. Мурманск, пр-кт Ленина, д. 82","Мурманск"]
[null,null,null,null,null,null,null,null,null,null,null,null,"0823","ДО \"Мурманск-проспект Ленина\" в г.Мурманск АО \"АЛЬФА-БАНК\"","183038, г. Мурманск, пр-кт Ленина, д. 19А","Мурманск"]
[null,null,null,null,null,null,null,null,null,null,null,null,"1066","ДО \"Мурманск-Кольский проспект\" в г. Мурманск АО \"АЛЬФА-БАНК\"","183052, г. Мурманск, пр-кт Кольский, д. 158","Мурманск"]
[null,null,null,null,null,null,null,null,null,null,null,null,"1189","ДО \"Муром-Вознесенская площадь\" в г. Муром АО \"АЛЬФА-БАНК\"","602267, г. Муром, ул. Московская, д. 47","Муром"]
[null,null,null,null,null,null,null,null,null,null,null,null,"0622","ДО \"МЫТИЩИ\" в г. Мытищи АО \"АЛЬФА-БАНК\"","141006, г. Мытищи, пр-кт Олимпийский, д.19, корп.1","Мытищи"]
[null,null,null,null,null,null,null,null,null,null,null,null,"0665","ДО \"МЫТИЩИ-АЙСБЕРГ\" в г. Мытищи АО\"АЛЬФА-БАНК\"","141008, г. Мытищи,ул. Мира, д. 26А","Мытищи"]
[null,null,null,null,null,null,null,null,null,null,null,null,"0749","ДО \"НАБЕРЕЖНЫЕ ЧЕЛНЫ-БОРОВЕЦКИЙ\" АО\"АЛЬФА-БАНК\" в г.Набережные Челны","423831, г. Набережные Челны, просп. Хасана Туфана, д. 29б","Набережные Челны"]
[null,null,null,null,null,null,null,null,null,null,null,null,"0853","ДО \"Набережные Челны-Центральный\" вг.Набережные Челны АО \"АЛЬФА-БАНК\"","423812, г. Набережные Челны, пр-кт Мира, д.24М","Набережные Челны"]
[null,null,null,null,null,null,null,null,null,null,null,null,"8104","ДО \"Набережные Челны-ЗЯБ\" в г. Набережные Челны АО \"АЛЬФА-БАНК\"","423803, г. Набережные Челны, Набережночелнинскийпр-кт, д. 7","Набережные Челны"]
[null,null,null,null,null,null,null,null,null,null,null,null,"8131","ДО \"Назрань-улица Московская\" в г.Назрань АО \"АЛЬФА-БАНК\"","386102, г. Назрань, ул. Московская, д. 28","Назрань"]
[null,null,null,null,null,null,null,null,null,null,null,null,"8121","ДО \"Нальчик-проспект Шогенцукова\" вг. Нальчик АО \"АЛЬФА-БАНК\"","360051, г. Нальчик, пр-кт Шогенцукова, д. 21","Нальчик"]
[null,null,null,null,null,null,null,null,null,null,null,null,"1632","ДО \"НАРО-ФОМИНСК\" в г. Наро-ФоминскАО \"АЛЬФА-БАНК\"","143300, г. Наро-Фоминск, пл. Свободы, д. 2","Наро-Фоминск"]
[null,null,null,null,null,null,null,null,null,null,null,null,"0877","ДО \"Находка-Северный проспект\" в г.Находка АО \"АЛЬФА-БАНК\"","692914, г. Находка, пр-кт Северный, д.2, корпус 1","Находка"]
[null,null,null,null,null,null,null,null,null,null,null,null,"1198","ДО \"Невинномысск-ул. Гагарина\" в г.Невинномысск АО \"АЛЬФА-БАНК\"","357100, г. Невинномысск, ул. Гагарина, д. 70Б","Невинномысск"]
[null,null,null,null,null,null,null,null,null,null,null,null,"8003","ДО \"Нерюнгри-проспект Ленина\" в г.Нерюнгри АО \"АЛЬФА-БАНК\"","678967, г. Нерюнгри, пр-кт Ленина, д. 6","Нерюнгри"]
[null,null,null,null,null,null,null,null,null,null,null,null,"1159","ДО \"Нефтекамск-улица Ленина\" в г. Нефтекамск АО \"АЛЬФА-БАНК\"","452680, г. Нефтекамск, улица Ленина,д. 19Е","Нефтекамск"]
[null,null,null,null,null,null,null,null,null,null,null,null,"1161","ДО \"Нефтеюганск-улица Нефтяников\" вг. Нефтеюганск АО \"АЛЬФА-БАНК\"","628306, г. Нефтеюганск, 15 микрорайон, 8б","Нефтеюганск"]
[null,null,null,null,null,null,null,null,null,null,null,null,"0465","ДО \"Нижневартовск-Центральный\" в г.Нижневартовск АО \"АЛЬФА-БАНК\"","628606, г. Нижневартовск, пр-т Победы, д. 11","Нижневартовск"]
[null,null,null,null,null,null,null,null,null,null,null,null,"0708","ДО \"Нижневартовск-Космос\" в г. Нижневартовск АО \"АЛЬФА-БАНК\"","628611, г. Нижневартовск, ул.Ленина, д. 17а","Нижневартовск"]
[null,null,null,null,null,null,null,null,null,null,null,null,"1149","ДО \"Нижнекамск-проспект Мира\" в г.Нижнекамск АО \"АЛЬФА-БАНК\"","423571, г. Нижнекамск, пр-кт Мира, д. 61Г","Нижнекамск"]
[null,null,null,null,null,null,null,null,null,null,null,null,"0483","ДО \"Нижний Новгород-Центральный\" вг. Нижний Новгород АО \"АЛЬФА-БАНК\"","603024, г. Нижний Новгород, ул. Белинского , д.61, корп.2","Нижний Новгород"]
[null,null,null,null,null,null,null,null,null,null,null,null,"0740","ДО \"Нижний Новгород-Мещерский\" в г.Нижний Новгород АО \"АЛЬФА-БАНК\"","603002, г. Нижний Новгород, ул. Фильченкова, д.10","Нижний Новгород"]
[null,null,null,null,null,null,null,null,null,null,null,null,"0790","ДО \"Нижний Новгород-Заречье\" в г. Нижний Новгород АО \"АЛЬФА-БАНК\"","603135, г. Нижний Новгород, пр-кт Ленина, д. 45","Нижний Новгород"]
[null,null,null,null,null,null,null,null,null,null,null,null,"0831","ДО \"Нижний Новгород-Сормовский\" в г. Нижний Новгород АО \"АЛЬФА-БАНК\"","603003, г. Нижний Новгород, ул. Коминтерна, д. 164, пом. П5.","Нижний Новгород"]
[null,null,null,null,null,null,null,null,null,null,null,null,"0835","ДО \"Нижний Новгород-Горьковский\" вг. Нижний Новгород АО \"АЛЬФА-БАНК\"","603035, г. Нижний Новгород, ул. Горького Максима, д. 140","Нижний Новгород"]
[null,null,null,null,null,null,null,null,null,null,null,null,"1117","ДО \"Нижний Новгород-ул.Веденяпина\"в г.Нижний Новгород АО \"АЛЬФА-БАНК\"","603004, г. Нижний Новгород, пр-кт Ленина, д. 100Д, пом. П8","Нижний Новгород"]
[null,null,null,null,null,null,null,null,null,null,null,null,"0964","ДО \"Нижний Тагил-проспект Ленина\" вг. Нижний Тагил АО \"АЛЬФА-БАНК\"","622034, г. Нижний Тагил, пр-кт Ленина, д. 61","Нижний Тагил"]
[null,null,null,null,null,null,null,null,null,null,null,null,"0969","ДО \"Нижний Тагил-Вагоностроительный\" в г. Нижний Тагил АО \"АЛЬФА-БАНК\"","622007, г. Нижний Тагил, пр-кт Вагоностроителей, д. 13","Нижний Тагил"]
[null,null,null,null,null,null,null,null,null,null,null,null,"1780","ДО \"Новоалтайск-ул. Октябрьская\" вг. Новоалтайск АО \"АЛЬФА-БАНК\"","658087, г. Новоалтайск, ул. Октябрьская, д. 13","Новоалтайск"]
[null,null,null,null,null,null,null,null,null,null,null,null,"0693","ДО \"Новокузнецк-пр-кт Металлургов\"в г. Новокузнецк АО \"АЛЬФА-БАНК\"","654007, г. Новокузнецк, пр-кт Металлургов, д. 32","Новокузнецк"]
[null,null,null,null,null,null,null,null,null,null,null,null,"0962","ДО \"Новокузнецк-улица Тольятти\" в г. Новокузнецк АО \"АЛЬФА-БАНК\"","654080, г. Новокузнецк, ул.Тольятти, д 44","Новокузнецк"]
[null,null,null,null,null,null,null,null,null,null,null,null,"8170","ДО \"Новокузнецк-проспект Ермакова\"в г. Новокузнецк АО \"АЛЬФА-БАНК\"","654007, г. Новокузнецк, пр-кт Н. С. Ермакова, зд.9А","Новокузнецк"]
[null,null,null,null,null,null,null,null,null,null,null,null,"1195","ДО \"Новокуйбышевск-ул. Миронова\" вг. Новокуйбышевск АО \"АЛЬФА-БАНК\"","446200, г. Новокуйбышевск, ул. Миронова, д. 3","Новокуйбышевск"]
[null,null,null,null,null,null,null,null,null,null,null,null,"1152","ДО \"Новомосковск-Городская пл\" в г.Новомосковск АО \"АЛЬФА-БАНК\"","301650, г. Новомосковск, ул. Комсомольская/ул. Трудовые резервы, д.21/34, пом. 1-4, 6-11","Новомосковск"]
[null,null,null,null,null,null,null,null,null,null,null,null,"0883","ДО \"Новороссийск-улица Толстого\" вг. Новороссийск АО \"АЛЬФА-БАНК\"","353905, г. Новороссийск, ул. Толстого, д. 2Г","Новороссийск"]
[null,null,null,null,null,null,null,null,null,null,null,null,"1110","ДО \"Новороссийск-Южный парк\" в г. Новороссийск АО \"АЛЬФА-БАНК\"","353915, г. Новороссийск, пр-кт Дзержинского, д. 205 А","Новороссийск"]
[null,null,null,null,null,null,null,null,null,null,null,null,"0481","ДО \"Новосибирск-Сибирь\" в г. Новосибирск АО \"АЛЬФА-БАНК\"","630004, г. Новосибирск, ул. Ленина, д. 52","Новосибирск"]
[null,null,null,null,null,null,null,null,null,null,null,null,"0727","ДО \"Новосибирск-площадь Калинина\" вг. Новосибирск АО \"АЛЬФА-БАНК\"","630082, г. Новосибирск, улица ДусиКовальчук, д. 179/4","Новосибирск"]
[null,null,null,null,null,null,null,null,null,null,null,null,"0797","ДО \"Новосибирск-Горский\" в г. Новосибирск АО \"АЛЬФА-БАНК\"","630073, г. Новосибирск, пр-кт Карла Маркса, д. 55","Новосибирск"]
[null,null,null,null,null,null,null,null,null,null,null,null,"0811","ДО \"Новосибирск-Мичуринский\" в г. Новосибирск АО \"АЛЬФА-БАНК\"","630099, г. Новосибирск, ул. Мичурина, д. 23.","Новосибирск"]
[null,null,null,null,null,null,null,null,null,null,null,null,"1099","ДО \"Новосибирск-площадь Ленина\" в г. Новосибирск АО \"АЛЬФА-БАНК\"","630099, г. Новосибирск, ул. Орджоникидзе, д. 23","Новосибирск"]
[null,null,null,null,null,null,null,null,null,null,null,null,"1102","ДО \"Новосибирск-площадь Маркса\" в г. Новосибирск АО \"АЛЬФА-БАНК\"","630078, г. Новосибирск, пл. Карла Маркса, д. 5.","Новосибирск"]
[null,null,null,null,null,null,null,null,null,null,null,null,"1131","ДО \"Новосибирск-Золотая Нива\" в г.Новосибирск АО \"АЛЬФА-БАНК\"","630089, г. Новосибирск, ул. Бориса Богаткова, д.201/1","Новосибирск"]
[null,null,null,null,null,null,null,null,null,null,null,null,"1137","ДО \"Новосибирск-Академгородок\" в г.Новосибирск АО \"АЛЬФА-БАНК\"","630090, г. Новосибирск, ул. Ильича, д.6","Новосибирск"]
[null,null,null,null,null,null,null,null,null,null,null,null,"1145","ДО \"Новосибирск-улица Кирова\" в г.Новосибирск АО \"АЛЬФА-БАНК\"","630102, г. Новосибирск, ул. Кирова,д. 46/1","Новосибирск"]
[null,null,null,null,null,null,null,null,null,null,null,null,"1837","ДО \"Новосибирск-улица Титова\" в г.Новосибирск АО \"АЛЬФА-БАНК\"","630054, г. Новосибирск, ул. Титова, зд. 22а","Новосибирск"]
[null,null,null,null,null,null,null,null,null,null,null,null,"0828","ДО \"Новотроицк-Металлург\" в г. Новотроицк АО \"АЛЬФА-БАНК\"","462353, г. Новотроицк, ул. Советская, д. 52","Новотроицк"]
[null,null,null,null,null,null,null,null,null,null,null,null,"1653","ДО \"Новоуральск-ул. Комсомольская\"в г. Новоуральск АО \"АЛЬФА-БАНК\"","624132, г. Новоуральск, ул. Комсомольская, зд. 6А","Новоуральск"]
[null,null,null,null,null,null,null,null,null,null,null,null,"1180","ДО \"Новочебоксарск-Восточный\" в г.Новочебоксарск АО \"АЛЬФА-БАНК\"","429965, г. Новочебоксарск, ул. Советская, д. 15","Новочебоксарск"]
[null,null,null,null,null,null,null,null,null,null,null,null,"0719","ДО \"Новочеркасск-площадь Платова\" вг. Новочеркасск АО \"АЛЬФА-БАНК\"","346400, г.Новочеркасск, ул.Московская, 1/пр. Платовский, д. 90","Новочеркасск"]
[null,null,null,null,null,null,null,null,null,null,null,null,"1689","ДО \"Новошахтинск-пр-кт Ленина\" в г.Новошахтинск АО \"АЛЬФА-БАНК\"","346918, г. Новошахтинск, пр-кт Ленина, д. 5а","Новошахтинск"]
[null,null,null,null,null,null,null,null,null,null,null,null,"8103","ДО \"Новый Уренгой-Мирный\" в г. Новый Уренгой АО \"АЛЬФА-БАНК\"","629303, г. Новый Уренгой, мкр. Мирный, д. 6, корп. 2","Новый Уренгой"]
[null,null,null,null,null,null,null,null,null,null,null,null,"1528","ДОПОЛНИТЕЛЬНЫЙ ОФИС \"НОГИНСК\" в г.Ногинск АО \"АЛЬФА-БАНК\"","142400, г. Ногинск, ул. 3-го Интернационала, д. 62","Ногинск"]
[null,null,null,null,null,null,null,null,null,null,null,null,"8097","ДО \"Ноябрьск-проспект Мира\" в г. Ноябрьск АО \"АЛЬФА-БАНК\"","629807, г. Ноябрьск, пр-кт Мира, д. 56","Ноябрьск"]
[null,null,null,null,null,null,null,null,null,null,null,null,"1815","ДО \"Нягань-Парковый\" в г. Нягань АО\"АЛЬФА-БАНК\"","628181, г. Нягань, мкр. 1-й, д.1","Нягань"]
[null,null,null,null,null,null,null,null,null,null,null,null,"1807","ДО \"Обнинск-проспект Маркса\" в г. Обнинск АО \"АЛЬФА-БАНК\"","249039, г. Обнинск, пр-кт Маркса, д. 50","Обнинск"]
[null,null,null,null,null,null,null,null,null,null,null,null,"0614","ДО \"ОДИНЦОВО\" в г. Одинцово АО \"АЛЬФА-БАНК\"","143005, г. Одинцово, ш. Можайское, д. 76А","Одинцово"]
[null,null,null,null,null,null,null,null,null,null,null,null,"1160","ДО \"Октябрьский-пр-кт Ленина\" в г.Октябрьский АО \"АЛЬФА-БАНК\"","452614, г. Октябрьский, пр-кт Ленина, д. 5","Октябрьский"]
[null,null,null,null,null,null,null,null,null,null,null,null,"0447","ДО \"Омск-Центральный\" в г. Омск АО\"АЛЬФА-БАНК\"","644024, г. Омск, ул. Маршала Жукова угол ул. 10 Лет Октября, д. 25","Омск"]
[null,null,null,null,null,null,null,null,null,null,null,null,"0720","ДО \"Омск-Парк культуры\" в г. Омск АО \"АЛЬФА-БАНК\"","644021, г. Омск, ул. Богдана Хмельницкого, д. 162","Омск"]
[null,null,null,null,null,null,null,null,null,null,null,null,"0743","ДО \"Омск-Левобережный\" в г. Омск АО\"АЛЬФА-БАНК\"","644074, г. Омск, ул. 70 лет Октября, д. 13/3","Омск"]
[null,null,null,null,null,null,null,null,null,null,null,null,"0778","ДО \"Омск-Красный путь\" в г. Омск АО\"АЛЬФА-БАНК\"","644043, г. Омск, ул. Красный Путь, д. 61","Омск"]
[null,null,null,null,null,null,null,null,null,null,null,null,"0815","ДО \"Омск-проспект Мира\" в г. Омск АО \"АЛЬФА-БАНК\"","644029, г. Омск, пр-кт  Мира, д. 54","Омск"]
[null,null,null,null,null,null,null,null,null,null,null,null,"0873","ДО \"Омск-проспект Маркса\" в г. ОмскАО \"АЛЬФА-БАНК\"","644010, г. Омск, пр-кт Маркса,д. 10","Омск"]
[null,null,null,null,null,null,null,null,null,null,null,null,"8159","ДО \"Омск-Привокзальный\" в г. Омск АО \"АЛЬФА-БАНК\"","644020, г. Омск, пр-кт Карла Маркса, д. 84","Омск"]
[null,null,null,null,null,null,null,null,null,null,null,null,"8183","ДО \"Орел-улица Московская\" в г. Орел АО \"АЛЬФА-БАНК\"","302030, г. Орел,ул. Московская, д. 28","Орел"]
[null,null,null,null,null,null,null,null,null,null,null,null,"1164","ДО \"Орел-Комсомольская площадь\" в г. Орел АО \"АЛЬФА-БАНК\"","302026, г. Орел,ул. Комсомольская, д. 78","Орёл"]
[null,null,null,null,null,null,null,null,null,null,null,null,"0461","ДО \"Оренбург-Центральный\" в г. Оренбург АО \"АЛЬФА-БАНК\"","460024, г. Оренбург, ул.Маршала Жукова, д. 26","Оренбург"]
[null,null,null,null,null,null,null,null,null,null,null,null,"0791","ДО \"Оренбург-улица Чкалова\" в г. Оренбург АО \"АЛЬФА-БАНК\"","460058, г. Оренбург, ул. Чкалова, д. 35/1","Оренбург"]
[null,null,null,null,null,null,null,null,null,null,null,null,"1119","ДО \"Оренбург-улица Салмышская\" в г.Оренбург АО \"АЛЬФА-БАНК\"","460052, г. Оренбург, ул. Салмышская, д.37","Оренбург"]
[null,null,null,null,null,null,null,null,null,null,null,null,"1191","ДО \"ОРЕХОВО-ЗУЕВО\" в г. Орехово-Зуево АО \"АЛЬФА-БАНК\"","142600, г. Орехово-Зуево, ул. Ленина, д. 53","Орехово-Зуево"]
[null,null,null,null,null,null,null,null,null,null,null,null,"0850","ДО \"Орск-проспект Ленина\" в г. ОрскАО \"АЛЬФА-БАНК\"","462431, г. Орск, пр-кт Ленина, д. 78","Орск"]
[null,null,null,null,null,null,null,null,null,null,null,null,"1614","ДО \"Павлово-Центральный\" в г. Павлово АО \"АЛЬФА-БАНК\"","606100, г. Павлово, ул. Красноармейская, д. 33,стр. 1","Павлово"]
[null,null,null,null,null,null,null,null,null,null,null,null,"1675","ДО \"ПАВЛОВСКИЙ ПОСАД\" в г. Павловский Посад АО \"АЛЬФА-БАНК\"","142500, г. Павловский Посад, ул. Большая Покровская, д. 10","Павловский Посад"]
[null,null,null,null,null,null,null,null,null,null,null,null,"0746","ДО \"Пенза-Центральный\" в г. Пенза АО \"АЛЬФА-БАНК\"","440000, г. Пенза, ул. Московская, д. 73","Пенза"]
[null,null,null,null,null,null,null,null,null,null,null,null,"1144","ДО  \"Пенза-Сура\" в г. Пенза АО \"АЛЬФА-БАНК\"","440008, г. Пенза, ул. Суворова, д. 139","Пенза"]
[null,null,null,null,null,null,null,null,null,null,null,null,"8125","ДО \"Пенза-проспект Строителей\" в г.Пенза АО \"АЛЬФА-БАНК\"","440062, г. Пенза, пр-кт Строителей, д. 40","Пенза"]
[null,null,null,null,null,null,null,null,null,null,null,null,"0970","ДО \"Первоуральск-улица Ватутина\" вг. Первоуральск АО \"АЛЬФА-БАНК\"","623104, г. Первоуральск, ул. Ватутина, д. 37","Первоуральск"]
[null,null,null,null,null,null,null,null,null,null,null,null,"0724","ДО \"Пермь-Балатовский\" в г. Пермь АО \"АЛЬФА-БАНК\"","614066, г. Пермь,улица Мира, д. 70","Пермь"]
[null,null,null,null,null,null,null,null,null,null,null,null,"0803","ДО \"Пермь-Кама\" в г. Пермь АО \"АЛЬФА-БАНК\"","614000, г. Пермь,ул. Ленина, д. 66","Пермь"]
[null,null,null,null,null,null,null,null,null,null,null,null,"0834","ДО \"Пермь-бульвар Гагарина\" в г. Пермь АО \"АЛЬФА-БАНК\"","614077, г. Пермь, бульвар Гагарина, д. 67","Пермь"]
[null,null,null,null,null,null,null,null,null,null,null,null,"0845","ДО \"Пермь-Кристалл\" в г. Пермь АО \"АЛЬФА-БАНК\"","614039, г. Пермь, Комсомольский пр-кт, 49","Пермь"]
[null,null,null,null,null,null,null,null,null,null,null,null,"0994","ДО \"Пермь-Дягилевский\" в г. Пермь АО \"АЛЬФА-БАНК\"","614000, г. Пермь, ул.Советская, д.45","Пермь"]
[null,null,null,null,null,null,null,null,null,null,null,null,"1051","ДО \"Пермь-Закамск\" в г. Пермь АО \"АЛЬФА-БАНК\"","614113, г. Пермь, ул. Автозаводская, д. 44а","Пермь"]
[null,null,null,null,null,null,null,null,null,null,null,null,"1706","ДО \"Петергоф-Николаевский\" в г. Петергоф АО \"АЛЬФА-БАНК\"","198510, г. Санкт-Петербург, г. Петергоф, пр-кт Санкт-Петербургский, д.29","Петергоф"]
[null,null,null,null,null,null,null,null,null,null,null,null,"0712","ДО \"Петрозаводск-проспект Ленина\" вг. Петрозаводск АО \"АЛЬФА-БАНК\"","185035, г. Петрозаводск, пр-т Ленина, д. 26","Петрозаводск"]
[null,null,null,null,null,null,null,null,null,null,null,null,"1073","ДО \"Петрозаводск-Древлянка\" в г. Петрозаводск АО \"АЛЬФА-БАНК\"","185014, г. Петрозаводск, ш. Лососинское, д. 26","Петрозаводск"]
[null,null,null,null,null,null,null,null,null,null,null,null,"1819","ДО \"П-Камчатский-Центральный\" в г.П-Камчатский АО \"АЛЬФА-БАНК\"","683024, г. Петропавловск-Камчатский, пр-кт 50 лет Октября, д. 24а","Петропавловск-Камчатский"]
[null,null,null,null,null,null,null,null,null,null,null,null,"0624","ДО \"ПОДОЛЬСКИЙ\" в г. Подольск АО \"АЛЬФА-БАНК\"","142100, г. Подольск, ул. Рабочая, д. 4","Подольск"]
[null,null,null,null,null,null,null,null,null,null,null,null,"8175","ДО \"ПОДОЛЬСК-УЛ. АК. ДОЛЛЕЖАЛЯ\" в г. Подольск АО \"АЛЬФА-БАНК\"","142118, г. Подольск, ул. Академика Доллежаля, д. 3, стр. 2","Подольск"]
[null,null,null,null,null,null,null,null,null,null,null,null,"0687","ДО \"Прокопьевск-улица Шишкина\" в г.Прокопьевск АО \"АЛЬФА-БАНК\"","653039, г. Прокопьевск, ул. Шишкина, д. 11","Прокопьевск"]
[null,null,null,null,null,null,null,null,null,null,null,null,"0689","ДО \"Псков-Центральный\" в г. Псков АО \"АЛЬФА-БАНК\"","180004, г. Псков, ул.Яна Фабрициуса, д. 27, пом. 1005","Псков"]
[null,null,null,null,null,null,null,null,null,null,null,null,"1065","ДО \"Псков-Рижский проспект\" в г. Псков АО \"АЛЬФА-БАНК\"","180007, г. Псков, пр-т Рижский, д.16","Псков"]
[null,null,null,null,null,null,null,null,null,null,null,null,"1733","ДО \"Пушкин-улица Ленинградская\" в г. Пушкин АО \"АЛЬФА-БАНК\"","196608, г. Санкт-Петербург, г. Пушкин, ул. Ленинградская, д. 29","Пушкин"]
[null,null,null,null,null,null,null,null,null,null,null,null,"1538","ДО \"ПУШКИНО\" в г. Пушкино АО \"АЛЬФА-БАНК\"","141207, г. Пушкино, Московский проспект, д. 9/2","Пушкино"]
[null,null,null,null,null,null,null,null,null,null,null,null,"1172","ДО \"Пятигорск-улица Октябрьская\" вг. Пятигорск АО \"АЛЬФА-БАНК\"","357500, г. Пятигорск, ул. Октябрьская, д. 1","Пятигорск"]
[null,null,null,null,null,null,null,null,null,null,null,null,"1182","ДО \"РАМЕНСКОЕ\" в г. Раменское АО \"АЛЬФА-БАНК\"","140108, г. Раменское, ул. Михалевича, д. 1а","Раменское"]
[null,null,null,null,null,null,null,null,null,null,null,null,"1795","ДО \"Ревда-улица Горького\" в г. Ревда АО \"АЛЬФА-БАНК\"","623286, г. Ревда, ул. Максима Горького, д. 30","Ревда"]
[null,null,null,null,null,null,null,null,null,null,null,null,"0648","ДО \"РЕУТОВ\" в г. Реутов АО \"АЛЬФА-БАНК\"","143965, г. Реутов, ш. Носовихинское , д. 7","Реутов"]
[null,null,null,null,null,null,null,null,null,null,null,null,"1827","ДО \"Ржев-улица Ленина\" в г. Ржев АО\"АЛЬФА-БАНК\"","172390, г. Ржев,ул. Ленина, д. 7","Ржев"]
[null,null,null,null,null,null,null,null,null,null,null,null,"1604","ДО \"Россошь-проспект Труда\" в г. Россошь АО \"АЛЬФА-БАНК\"","396658, г. Россошь, пр-кт Труда, д. 4б","Россошь"]
[null,null,null,null,null,null,null,null,null,null,null,null,"0441","ДО \"Ростов нД-Донской\" в г. Ростов-на-Дону АО \"АЛЬФА-БАНК\"","344002, г. Ростов-на-Дону, ул. Темерницкая, д. 80/31/81","Ростов-на-Дону"]
[null,null,null,null,null,null,null,null,null,null,null,null,"0744","ДО \"Ростов нД-Нахичевань\" в г. Ростов-на-Дону АО \"АЛЬФА-БАНК\"","344116, г. Ростов-на-Дону, Пролетарский р-н,ул. 20-я линия, д. 4/3/13","Ростов-на-Дону"]
[null,null,null,null,null,null,null,null,null,null,null,null,"0832","ДО \"Ростов нД-ул. Красноармейская\"в г. Ростов-на-Дону АО \"АЛЬФА-БАНК\"","344010, г. Ростов-на-Дону, ул.Красноармейская, д. 170","Ростов-на-Дону"]
[null,null,null,null,null,null,null,null,null,null,null,null,"0837","ДО \"Ростов нД-Западный\" в г. Ростов-на-Дону АО \"АЛЬФА-БАНК\"","344091, г. Ростов-на-Дону, пр. Коммунистический, д.27","Ростов-на-Дону"]
[null,null,null,null,null,null,null,null,null,null,null,null,"0857","ДО \"Ростов нД-площадь Космонавтов\"в г. Ростов-на-Дону АО \"АЛЬФА-БАНК\"","344092, г. Ростов-На-Дону, пр-кт Космонавтов,д. 15","Ростов-на-Дону"]
[null,null,null,null,null,null,null,null,null,null,null,null,"0868","ДО \"Ростов нД-парк Горького\" в г. Ростов-на-Дону АО \"АЛЬФА-БАНК\"","344002, г. Ростов-на-Дону, пр. Буденновский, д.42/50","Ростов-на-Дону"]
[null,null,null,null,null,null,null,null,null,null,null,null,"1126","ДО \"Ростов нД-пр. Королева\" г. Ростов-на-Дону АО \"АЛЬФА-БАНК\"","344113, г. Ростов-на-Дону, пр-кт Королева, д. 14а","Ростов-на-Дону"]
[null,null,null,null,null,null,null,null,null,null,null,null,"1626","ДО \"Рубцовск-пр-кт Ленина\" в г. Рубцовск АО \"АЛЬФА-БАНК\"","658210, г. Рубцовск, пр-кт Ленина, д. 46","Рубцовск"]
[null,null,null,null,null,null,null,null,null,null,null,null,"1532","ДО \"Рыбинск-Авиационный\" в г. Рыбинск АО \"АЛЬФА-БАНК\"","152903, г. Рыбинск, ул. Кирова, д. 18","Рыбинск"]
[null,null,null,null,null,null,null,null,null,null,null,null,"0748","ДО \"Рязань-Театральная площадь\" в г. Рязань АО \"АЛЬФА-БАНК\"","390023, г. Рязань, ул.Ленина, д. 9","Рязань"]
[null,null,null,null,null,null,null,null,null,null,null,null,"1122","ДО \"Рязань-Первомайский пр-кт\" в г.Рязань АО \"АЛЬФА-БАНК\"","390013, г. Рязань, Первомайский пр-кт, д. 39/2","Рязань"]
[null,null,null,null,null,null,null,null,null,null,null,null,"1193","ДО \"Салават-б-р Космонавтов\" в г. Салават АО \"АЛЬФА-БАНК\"","453260, г. Салават, б-р Космонавтов, д. 13","Салават"]
[null,null,null,null,null,null,null,null,null,null,null,null,"1809","ДО \"Салехард-улица Мира\" в г. Салехард АО \"АЛЬФА-БАНК\"","629004, г. Салехард, ул. Мира, д. 2","Салехард"]
[null,null,null,null,null,null,null,null,null,null,null,null,"8085","ДО \"Сальск-улица Пушкина\" в г. Сальск АО \"АЛЬФА-БАНК\"","347630, г. Сальск, ул. Пушкина, д. 15","Сальск"]
[null,null,null,null,null,null,null,null,null,null,null,null,"0471","ДО \"Самара-Центральный\" в г. СамараАО \"АЛЬФА-БАНК\"","443013, г. Самара, ул. Мичурина, д. 19В","Самара"]
[null,null,null,null,null,null,null,null,null,null,null,null,"0677","ДО \"Самара-Московское шоссе\" в г. Самара АО \"АЛЬФА-БАНК\"","443080, г. Самара, шоссе Московское, д. 47","Самара"]
[null,null,null,null,null,null,null,null,null,null,null,null,"0734","ДО \"Самара-Стара Загора\" в г. Самара АО \"АЛЬФА-БАНК\"","443087, г. Самара, пр-кт Кирова, д. 228, ул. Стара-Загора, д. 126","Самара"]
[null,null,null,null,null,null,null,null,null,null,null,null,"0742","ДО \"Самара-улица Победы\" в г. Самара АО \"АЛЬФА-БАНК\"","443009, г. Самара, ул. Победы, д. 101","Самара"]
[null,null,null,null,null,null,null,null,null,null,null,null,"0800","ДО \"Самара-улица Агибалова\" в г. Самара АО \"АЛЬФА-БАНК\"","443041, г. Самара, ул. Агибалова, д.76","Самара"]
[null,null,null,null,null,null,null,null,null,null,null,null,"0870","ДО \"Самара-улица Гагарина\" в г. Самара АО \"АЛЬФА-БАНК\"","443045, г. Самара, ул. Гагарина, д. 64","Самара"]
[null,null,null,null,null,null,null,null,null,null,null,null,"0473","ДО \"СПБ-Грибоедовский\" в г. Санкт-Петербург АО \"АЛЬФА-БАНК\"","191186, г. Санкт-Петербург, Б.Конюшенная улица, д. 19/8. литА.24Н.25Н","Санкт-Петербург"]
[null,null,null,null,null,null,null,null,null,null,null,null,"0475","ДО \"СПБ-Новочеркасский\" в г. Санкт-Петербург АО \"АЛЬФА-БАНК\"","195196, г. Санкт-Петербург, Новочеркасский пр-т, д. 43/17","Санкт-Петербург"]
[null,null,null,null,null,null,null,null,null,null,null,null,"0476","ДО \"СПБ-Кировский\" в г. Санкт-Петербург АО \"АЛЬФА-БАНК\"","198097, г. Санкт-Петербург, пр-т Стачек, д. 47Е","Санкт-Петербург"]
[null,null,null,null,null,null,null,null,null,null,null,null,"0478","ДО \"СПБ-Лиговский проспект\" в г. Санкт-Петербург АО \"АЛЬФА-БАНК\"","191040, г. Санкт-Петербург, Лиговский пр-т, д. 73А","Санкт-Петербург"]
[null,null,null,null,null,null,null,null,null,null,null,null,"0678","ДО \"СПБ-Каменноостровский\" в г. Санкт-Петербург АО \"АЛЬФА-БАНК\"","197022, г. Санкт-Петербург, Каменноостровский пр-кт, д. 41, литера А","Санкт-Петербург"]
[null,null,null,null,null,null,null,null,null,null,null,null,"0679","ДО \"СПБ-Парк Победы\" в г. Санкт-Петербург АО \"АЛЬФА-БАНК\"","196105, г. Санкт-Петербург, Московский пр-кт, д. 172, лит. А","Санкт-Петербург"]
[null,null,null,null,null,null,null,null,null,null,null,null,"0681","ДО \"СПБ-улица Дыбенко\" в г. Санкт-Петербург АО \"АЛЬФА-БАНК\"","193168, г. Санкт-Петербург, проспект Большевиков, д. 17, литера Ч","Санкт-Петербург"]
[null,null,null,null,null,null,null,null,null,null,null,null,"0710","ДО \"СПБ-Международный\" в г. Санкт-Петербург АО \"АЛЬФА-БАНК\"","192238, г. Санкт-Петербург, ул.Бухарестская, д. 74, кор. 3, лит. А","Санкт-Петербург"]
[null,null,null,null,null,null,null,null,null,null,null,null,"0713","ДО \"СПБ-Таврический сад\" в г. Санкт-Петербург АО \"АЛЬФА-БАНК\"","191123, г. Санкт-Петербург, ул.Фурштатская, д. 40","Санкт-Петербург"]
[null,null,null,null,null,null,null,null,null,null,null,null,"0715","ДО \"СПБ-Ленинский проспект\" в г. Санкт-Петербург АО \"АЛЬФА-БАНК\"","198216, г. Санкт-Петербург, пр-т Ленинский, д. 130/6, литер А","Санкт-Петербург"]
[null,null,null,null,null,null,null,null,null,null,null,null,"0731","ДО \"СПБ-Проспект Большевиков\" в г.Санкт-Петербург АО \"АЛЬФА-БАНК\"","193231, г. Санкт-Петербург, пр-т Большевиков д.2","Санкт-Петербург"]
[null,null,null,null,null,null,null,null,null,null,null,null,"0735","ДО \"СПБ-Ломоносовский\" в г. Санкт-Петербург АО \"АЛЬФА-БАНК\"","192131, г. Санкт-Петербург, ул. Ивановская, д. 6, литера А","Санкт-Петербург"]
[null,null,null,null,null,null,null,null,null,null,null,null,"0774","ДО \"СПБ-Пионерский\" в г. Санкт-Петербург АО \"АЛЬФА-БАНК\"","197348, г. Санкт-Петербург, Коломяжский пр-кт, д. 15, корпус 2, лит. А","Санкт-Петербург"]
[null,null,null,null,null,null,null,null,null,null,null,null,"0789","ДО \"СПБ-Купчино\" в г. Санкт-Петербург АО \"АЛЬФА-БАНК\"","196233, г. Санкт-Петербург, пр-кт Витебский, д. 101, корп. 1, стр.1","Санкт-Петербург"]
[null,null,null,null,null,null,null,null,null,null,null,null,"0795","ДО \"СПБ-Проспект Просвещения\" в г.Санкт-Петербург АО \"АЛЬФА-БАНК\"","194356, г. Санкт-Петербург, пр-кт Энгельса, д. 139/21, лит. А","Санкт-Петербург"]
[null,null,null,null,null,null,null,null,null,null,null,null,"0799","ДО \"СПБ-Московский\" в г. Санкт-Петербург АО \"АЛЬФА-БАНК\"","196066, г. Санкт-Петербург, Московский пр., д. 193, пом. 14Н,лит. А","Санкт-Петербург"]
[null,null,null,null,null,null,null,null,null,null,null,null,"0819","ДО \"СПБ-Гражданский проспект\" в г.Санкт-Петербург АО \"АЛЬФА-БАНК\"","195267, г. Санкт-Петербург,пр-кт Просвещения, д. 84 корпус1, Литер А, пом. 50Н","Санкт-Петербург"]
[null,null,null,null,null,null,null,null,null,null,null,null,"0866","ДО \"СПБ-Комендантский проспект\" в г. Санкт-Петербург АО \"АЛЬФА-БАНК\"","197371, г. Санкт-Петербург, пр-кт Комендантский, д. 13, корп. 1, лит. А","Санкт-Петербург"]
[null,null,null,null,null,null,null,null,null,null,null,null,"0890","ДО \"СПБ-Василеостровский\" в г. Санкт-Петербург АО \"АЛЬФА-БАНК\"","199004, г. Санкт-Петербург, В.О. 7-ая линия, д.54, Лит. А, пом. 3Н","Санкт-Петербург"]
[null,null,null,null,null,null,null,null,null,null,null,null,"0995","ДО \"СПБ-Лесной проспект\" в г. Санкт-Петербург АО \"АЛЬФА-БАНК\"","195009, г. Санкт-Петербург, ул.Академика Лебедева, д.31, корп. 2,лит. А","Санкт-Петербург"]
[null,null,null,null,null,null,null,null,null,null,null,null,"1009","ДО \"СПБ-Беговой\" в г. Санкт-Петербург АО \"АЛЬФА-БАНК\"","197374, г. Санкт-Петербург, ул. Савушкина, д. 127","Санкт-Петербург"]
[null,null,null,null,null,null,null,null,null,null,null,null,"1056","ДО \"СПБ-Дачный проспект\" в г. Санкт-Петербург АО \"АЛЬФА-БАНК\"","197110, г. Санкт-Петербург, пр-кт Дачный, д.17, к. 3","Санкт-Петербург"]
[null,null,null,null,null,null,null,null,null,null,null,null,"1067","ДО \"СПБ-Академический\" в г. Санкт-Петербург АО \"АЛЬФА-БАНК\"","195256, г. Санкт-Петербург, пр-кт Науки, д. 14к1","Санкт-Петербург"]
[null,null,null,null,null,null,null,null,null,null,null,null,"1166","ДО \"СПБ-Площадь Мужества\" в г. Санкт-Петербург АО \"АЛЬФА-БАНК\"","194021, г. Санкт-Петербург, просп.Тореза, д. 9, литера А","Санкт-Петербург"]
[null,null,null,null,null,null,null,null,null,null,null,null,"8155","ДО \"СПБ-Рыбацкое\" в г. Санкт-Петербург АО \"АЛЬФА-БАНК\"","192177, г. Санкт-Петербург, ул. Караваевская, д. 24, корп. 1, лит. А","Санкт-Петербург"]
[null,null,null,null,null,null,null,null,null,null,null,null,"1010","ДО \"Саранск-Ушаковский\" в г. Саранск АО \"АЛЬФА-БАНК\"","430005, г. Саранск, ул. Коммунистическая, д. 52","Саранск"]
[null,null,null,null,null,null,null,null,null,null,null,null,"8184","ДО \"Саранск-улица Гагарина\" в г. Саранск АО \"АЛЬФА-БАНК\"","430027, г. Саранск, ул. Гагарина, д. 99Е","Саранск"]
[null,null,null,null,null,null,null,null,null,null,null,null,"1720","ДО \"Сарапул-улица Горького\" в г. Сарапул АО \"АЛЬФА-БАНК\"","427960, г. Сарапул, ул. Горького, д. 15а, стр.1","Сарапул"]
[null,null,null,null,null,null,null,null,null,null,null,null,"0829","ДО \"Саратов-Мирный переулок\" в г. Саратов АО \"АЛЬФА-БАНК\"","410012, г. Саратов, ул. им. Василия Люкшина, здание № 5","Саратов"]
[null,null,null,null,null,null,null,null,null,null,null,null,"1108","ДО \"Саратов-пр-кт Строителей\" в г.Саратов АО \"АЛЬФА-БАНК\"","410041, г. Саратов, пр-кт Строителей, д. 19","Саратов"]
[null,null,null,null,null,null,null,null,null,null,null,null,"0772","ДО \"Саратов-Центральный\" в г. Саратов АО \"АЛЬФА-БАНК\"","410012, г. Саратов, ул. Московская, д. 66","Саратов"]
[null,null,null,null,null,null,null,null,null,null,null,null,"8177","ДО \"Саров-улица Московская\" в г. Саров АО \"АЛЬФА-БАНК\"","607183, г. Саров, ул. Московская, д. 3, стр. 1","Саров"]
[null,null,null,null,null,null,null,null,null,null,null,null,"0751","ДО \"Северодвинск-ул. Ломоносова\" вг. Северодвинск АО \"АЛЬФА-БАНК\"","164504, г. Северодвинск, ул. Ломоносова, д. 64","Северодвинск"]
[null,null,null,null,null,null,null,null,null,null,null,null,"1790","ДО \"Североморск-улица Сафонова\" в г. Североморск АО \"АЛЬФА-БАНК\"","184604, г. Североморск, ул. Сафонова, д. 13","Североморск"]
[null,null,null,null,null,null,null,null,null,null,null,null,"1760","ДО \"Северск-Коммунистический пр-кт\"в г. Северск АО \"АЛЬФА-БАНК\"","636000, г. Северск, пр-кт Коммунистический, д. 63","Северск"]
[null,null,null,null,null,null,null,null,null,null,null,null,"1526","ДО \"СЕРГИЕВ ПОСАД\" в г. Сергиев Посад  АО \"АЛЬФА-БАНК\"","141310, г. Сергиев Посад, пр-кт Красной Армии, д.180","Сергиев Посад"]
[null,null,null,null,null,null,null,null,null,null,null,null,"1531","ДО \"СЕРПУХОВ\" в г. Серпухов АО \"АЛЬФА-БАНК\"","142203, г. Серпухов, ул. Ворошилова, д. 127","Серпухов"]
[null,null,null,null,null,null,null,null,null,null,null,null,"8069","ДО \"Сибай-пр-кт Горняков\" в г. Сибай АО \"АЛЬФА-БАНК\"","453833, г. Сибай, пр-кт Горняков, д. 22","Сибай"]
[null,null,null,null,null,null,null,null,null,null,null,null,"1695","ДО Славянск-на-Кубани-ул. Ковтюха вг.Славянск-на-Кубани АО АЛЬФА-БАНК","353560, г. Славянск-на-Кубани, ул. Ковтюха, д. 17","Славянск-на-Кубани"]
[null,null,null,null,null,null,null,null,null,null,null,null,"1158","ДО \"Смоленск-Днепровские ворота\" вг. Смоленск АО \"АЛЬФА-БАНК\"","214004, г. Смоленск, ул. Николаева, д. 8","Смоленск"]
[null,null,null,null,null,null,null,null,null,null,null,null,"8187","ДО \"Смоленск-улица Петра Алексеева\"в г. Смоленск АО \"АЛЬФА-БАНК\"","214036, г. Смоленск, ул. Петра Алексеева, д. 1а","Смоленск"]
[null,null,null,null,null,null,null,null,null,null,null,null,"8106","ДО \"Снежинск-улица Свердлова\" в г.Снежинск АО \"АЛЬФА-БАНК\"","456770, г. Снежинск, ул. Свердлова, д. 36","Снежинск"]
[null,null,null,null,null,null,null,null,null,null,null,null,"1805","ДО \"Соликамск-площадь Революции\" вг. Соликамск АО \"АЛЬФА-БАНК\"","618554, г. Соликамск, ул. 20-летия Победы, д. 119","Соликамск"]
[null,null,null,null,null,null,null,null,null,null,null,null,"1678","ДО \"СОЛНЕЧНОГОРСК\" в г. Солнечногорск АО \"АЛЬФА-БАНК\"","141506, г. Солнечногорск, ул. Почтовая, стр. 9/2","Солнечногорск"]
[null,null,null,null,null,null,null,null,null,null,null,null,"0758","ДО \"Сосновый Бор-улица Солнечная\" вг. Сосновый Бор АО \"АЛЬФА-БАНК\"","188541, г. Сосновый Бор, ул. Солнечная, д. 12","Сосновый Бор"]
[null,null,null,null,null,null,null,null,null,null,null,null,"0729","ДО \"Сочи-Центральный\" в г. Сочи АО\"АЛЬФА-БАНК\"","354000, г. Сочи, ул. Конституции СССР, д.18","Сочи"]
[null,null,null,null,null,null,null,null,null,null,null,null,"1143","ДО \"Сочи-улица Северная\" в г. СочиАО \"АЛЬФА-БАНК\"","354000, г. Сочи, ул. Северная, д. 6","Сочи"]
[null,null,null,null,null,null,null,null,null,null,null,null,"1179","ДО \"Адлер-Молокова\" в г. Сочи АО \"АЛЬФА-БАНК\"","354340, г. Сочи, ул. Молокова, д. 18/78","Сочи"]
[null,null,null,null,null,null,null,null,null,null,null,null,"8189","ДО \"Лазаревский-улица Калараша\" в г. Сочи АО \"АЛЬФА-БАНК\"","354200, г. Сочи, ул. Калараша, д. 111А, корп. 1","Сочи"]
[null,null,null,null,null,null,null,null,null,null,null,null,"0802","ДО \"Сочи-Курортный проспект\" в г. Сочи АО\"АЛЬФА-БАНК\"","354002, г. Сочи, ул. Учительская, д. 3","Сочи"]
[null,null,null,null,null,null,null,null,null,null,null,null,"0779","ДО \"Ставрополь-улица Ленина\" в г. Ставрополь АО \"АЛЬФА-БАНК\"","355029, г. Ставрополь, ул.Ленина, д. 299","Ставрополь"]
[null,null,null,null,null,null,null,null,null,null,null,null,"1138","ДО \"Ставрополь-Дзержинский\" в г. Ставрополь АО \"АЛЬФА-БАНК\"","355035, г. Ставрополь, ул. Дзержинского, д. 114","Ставрополь"]
[null,null,null,null,null,null,null,null,null,null,null,null,"1607","ДО \"Ставрополь-парк Победы\" в г. Ставрополь АО \"АЛЬФА-БАНК\"","355040, г. Ставрополь, ул. 50-лет ВЛКСМ, д. 11, к. 1","Ставрополь"]
[null,null,null,null,null,null,null,null,null,null,null,null,"1148","ДО \"Старый Оскол-улица Шухова\" в г.Старый Оскол АО \"АЛЬФА-БАНК\"","309512, г. Старый Оскол, мкр. Жукова, д. 48, помещение 6","Старый Оскол"]
[null,null,null,null,null,null,null,null,null,null,null,null,"0756","ДО \"Стерлитамак-Центральный\" в г. Стерлитамак АО \"АЛЬФА-БАНК\"","453100, г. Стерлитамак, ул. Коммунистическая, д. 96","Стерлитамак"]
[null,null,null,null,null,null,null,null,null,null,null,null,"1803","ДО \"СТУПИНО\" в г. Ступино АО \"АЛЬФА-БАНК\"","142802, г. Ступино, ул. Андропова, д. 63","Ступино"]
[null,null,null,null,null,null,null,null,null,null,null,null,"0937","ДО \"Сургут-Центральный\" в г. СургутАО \"АЛЬФА-БАНК\"","628406, г. Сургут, ул. Каролинского, д. 13","Сургут"]
[null,null,null,null,null,null,null,null,null,null,null,null,"1094","ДО \"Сургут-проспект Ленина\" в г. Сургут АО \"АЛЬФА-БАНК\"","628416, г. Сургут, пр-т Ленина д.38","Сургут"]
[null,null,null,null,null,null,null,null,null,null,null,null,"1011","ДО \"Сызрань-улица Советская\" в г. Сызрань АО \"АЛЬФА-БАНК\"","446001, г. Сызрань, ул. Советская, д. 51","Сызрань"]
[null,null,null,null,null,null,null,null,null,null,null,null,"1637","ДО \"Сызрань-50 лет Октября\" в г. Сызрань АО \"АЛЬФА-БАНК\"","446031, г. Сызрань, ул. 50 лет Октября, д. 54А","Сызрань"]
[null,null,null,null,null,null,null,null,null,null,null,null,"1829","ДО \"Сыктывкар-ул. Коммунистическая\"в г. Сыктывкар АО \"АЛЬФА-БАНК\"","167001, г. Сыктывкар, ул. Коммунистическая, д. 46","Сыктывкар"]
[null,null,null,null,null,null,null,null,null,null,null,null,"0714","ДО \"Таганрог-площадь Восстания\" в г. Таганрог АО \"АЛЬФА-БАНК\"","347904, г. Таганрог, ул. Дзержинского/ул.Фрунзе, д.1/100","Таганрог"]
[null,null,null,null,null,null,null,null,null,null,null,null,"8108","ДО \"Таганрог-Приморский\" в г. Таганрог АО \"АЛЬФА-БАНК\"","347922, г. Таганрог, пер. 1-й Крепостной, д. 17","Таганрог"]
[null,null,null,null,null,null,null,null,null,null,null,null,"1153","ДО \"Тамбов-улица Максима Горького\"в г. Тамбов АО \"АЛЬФА-БАНК\"","392000, г. Тамбов, ул. Советская/Максима Горького,д. 104/14","Тамбов"]
[null,null,null,null,null,null,null,null,null,null,null,null,"0682","ДО \"Тверь-улица Трехсвятская\" в г.Тверь АО \"АЛЬФА-БАНК\"","170100, г. Тверь, ул. Трехсвятская, д. 28","Тверь"]
[null,null,null,null,null,null,null,null,null,null,null,null,"1054","ДО \"Тверь-улица Желябова\" в г. Тверь АО \"АЛЬФА-БАНК\"","170100, г. Тверь, ул. Желябова, д. 3","Тверь"]
[null,null,null,null,null,null,null,null,null,null,null,null,"1630","ДО \"Темрюк-улица Ленина\" в г. Темрюк АО \"АЛЬФА-БАНК\"","353500, г. Темрюк, ул. Ленина, д. 68","Темрюк"]
[null,null,null,null,null,null,null,null,null,null,null,null,"1694","ДО \"Тимашевск-улица Красная\" в г. Тимашевск АО \"АЛЬФА-БАНК\"","352700, г. Тимашевск, ул. Красная, д. 106","Тимашевск"]
[null,null,null,null,null,null,null,null,null,null,null,null,"1751","ДО \"Тихвин-улица Карла Маркса\" в г.Тихвин АО \"АЛЬФА-БАНК\"","187553, г. Тихвин, ул. Карла Маркса, д. 50","Тихвин"]
[null,null,null,null,null,null,null,null,null,null,null,null,"1641","ДО \"Тихорецк-улица Энгельса\" в г. Тихорецк АО \"АЛЬФА-БАНК\"","352120, г. Тихорецк, ул. Энгельса, д. 101","Тихорецк"]
[null,null,null,null,null,null,null,null,null,null,null,null,"1184","ДО \"Тобольск-проспект Менделеева\" вг. Тобольск АО \"АЛЬФА-БАНК\"","626158, г. Тобольск, 9-й микрорайон, д. 1","Тобольск"]
[null,null,null,null,null,null,null,null,null,null,null,null,"0817","ДО \"Тольятти-ул. Революционная\" в г. Тольятти АО \"АЛЬФА-БАНК\"","445026, г. Тольятти, ул.Революционная, д.32","Тольятти"]
[null,null,null,null,null,null,null,null,null,null,null,null,"0847","ДО \"Тольятти-улица Мира\" в г. Тольятти АО \"АЛЬФА-БАНК\"","445021, г. Тольятти, ул. Ленинградская, зд. 68В","Тольятти"]
[null,null,null,null,null,null,null,null,null,null,null,null,"1168","ДО \"Тольятти- Центральный\" в г. Тольятти АО \"АЛЬФА-БАНК\"","445031, г. Тольятти, ул. Тополиная, д. 8а","Тольятти"]
[null,null,null,null,null,null,null,null,null,null,null,null,"0439","ДО \"Томск-Красный Экспресс\" в г. Томск АО \"АЛЬФА-БАНК\"","634034, г. Томск, ул.Красноармейская, д. 101а","Томск"]
[null,null,null,null,null,null,null,null,null,null,null,null,"0716","ДО \"Томск-Магистрат\" в г. Томск АО\"АЛЬФА-БАНК\"","634009, г. Томск,пер. 1905 года, д. 14а","Томск"]
[null,null,null,null,null,null,null,null,null,null,null,null,"1174","ДО \"Томск-Дом Книги\" в г. Томск АО\"АЛЬФА-БАНК\"","634061, г. Томск, пр-кт Комсомольский, д. 53","Томск"]
[null,null,null,null,null,null,null,null,null,null,null,null,"8157","ДО \"Томск-Октябрьский\" в г. Томск АО \"АЛЬФА-БАНК\"","634049, г. Томск,тракт Иркутский, д. 26","Томск"]
[null,null,null,null,null,null,null,null,null,null,null,null,"8171","ДО \"Трехгорный-улица Мира\" в г. Трехгорный АО \"АЛЬФА-БАНК\"","456080, г. Трехгорный, ул. Мира, д. 12","Трехгорный"]
[null,null,null,null,null,null,null,null,null,null,null,null,"1648","ДО \"Троицк-сквер Памяти\" в г. Троицк АО \"АЛЬФА-БАНК\"","457100, г. Троицк, ул. им. Ю.А. Гагарина, д. 41","Троицк"]
[null,null,null,null,null,null,null,null,null,null,null,null,"1752","ДО \"ТРОИЦК\" в г. ТРОИЦК АО \"АЛЬФА-БАНК\"","108842, г. Москва, г. Троицк, пл. Академическая, д. 5","Троицк"]
[null,null,null,null,null,null,null,null,null,null,null,null,"0898","ДО \"Туапсе-Площадь Ленина\" в г. Туапсе АО \"АЛЬФА-БАНК\"","352800, г. Туапсе, ул.С. Перовской, д. 2, пом. 21, 28-30","Туапсе"]
[null,null,null,null,null,null,null,null,null,null,null,null,"1823","ДО \"Туймазы-проспект Ленина\" в г. Туймазы АО \"АЛЬФА-БАНК\"","452750, г.Туймазы, пр-кт Ленина, д. 10","Туймазы"]
[null,null,null,null,null,null,null,null,null,null,null,null,"0407","ДО \"Тула-Красноармейский пр-кт\" в г. Тула АО \"АЛЬФА-БАНК\"","300034, г. Тула, пр-кт Красноармейский, д. 27","Тула"]
[null,null,null,null,null,null,null,null,null,null,null,null,"1129","ДО \"Тула-проспект Ленина\" в г. ТулаАО \"АЛЬФА-БАНК\"","300041, г. Тула,просп. Ленина, д. 54а","Тула"]
[null,null,null,null,null,null,null,null,null,null,null,null,"1141","ДО \"Тула-улица Советская\" в г. ТулаАО \"АЛЬФА-БАНК\"","300041, г. Тула,ул. Советская,  д. 10","Тула"]
[null,null,null,null,null,null,null,null,null,null,null,null,"0468","ДО \"Тюмень-улица Республики\" в г. Тюмень АО \"АЛЬФА-БАНК\"","625026, г. Тюмень, ул. Республики, д. 155","Тюмень"]
[null,null,null,null,null,null,null,null,null,null,null,null,"0675","ДО \"Тюмень-улица Пермякова\" в г. Тюмень АО \"АЛЬФА-БАНК\"","625051, г. Тюмень,ул. Пермякова, д. 23а","Тюмень"]
[null,null,null,null,null,null,null,null,null,null,null,null,"0812","ДО \"Тюмень-улица Ленина\" в г. Тюмень АО \"АЛЬФА-БАНК\"","625000, г. Тюмень, ул. Ленина д. 57/2","Тюмень"]
[null,null,null,null,null,null,null,null,null,null,null,null,"0966","ДО \"Тюмень-ул. 50 лет Октября\" в г.Тюмень АО \"АЛЬФА-БАНК\"","625048, г. Тюмень, ул. 50 лет","Тюмень"]
[null,null,null,null,null,null,null,null,null,null,null,null,"0674","ДО \"Тюмень-улица Газовиков\" в г. Тюмень АО \"АЛЬФА-БАНК\"","625022, г. Тюмень,ул. Газовиков, д. 65/4","Тюмень"]
[null,null,null,null,null,null,null,null,null,null,null,null,"1156","ДО \"Улан-Удэ-Селенга\" в г. Улан-УдэАО \"АЛЬФА-БАНК\"","670000, г. Улан-Удэ, ул. Ленина, д. 35","Улан-Удэ"]
[null,null,null,null,null,null,null,null,null,null,null,null,"1833","ДО \"Улан-Удэ-улица Терешковой\" в г.Улан-Удэ АО \"АЛЬФА-БАНК\"","670031, г. Улан-Удэ, ул. Терешковой, д. 2","Улан-Удэ"]
[null,null,null,null,null,null,null,null,null,null,null,null,"0711","ДО \"Ульяновск-улица Гончарова\" в г.Ульяновск АО \"АЛЬФА-БАНК\"","432011, г. Ульяновск, ул. Гончарова, д. 25","Ульяновск"]
[null,null,null,null,null,null,null,null,null,null,null,null,"1118","ДО \"Ульяновск-Заволжский\" в г. Ульяновск АО \"АЛЬФА-БАНК\"","432067, г. Ульяновск, Ульяновский пр-т, д.6","Ульяновск"]
[null,null,null,null,null,null,null,null,null,null,null,null,"1133","ДО \"Ульяновск-улица Герасимова\" в г. Ульяновск АО \"АЛЬФА-БАНК\"","432045, г. Ульяновск, ул. Герасимова, д. 10","Ульяновск"]
[null,null,null,null,null,null,null,null,null,null,null,null,"8079","ДО \"Усинск-улица Нефтяников\" в г. Усинск АО \"АЛЬФА-БАНК\"","169710, г. Усинск,ул. Нефтяников, д. 50","Усинск"]
[null,null,null,null,null,null,null,null,null,null,null,null,"0897","ДО \"Усолье-Сибирское-Центральный\" вг.Усолье-Сибирское АО \"АЛЬФА-БАНК\"","665462, г. Усолье-Сибирское, ул. Орджоникидзе, зд.40","Усолье-Сибирское"]
[null,null,null,null,null,null,null,null,null,null,null,null,"1048","ДО \"Уссурийск-улица Пушкина\" в г. Уссурийск АО \"АЛЬФА-БАНК\"","692525, г. Уссурийск, ул. Пушкина  д.27","Уссурийск"]
[null,null,null,null,null,null,null,null,null,null,null,null,"1681","ДО \"Усть-Илимск-пр-кт Мира\" в г. Усть-Илимск АО \"АЛЬФА-БАНК\"","666683, г. Усть-Илимск, пр-кт Мира, д. 2","Усть-Илимск"]
[null,null,null,null,null,null,null,null,null,null,null,null,"8002","ДО \"Усть-Лабинск-улица Октябрьская\"в г. Усть-Лабинск АО \"АЛЬФА-БАНК\"","352330, г. Усть-Лабинск, ул. Октябрьская, д. 99","Усть-Лабинск"]
[null,null,null,null,null,null,null,null,null,null,null,null,"0671","ДО \"Уфа-Идель\" в г. Уфа АО \"АЛЬФА-БАНК\"","450075, г. Уфа, пр-кт.Октября, д. 107а","Уфа"]
[null,null,null,null,null,null,null,null,null,null,null,null,"0810","ДО \"Уфа-Центральный\" в г. Уфа АО \"АЛЬФА-БАНК\"","450077, г. Уфа, ул. Ленина, д. 32/1","Уфа"]
[null,null,null,null,null,null,null,null,null,null,null,null,"0826","ДО \"Уфа-Сипайловский\" в г. Уфа АО \"АЛЬФА-БАНК\"","450099, г. Уфа, ул. Жукова, д. 29","Уфа"]
[null,null,null,null,null,null,null,null,null,null,null,null,"0844","ДО \"Уфа-Черниковский\" в г. Уфа АО \"АЛЬФА-БАНК\"","450044, г. Уфа, ул. Первомайская, д. 24","Уфа"]
[null,null,null,null,null,null,null,null,null,null,null,null,"0959","ДО \"Уфа-проспект Октября\" в г. УфаАО \"АЛЬФА-БАНК\"","450009, г. Уфа, пр-кт Октября, д.6","Уфа"]
[null,null,null,null,null,null,null,null,null,null,null,null,"1111","ДО \"Уфа-улица Менделеева\" в г. УфаАО \"АЛЬФА-БАНК\"","450106, г. Уфа, ул. Менделеева, д.130","Уфа"]
[null,null,null,null,null,null,null,null,null,null,null,null,"8122","ДО \"Уфа-улица Транспортная\" в г. Уфа АО \"АЛЬФА-БАНК\"","450039, г. Уфа, ул. Транспортная, д. 46","Уфа"]
[null,null,null,null,null,null,null,null,null,null,null,null,"1796","ДО \"Ухта-проспект Ленина\" в г. УхтаАО \"АЛЬФА-БАНК\"","169313, г. Ухта, пр-кт Ленина, д. 27","Ухта"]
[null,null,null,null,null,null,null,null,null,null,null,null,"8076","ДО \"ФРЯЗИНО\" в г. Фрязино АО \"АЛЬФА-БАНК\"","141195, г. Фрязино, пр-кт Мира, д. 8","Фрязино"]
[null,null,null,null,null,null,null,null,null,null,null,null,"0703","ДО \"Хабаровск-Амур\" в г. ХабаровскАО \"АЛЬФА-БАНК\"","680000, г. Хабаровск, ул. Муравьева- Амурского, д. 36","Хабаровск"]
[null,null,null,null,null,null,null,null,null,null,null,null,"0773","ДО \"Хабаровск-Площадь Блюхера\" в г.Хабаровск АО \"АЛЬФА-БАНК\"","680030, г. Хабаровск  ул. Ленина, д. 43","Хабаровск"]
[null,null,null,null,null,null,null,null,null,null,null,null,"1183","ДО \"Хабаровск-микрорайон Южный\" в г. Хабаровск АО \"АЛЬФА-БАНК\"","680051, г. Хабаровск, ул. Суворова, д. 32","Хабаровск"]
[null,null,null,null,null,null,null,null,null,null,null,null,"1176","ДО \"Ханты-Мансийск-Югра\" в г. Ханты-Мансийск АО \"АЛЬФА-БАНК\"","628011, г. Ханты-Мансийск, ул.Энгельса, д. 3","Ханты-Мансийск"]
[null,null,null,null,null,null,null,null,null,null,null,null,"0608","ДО \"ХИМКИ\" в г. Химки АО \"АЛЬФА-БАНК\"","141501, г. Химки,пр-кт Мельникова, д.2Б","Химки"]
[null,null,null,null,null,null,null,null,null,null,null,null,"1724","ДО \"Чайковский-улица Мира\" в г. Чайковский АО \"АЛЬФА-БАНК\"","617760, г. Чайковский, ул. Мира, д. 19","Чайковский"]
[null,null,null,null,null,null,null,null,null,null,null,null,"1797","ДО \"Чапаевск-улица Запорожская\" в г. Чапаевск АО \"АЛЬФА-БАНК\"","446103, г. Чапаевск, ул. Запорожская, д. 18А","Чапаевск"]
[null,null,null,null,null,null,null,null,null,null,null,null,"0718","ДО \"Чебоксары-улица К. Маркса\" в г.Чебоксары АО \"АЛЬФА-БАНК\"","428000, г. Чебоксары, улица Карла Маркса, д. 51","Чебоксары"]
[null,null,null,null,null,null,null,null,null,null,null,null,"0899","ДО \"Чебоксары-Центральный\" в г. Чебоксары АО \"АЛЬФА-БАНК\"","428003, г. Чебоксары,ул. Ярославская, д. 27","Чебоксары"]
[null,null,null,null,null,null,null,null,null,null,null,null,"0435","ДО \"Челябинск-улица Кирова\" в г. Челябинск АО \"АЛЬФА-БАНК\"","454000, г. Челябинск, ул. Кирова, д. 108","Челябинск"]
[null,null,null,null,null,null,null,null,null,null,null,null,"0821","ДО \"Челябинск-проспект Ленина\" в г.Челябинск АО \"АЛЬФА-БАНК\"","454080, г. Челябинск, пр-т Ленина, д. 73-а","Челябинск"]
[null,null,null,null,null,null,null,null,null,null,null,null,"0822","ДО \"Челябинск-Курчатовский\" в г. Челябинск АО \"АЛЬФА-БАНК\"","454014, г.Челябинск, ул.Молодогвардейцев, д.32 А","Челябинск"]
[null,null,null,null,null,null,null,null,null,null,null,null,"0881","ДО \"Челябинск-Энергия\" в г. Челябинск АО \"АЛЬФА-БАНК\"","454048, г. Челябинск, ул. Доватора, 35","Челябинск"]
[null,null,null,null,null,null,null,null,null,null,null,null,"0968","ДО \"Челябинск-улица Чичерина\" в г.Челябинск АО \"АЛЬФА-БАНК\"","454003, г. Челябинск, ул. Чичерина, д.38 В","Челябинск"]
[null,null,null,null,null,null,null,null,null,null,null,null,"0974","ДО \"Челябинск-Комсомольский\" в г. Челябинск АО \"АЛЬФА-БАНК\"","454008, г. Челябинск, Комсомольский пр-т, д. 2а","Челябинск"]
[null,null,null,null,null,null,null,null,null,null,null,null,"0997","ДО \"Челябинск-улица Свободы\" в г. Челябинск АО \"АЛЬФА-БАНК\"","454091, г. Челябинск, ул.Свободы,д.82","Челябинск"]
[null,null,null,null,null,null,null,null,null,null,null,null,"1686","ДО \"Черемхово-ул. Первомайская\" в г. Черемхово АО \"АЛЬФА-БАНК\"","665412, г. Черемхово, ул. Первомайская, д. 160/Б","Черемхово"]
[null,null,null,null,null,null,null,null,null,null,null,null,"1167","ДО \"Череповец-улица Ленина\" в г. Череповец АО \"АЛЬФА-БАНК\"","162602, г. Череповец, ул. Ленина, д. 68","Череповец"]
[null,null,null,null,null,null,null,null,null,null,null,null,"1816","ДО \"Черногорск-улица Юбилейная\" в г. Черногорск АО \"АЛЬФА-БАНК\"","655158, г. Черногорск, ул. Юбилейная, д. 16","Черногорск"]
[null,null,null,null,null,null,null,null,null,null,null,null,"1693","ДО \"Черняховск-улица Ленина\" в г. Черняховск АО \"АЛЬФА-БАНК\"","238150, г.Черняховск, ул. Ленина, д. 39","Черняховск"]
[null,null,null,null,null,null,null,null,null,null,null,null,"1541","ДО \"ЧЕХОВ\" в г. Чехов АО \"АЛЬФА-БАНК\"","142300, г. Чехов, ул. Московская, вл. 96","Чехов"]
[null,null,null,null,null,null,null,null,null,null,null,null,"1758","ДО \"Чистополь-улица Ленина\" в г. Чистополь АО \"АЛЬФА-БАНК\"","422981, г. Чистополь, ул. Ленина, д. 42Д","Чистополь"]
[null,null,null,null,null,null,null,null,null,null,null,null,"1832","ДО \"Чита-улица Хабаровская\" в г. Чита АО \"АЛЬФА-БАНК\"","672000, г. Чита, ул. Хабаровская, д. 6","Чита"]
[null,null,null,null,null,null,null,null,null,null,null,null,"1661","ДО \"Шадринск-улица Февральская\" в г. Шадринск АО \"АЛЬФА-БАНК\"","641870, г. Шадринск, ул. Февральская, д. 54","Шадринск"]
[null,null,null,null,null,null,null,null,null,null,null,null,"1150","ДО \"Шахты-площадь Победы\" в г. Шахты АО \"АЛЬФА-БАНК\"","346500, г. Шахты, пр-кт Победы Революции, д. 126","Шахты"]
[null,null,null,null,null,null,null,null,null,null,null,null,"1781","ДО \"Шуя-улица Ленина\" в г. Шуя АО \"АЛЬФА-БАНК\"","155900, г. Шуя,ул. Ленина, д. 7, стр. 1","Шуя"]
[null,null,null,null,null,null,null,null,null,null,null,null,"1629","ДО \"Щекино-улица Советская\" в г. Щекино АО \"АЛЬФА-БАНК\"","301245, г. Щекино, ул. Советская, д. 12Г","Щекино"]
[null,null,null,null,null,null,null,null,null,null,null,null,"1536","ДО \"ЩЕЛКОВО\" в г. Щелково АО \"АЛЬФА-БАНК\"","141100, г. Щелково, Пролетарский пр-т, д.9","Щелково"]
[null,null,null,null,null,null,null,null,null,null,null,null,"1824","ДО \"ЩЕРБИНКА-УЛ. 40 ЛЕТ ОКТЯБРЯ\" вг. Щербинка АО \"АЛЬФА-БАНК\"","108851, г. Москва, г. Щербинка, ул.40 лет Октября, д. 15/1","Щербинка"]
[null,null,null,null,null,null,null,null,null,null,null,null,"1530","ДО \"ЭЛЕКТРОСТАЛЬ\" в г. ЭлектростальАО \"АЛЬФА-БАНК\"","144000, г. Электросталь, ул. Советская, д. 14","Электросталь"]
[null,null,null,null,null,null,null,null,null,null,null,null,"8105","ДО \"Элиста-улица Ленина\" в г. Элиста АО \"АЛЬФА-БАНК\"","358000, г. Элиста, ул. В. И. Ленина, д. 230","Элиста"]
[null,null,null,null,null,null,null,null,null,null,null,null,"0747","ДО \"Энгельс-улица Тельмана\" в г. Энгельс АО \"АЛЬФА-БАНК\"","413100, г. Энгельс, ул. Тельмана, д. 23","Энгельс"]
[null,null,null,null,null,null,null,null,null,null,null,null,"0846","ДО \"Южно-Сахалинск-Океанский\" в г.Южно-Сахалинск АО \"АЛЬФА-БАНК\"","693020, г. Южно-Сахалинск, ул. Ленина, д. 218","Южно-Сахалинск"]
[null,null,null,null,null,null,null,null,null,null,null,null,8186,"ДО \"Южно-Сахалинск-улица Ленина\" вг. Южно-Сахалинск АО \"АЛЬФА-БАНК\"","693008, г. Южно-Сахалинск, ул. Ленина, д. 287","Южно-Сахалинск"]
[null,null,null,null,null,null,null,null,null,null,null,null,"1701","ДО \"Южноуральск-улица Мира\" в г. Южноуральск АО\"АЛЬФА-БАНК\"","457040, г. Южноуральск, ул. Мира, д. 44","Южноуральск"]
[null,null,null,null,null,null,null,null,null,null,null,null,"0963","ДО \"Юрга-улица Московская\" в г. Юрга АО \"АЛЬФА-БАНК\"","652050, г. Юрга, ул. Московская, д. 34А","Юрга"]
[null,null,null,null,null,null,null,null,null,null,null,null,"0752","ДО \"Якутск-Центральный\" в г. ЯкутскАО \"АЛЬФА-БАНК\"","677000, г. Якутск, пр-кт Ленина, д. 24","Якутск"]
[null,null,null,null,null,null,null,null,null,null,null,null,"8188","ДО \"Якутск-улица Дзержинского\" в г.Якутск АО \"АЛЬФА-БАНК\"","677000, г. Якутск, ул. Дзержинского, д. 27, корп. 1","Якутск"]
[null,null,null,null,null,null,null,null,null,null,null,null,"0702","ДО \"Ярославль-площадь Юности\" в г.Ярославль АО \"АЛЬФА-БАНК\"","150000, г. Ярославль, ул. Свободы, д. 29","Ярославль"]
[null,null,null,null,null,null,null,null,null,null,null,null,"0730","ДО \"Ярославль-Рождественский\" в г.Ярославль АО \"АЛЬФА-БАНК\"","150000, г. Ярославль, ул. Свободы, д. 2","Ярославль"]
[null,null,null,null,null,null,null,null,null,null,null,null,"1125","ДО \"Ярославль-Парк Победы\" в г. Ярославль АО \"АЛЬФА-БАНК\"","150045, г. Ярославль, Ленинградский пр-т, 52 А","Ярославль"]
[null,null,null,null,null,null,null,null,null,null,null,null,"1600","ДО \"Ярославль-пр-кт Московский\" в г. Ярославль АО \"АЛЬФА-БАНК\"","150030, г. Ярославль, Московский пр-кт, д. 125","Ярославль"]
[null,null,null,null,null,null,null,null,null,null,null,null,"0698","ДО \"Ясный-Горный лен\" в г. Ясный АО\"АЛЬФА-БАНК\"","462781, г. Ясный,ул. Ленина д. 9","Ясный"]

{"sheet":"Сотрудники на открытие счетов","index":1,"n_rows":105,"n_cols":41,"rows_kept":105,"cut":false,"hidden":false,"merged":[]}
["Фамилия","Имя","Отчество","Дата рождения","Место рождения","Пол","Тип документа","Серия документа","Номер документа","Кем выдан документ","Дата выдачи документа","Дата окончания документа","Мобильный телефон","Страна гражданства","Страна регистрации","Код ДУП","Серия и Номер ДУП","Дата начала действия ДУП","Дата окончания действия ДУП","Тип МК","Номер МК","Дата начала пребывания","Дата окончания пребывания","Адрес регистрации: Код страны","Адрес регистрации: Код региона","Адрес регистрации: Город","Адрес регистрации: Наименование улицы","Адрес регистрации: Номер дома","Адрес регистрации: Номер корпуса/строения","Адрес регистрации: Номер квартиры/комнаты","Фактический Адрес: Код страны","Фактический Адрес: Код региона","Фактический Адрес: Город","Фактический Адрес: Наименование улицы","Фактический Адрес: Номер дома","Фактический Адрес: Номер корпуса/строения","Фактический Адрес: Номер квартиры/комнаты","Город Отделения доставки карты при получении сотрудником карты в Банке","Отделение доставки карт","Код отделения","Табельный номер"]
[null,null,null,null,null,null,null,null,null,null,null,null,null,null,null,null,null,null,null,null,null,null,null,null,null,null,null,null,null,null,null,null,null,null,null,null,null,null,null,{"$f":"IFERROR(VLOOKUP(AM2,dictionary_branches_1!B:D,2,0),\"\")","v":""}]
[null,null,null,null,null,null,null,null,null,null,null,null,null,null,null,null,null,null,null,null,null,null,null,null,null,null,null,null,null,null,null,null,null,null,null,null,null,null,null,{"$f":"IFERROR(VLOOKUP(AM3,dictionary_branches_1!B:D,2,0),\"\")","v":""}]
[null,null,null,null,null,null,null,null,null,null,null,null,null,null,null,null,null,null,null,null,null,null,null,null,null,null,null,null,null,null,null,null,null,null,null,null,null,null,null,{"$f":"IFERROR(VLOOKUP(AM4,dictionary_branches_1!B:D,2,0),\"\")","v":""}]
[null,null,null,null,null,null,null,null,null,null,null,null,null,null,null,null,null,null,null,null,null,null,null,null,null,null,null,null,null,null,null,null,null,null,null,null,null,null,null,{"$f":"IFERROR(VLOOKUP(AM5,dictionary_branches_1!B:D,2,0),\"\")","v":""}]
[null,null,null,null,null,null,null,null,null,null,null,null,null,null,null,null,null,null,null,null,null,null,null,null,null,null,null,null,null,null,null,null,null,null,null,null,null,null,null,{"$f":"IFERROR(VLOOKUP(AM6,dictionary_branches_1!B:D,2,0),\"\")","v":""}]
[null,null,null,null,null,null,null,null,null,null,null,null,null,null,null,null,null,null,null,null,null,null,null,null,null,null,null,null,null,null,null,null,null,null,null,null,null,null,null,{"$f":"IFERROR(VLOOKUP(AM7,dictionary_branches_1!B:D,2,0),\"\")","v":""}]
[null,null,null,null,null,null,null,null,null,null,null,null,null,null,null,null,null,null,null,null,null,null,null,null,null,null,null,null,null,null,null,null,null,null,null,null,null,null,null,{"$f":"IFERROR(VLOOKUP(AM8,dictionary_branches_1!B:D,2,0),\"\")","v":""}]
[null,null,null,null,null,null,null,null,null,null,null,null,null,null,null,null,null,null,null,null,null,null,null,null,null,null,null,null,null,null,null,null,null,null,null,null,null,null,null,{"$f":"IFERROR(VLOOKUP(AM9,dictionary_branches_1!B:D,2,0),\"\")","v":""}]
[null,null,null,null,null,null,null,null,null,null,null,null,null,null,null,null,null,null,null,null,null,null,null,null,null,null,null,null,null,null,null,null,null,null,null,null,null,null,null,{"$f":"IFERROR(VLOOKUP(AM10,dictionary_branches_1!B:D,2,0),\"\")","v":""}]
[null,null,null,null,null,null,null,null,null,null,null,null,null,null,null,null,null,null,null,null,null,null,null,null,null,null,null,null,null,null,null,null,null,null,null,null,null,null,null,{"$f":"IFERROR(VLOOKUP(AM11,dictionary_branches_1!B:D,2,0),\"\")","v":""}]
[null,null,null,null,null,null,null,null,null,null,null,null,null,null,null,null,null,null,null,null,null,null,null,null,null,null,null,null,null,null,null,null,null,null,null,null,null,null,null,{"$f":"IFERROR(VLOOKUP(AM12,dictionary_branches_1!B:D,2,0),\"\")","v":""}]
[null,null,null,null,null,null,null,null,null,null,null,null,null,null,null,null,null,null,null,null,null,null,null,null,null,null,null,null,null,null,null,null,null,null,null,null,null,null,null,{"$f":"IFERROR(VLOOKUP(AM13,dictionary_branches_1!B:D,2,0),\"\")","v":""}]
[null,null,null,null,null,null,null,null,null,null,null,null,null,null,null,null,null,null,null,null,null,null,null,null,null,null,null,null,null,null,null,null,null,null,null,null,null,null,null,{"$f":"IFERROR(VLOOKUP(AM14,dictionary_branches_1!B:D,2,0),\"\")","v":""}]
[null,null,null,null,null,null,null,null,null,null,null,null,null,null,null,null,null,null,null,null,null,null,null,null,null,null,null,null,null,null,null,null,null,null,null,null,null,null,null,{"$f":"IFERROR(VLOOKUP(AM15,dictionary_branches_1!B:D,2,0),\"\")","v":""}]
[null,null,null,null,null,null,null,null,null,null,null,null,null,null,null,null,null,null,null,null,null,null,null,null,null,null,null,null,null,null,null,null,null,null,null,null,null,null,null,{"$f":"IFERROR(VLOOKUP(AM16,dictionary_branches_1!B:D,2,0),\"\")","v":""}]
[null,null,null,null,null,null,null,null,null,null,null,null,null,null,null,null,null,null,null,null,null,null,null,null,null,null,null,null,null,null,null,null,null,null,null,null,null,null,null,{"$f":"IFERROR(VLOOKUP(AM17,dictionary_branches_1!B:D,2,0),\"\")","v":""}]
[null,null,null,null,null,null,null,null,null,null,null,null,null,null,null,null,null,null,null,null,null,null,null,null,null,null,null,null,null,null,null,null,null,null,null,null,null,null,null,{"$f":"IFERROR(VLOOKUP(AM18,dictionary_branches_1!B:D,2,0),\"\")","v":""}]
[null,null,null,null,null,null,null,null,null,null,null,null,null,null,null,null,null,null,null,null,null,null,null,null,null,null,null,null,null,null,null,null,null,null,null,null,null,null,null,{"$f":"IFERROR(VLOOKUP(AM19,dictionary_branches_1!B:D,2,0),\"\")","v":""}]
[null,null,null,null,null,null,null,null,null,null,null,null,null,null,null,null,null,null,null,null,null,null,null,null,null,null,null,null,null,null,null,null,null,null,null,null,null,null,null,{"$f":"IFERROR(VLOOKUP(AM20,dictionary_branches_1!B:D,2,0),\"\")","v":""}]
[null,null,null,null,null,null,null,null,null,null,null,null,null,null,null,null,null,null,null,null,null,null,null,null,null,null,null,null,null,null,null,null,null,null,null,null,null,null,null,{"$f":"IFERROR(VLOOKUP(AM21,dictionary_branches_1!B:D,2,0),\"\")","v":""}]
[null,null,null,null,null,null,null,null,null,null,null,null,null,null,null,null,null,null,null,null,null,null,null,null,null,null,null,null,null,null,null,null,null,null,null,null,null,null,null,{"$f":"IFERROR(VLOOKUP(AM22,dictionary_branches_1!B:D,2,0),\"\")","v":""}]
[null,null,null,null,null,null,null,null,null,null,null,null,null,null,null,null,null,null,null,null,null,null,null,null,null,null,null,null,null,null,null,null,null,null,null,null,null,null,null,{"$f":"IFERROR(VLOOKUP(AM23,dictionary_branches_1!B:D,2,0),\"\")","v":""}]
[null,null,null,null,null,null,null,null,null,null,null,null,null,null,null,null,null,null,null,null,null,null,null,null,null,null,null,null,null,null,null,null,null,null,null,null,null,null,null,{"$f":"IFERROR(VLOOKUP(AM24,dictionary_branches_1!B:D,2,0),\"\")","v":""}]
[null,null,null,null,null,null,null,null,null,null,null,null,null,null,null,null,null,null,null,null,null,null,null,null,null,null,null,null,null,null,null,null,null,null,null,null,null,null,null,{"$f":"IFERROR(VLOOKUP(AM25,dictionary_branches_1!B:D,2,0),\"\")","v":""}]
[null,null,null,null,null,null,null,null,null,null,null,null,null,null,null,null,null,null,null,null,null,null,null,null,null,null,null,null,null,null,null,null,null,null,null,null,null,null,null,{"$f":"IFERROR(VLOOKUP(AM26,dictionary_branches_1!B:D,2,0),\"\")","v":""}]
[null,null,null,null,null,null,null,null,null,null,null,null,null,null,null,null,null,null,null,null,null,null,null,null,null,null,null,null,null,null,null,null,null,null,null,null,null,null,null,{"$f":"IFERROR(VLOOKUP(AM27,dictionary_branches_1!B:D,2,0),\"\")","v":""}]
[null,null,null,null,null,null,null,null,null,null,null,null,null,null,null,null,null,null,null,null,null,null,null,null,null,null,null,null,null,null,null,null,null,null,null,null,null,null,null,{"$f":"IFERROR(VLOOKUP(AM28,dictionary_branches_1!B:D,2,0),\"\")","v":""}]
[null,null,null,null,null,null,null,null,null,null,null,null,null,null,null,null,null,null,null,null,null,null,null,null,null,null,null,null,null,null,null,null,null,null,null,null,null,null,null,{"$f":"IFERROR(VLOOKUP(AM29,dictionary_branches_1!B:D,2,0),\"\")","v":""}]
[null,null,null,null,null,null,null,null,null,null,null,null,null,null,null,null,null,null,null,null,null,null,null,null,null,null,null,null,null,null,null,null,null,null,null,null,null,null,null,{"$f":"IFERROR(VLOOKUP(AM30,dictionary_branches_1!B:D,2,0),\"\")","v":""}]
[null,null,null,null,null,null,null,null,null,null,null,null,null,null,null,null,null,null,null,null,null,null,null,null,null,null,null,null,null,null,null,null,null,null,null,null,null,null,null,{"$f":"IFERROR(VLOOKUP(AM31,dictionary_branches_1!B:D,2,0),\"\")","v":""}]
[null,null,null,null,null,null,null,null,null,null,null,null,null,null,null,null,null,null,null,null,null,null,null,null,null,null,null,null,null,null,null,null,null,null,null,null,null,null,null,{"$f":"IFERROR(VLOOKUP(AM32,dictionary_branches_1!B:D,2,0),\"\")","v":""}]
[null,null,null,null,null,null,null,null,null,null,null,null,null,null,null,null,null,null,null,null,null,null,null,null,null,null,null,null,null,null,null,null,null,null,null,null,null,null,null,{"$f":"IFERROR(VLOOKUP(AM33,dictionary_branches_1!B:D,2,0),\"\")","v":""}]
[null,null,null,null,null,null,null,null,null,null,null,null,null,null,null,null,null,null,null,null,null,null,null,null,null,null,null,null,null,null,null,null,null,null,null,null,null,null,null,{"$f":"IFERROR(VLOOKUP(AM34,dictionary_branches_1!B:D,2,0),\"\")","v":""}]
[null,null,null,null,null,null,null,null,null,null,null,null,null,null,null,null,null,null,null,null,null,null,null,null,null,null,null,null,null,null,null,null,null,null,null,null,null,null,null,{"$f":"IFERROR(VLOOKUP(AM35,dictionary_branches_1!B:D,2,0),\"\")","v":""}]
[null,null,null,null,null,null,null,null,null,null,null,null,null,null,null,null,null,null,null,null,null,null,null,null,null,null,null,null,null,null,null,null,null,null,null,null,null,null,null,{"$f":"IFERROR(VLOOKUP(AM36,dictionary_branches_1!B:D,2,0),\"\")","v":""}]
[null,null,null,null,null,null,null,null,null,null,null,null,null,null,null,null,null,null,null,null,null,null,null,null,null,null,null,null,null,null,null,null,null,null,null,null,null,null,null,{"$f":"IFERROR(VLOOKUP(AM37,dictionary_branches_1!B:D,2,0),\"\")","v":""}]
[null,null,null,null,null,null,null,null,null,null,null,null,null,null,null,null,null,null,null,null,null,null,null,null,null,null,null,null,null,null,null,null,null,null,null,null,null,null,null,{"$f":"IFERROR(VLOOKUP(AM38,dictionary_branches_1!B:D,2,0),\"\")","v":""}]
[null,null,null,null,null,null,null,null,null,null,null,null,null,null,null,null,null,null,null,null,null,null,null,null,null,null,null,null,null,null,null,null,null,null,null,null,null,null,null,{"$f":"IFERROR(VLOOKUP(AM39,dictionary_branches_1!B:D,2,0),\"\")","v":""}]
[null,null,null,null,null,null,null,null,null,null,null,null,null,null,null,null,null,null,null,null,null,null,null,null,null,null,null,null,null,null,null,null,null,null,null,null,null,null,null,{"$f":"IFERROR(VLOOKUP(AM40,dictionary_branches_1!B:D,2,0),\"\")","v":""}]
[null,null,null,null,null,null,null,null,null,null,null,null,null,null,null,null,null,null,null,null,null,null,null,null,null,null,null,null,null,null,null,null,null,null,null,null,null,null,null,{"$f":"IFERROR(VLOOKUP(AM41,dictionary_branches_1!B:D,2,0),\"\")","v":""}]
[null,null,null,null,null,null,null,null,null,null,null,null,null,null,null,null,null,null,null,null,null,null,null,null,null,null,null,null,null,null,null,null,null,null,null,null,null,null,null,{"$f":"IFERROR(VLOOKUP(AM42,dictionary_branches_1!B:D,2,0),\"\")","v":""}]
[null,null,null,null,null,null,null,null,null,null,null,null,null,null,null,null,null,null,null,null,null,null,null,null,null,null,null,null,null,null,null,null,null,null,null,null,null,null,null,{"$f":"IFERROR(VLOOKUP(AM43,dictionary_branches_1!B:D,2,0),\"\")","v":""}]
[null,null,null,null,null,null,null,null,null,null,null,null,null,null,null,null,null,null,null,null,null,null,null,null,null,null,null,null,null,null,null,null,null,null,null,null,null,null,null,{"$f":"IFERROR(VLOOKUP(AM44,dictionary_branches_1!B:D,2,0),\"\")","v":""}]
[null,null,null,null,null,null,null,null,null,null,null,null,null,null,null,null,null,null,null,null,null,null,null,null,null,null,null,null,null,null,null,null,null,null,null,null,null,null,null,{"$f":"IFERROR(VLOOKUP(AM45,dictionary_branches_1!B:D,2,0),\"\")","v":""}]
[null,null,null,null,null,null,null,null,null,null,null,null,null,null,null,null,null,null,null,null,null,null,null,null,null,null,null,null,null,null,null,null,null,null,null,null,null,null,null,{"$f":"IFERROR(VLOOKUP(AM46,dictionary_branches_1!B:D,2,0),\"\")","v":""}]
[null,null,null,null,null,null,null,null,null,null,null,null,null,null,null,null,null,null,null,null,null,null,null,null,null,null,null,null,null,null,null,null,null,null,null,null,null,null,null,{"$f":"IFERROR(VLOOKUP(AM47,dictionary_branches_1!B:D,2,0),\"\")","v":""}]
[null,null,null,null,null,null,null,null,null,null,null,null,null,null,null,null,null,null,null,null,null,null,null,null,null,null,null,null,null,null,null,null,null,null,null,null,null,null,null,{"$f":"IFERROR(VLOOKUP(AM48,dictionary_branches_1!B:D,2,0),\"\")","v":""}]
[null,null,null,null,null,null,null,null,null,null,null,null,null,null,null,null,null,null,null,null,null,null,null,null,null,null,null,null,null,null,null,null,null,null,null,null,null,null,null,{"$f":"IFERROR(VLOOKUP(AM49,dictionary_branches_1!B:D,2,0),\"\")","v":""}]
[null,null,null,null,null,null,null,null,null,null,null,null,null,null,null,null,null,null,null,null,null,null,null,null,null,null,null,null,null,null,null,null,null,null,null,null,null,null,null,{"$f":"IFERROR(VLOOKUP(AM50,dictionary_branches_1!B:D,2,0),\"\")","v":""}]
[null,null,null,null,null,null,null,null,null,null,null,null,null,null,null,null,null,null,null,null,null,null,null,null,null,null,null,null,null,null,null,null,null,null,null,null,null,null,null,{"$f":"IFERROR(VLOOKUP(AM51,dictionary_branches_1!B:D,2,0),\"\")","v":""}]
[null,null,null,null,null,null,null,null,null,null,null,null,null,null,null,null,null,null,null,null,null,null,null,null,null,null,null,null,null,null,null,null,null,null,null,null,null,null,null,{"$f":"IFERROR(VLOOKUP(AM52,dictionary_branches_1!B:D,2,0),\"\")","v":""}]
[null,null,null,null,null,null,null,null,null,null,null,null,null,null,null,null,null,null,null,null,null,null,null,null,null,null,null,null,null,null,null,null,null,null,null,null,null,null,null,{"$f":"IFERROR(VLOOKUP(AM53,dictionary_branches_1!B:D,2,0),\"\")","v":""}]
[null,null,null,null,null,null,null,null,null,null,null,null,null,null,null,null,null,null,null,null,null,null,null,null,null,null,null,null,null,null,null,null,null,null,null,null,null,null,null,{"$f":"IFERROR(VLOOKUP(AM54,dictionary_branches_1!B:D,2,0),\"\")","v":""}]
[null,null,null,null,null,null,null,null,null,null,null,null,null,null,null,null,null,null,null,null,null,null,null,null,null,null,null,null,null,null,null,null,null,null,null,null,null,null,null,{"$f":"IFERROR(VLOOKUP(AM55,dictionary_branches_1!B:D,2,0),\"\")","v":""}]
[null,null,null,null,null,null,null,null,null,null,null,null,null,null,null,null,null,null,null,null,null,null,null,null,null,null,null,null,null,null,null,null,null,null,null,null,null,null,null,{"$f":"IFERROR(VLOOKUP(AM56,dictionary_branches_1!B:D,2,0),\"\")","v":""}]
[null,null,null,null,null,null,null,null,null,null,null,null,null,null,null,null,null,null,null,null,null,null,null,null,null,null,null,null,null,null,null,null,null,null,null,null,null,null,null,{"$f":"IFERROR(VLOOKUP(AM57,dictionary_branches_1!B:D,2,0),\"\")","v":""}]
[null,null,null,null,null,null,null,null,null,null,null,null,null,null,null,null,null,null,null,null,null,null,null,null,null,null,null,null,null,null,null,null,null,null,null,null,null,null,null,{"$f":"IFERROR(VLOOKUP(AM58,dictionary_branches_1!B:D,2,0),\"\")","v":""}]
[null,null,null,null,null,null,null,null,null,null,null,null,null,null,null,null,null,null,null,null,null,null,null,null,null,null,null,null,null,null,null,null,null,null,null,null,null,null,null,{"$f":"IFERROR(VLOOKUP(AM59,dictionary_branches_1!B:D,2,0),\"\")","v":""}]
[null,null,null,null,null,null,null,null,null,null,null,null,null,null,null,null,null,null,null,null,null,null,null,null,null,null,null,null,null,null,null,null,null,null,null,null,null,null,null,{"$f":"IFERROR(VLOOKUP(AM60,dictionary_branches_1!B:D,2,0),\"\")","v":""}]
[null,null,null,null,null,null,null,null,null,null,null,null,null,null,null,null,null,null,null,null,null,null,null,null,null,null,null,null,null,null,null,null,null,null,null,null,null,null,null,{"$f":"IFERROR(VLOOKUP(AM61,dictionary_branches_1!B:D,2,0),\"\")","v":""}]
[null,null,null,null,null,null,null,null,null,null,null,null,null,null,null,null,null,null,null,null,null,null,null,null,null,null,null,null,null,null,null,null,null,null,null,null,null,null,null,{"$f":"IFERROR(VLOOKUP(AM62,dictionary_branches_1!B:D,2,0),\"\")","v":""}]
[null,null,null,null,null,null,null,null,null,null,null,null,null,null,null,null,null,null,null,null,null,null,null,null,null,null,null,null,null,null,null,null,null,null,null,null,null,null,null,{"$f":"IFERROR(VLOOKUP(AM63,dictionary_branches_1!B:D,2,0),\"\")","v":""}]
[null,null,null,null,null,null,null,null,null,null,null,null,null,null,null,null,null,null,null,null,null,null,null,null,null,null,null,null,null,null,null,null,null,null,null,null,null,null,null,{"$f":"IFERROR(VLOOKUP(AM64,dictionary_branches_1!B:D,2,0),\"\")","v":""}]
[null,null,null,null,null,null,null,null,null,null,null,null,null,null,null,null,null,null,null,null,null,null,null,null,null,null,null,null,null,null,null,null,null,null,null,null,null,null,null,{"$f":"IFERROR(VLOOKUP(AM65,dictionary_branches_1!B:D,2,0),\"\")","v":""}]
[null,null,null,null,null,null,null,null,null,null,null,null,null,null,null,null,null,null,null,null,null,null,null,null,null,null,null,null,null,null,null,null,null,null,null,null,null,null,null,{"$f":"IFERROR(VLOOKUP(AM66,dictionary_branches_1!B:D,2,0),\"\")","v":""}]
[null,null,null,null,null,null,null,null,null,null,null,null,null,null,null,null,null,null,null,null,null,null,null,null,null,null,null,null,null,null,null,null,null,null,null,null,null,null,null,{"$f":"IFERROR(VLOOKUP(AM67,dictionary_branches_1!B:D,2,0),\"\")","v":""}]
[null,null,null,null,null,null,null,null,null,null,null,null,null,null,null,null,null,null,null,null,null,null,null,null,null,null,null,null,null,null,null,null,null,null,null,null,null,null,null,{"$f":"IFERROR(VLOOKUP(AM68,dictionary_branches_1!B:D,2,0),\"\")","v":""}]
[null,null,null,null,null,null,null,null,null,null,null,null,null,null,null,null,null,null,null,null,null,null,null,null,null,null,null,null,null,null,null,null,null,null,null,null,null,null,null,{"$f":"IFERROR(VLOOKUP(AM69,dictionary_branches_1!B:D,2,0),\"\")","v":""}]
[null,null,null,null,null,null,null,null,null,null,null,null,null,null,null,null,null,null,null,null,null,null,null,null,null,null,null,null,null,null,null,null,null,null,null,null,null,null,null,{"$f":"IFERROR(VLOOKUP(AM70,dictionary_branches_1!B:D,2,0),\"\")","v":""}]
[null,null,null,null,null,null,null,null,null,null,null,null,null,null,null,null,null,null,null,null,null,null,null,null,null,null,null,null,null,null,null,null,null,null,null,null,null,null,null,{"$f":"IFERROR(VLOOKUP(AM71,dictionary_branches_1!B:D,2,0),\"\")","v":""}]
[null,null,null,null,null,null,null,null,null,null,null,null,null,null,null,null,null,null,null,null,null,null,null,null,null,null,null,null,null,null,null,null,null,null,null,null,null,null,null,{"$f":"IFERROR(VLOOKUP(AM72,dictionary_branches_1!B:D,2,0),\"\")","v":""}]
[null,null,null,null,null,null,null,null,null,null,null,null,null,null,null,null,null,null,null,null,null,null,null,null,null,null,null,null,null,null,null,null,null,null,null,null,null,null,null,{"$f":"IFERROR(VLOOKUP(AM73,dictionary_branches_1!B:D,2,0),\"\")","v":""}]
[null,null,null,null,null,null,null,null,null,null,null,null,null,null,null,null,null,null,null,null,null,null,null,null,null,null,null,null,null,null,null,null,null,null,null,null,null,null,null,{"$f":"IFERROR(VLOOKUP(AM74,dictionary_branches_1!B:D,2,0),\"\")","v":""}]
[null,null,null,null,null,null,null,null,null,null,null,null,null,null,null,null,null,null,null,null,null,null,null,null,null,null,null,null,null,null,null,null,null,null,null,null,null,null,null,{"$f":"IFERROR(VLOOKUP(AM75,dictionary_branches_1!B:D,2,0),\"\")","v":""}]
[null,null,null,null,null,null,null,null,null,null,null,null,null,null,null,null,null,null,null,null,null,null,null,null,null,null,null,null,null,null,null,null,null,null,null,null,null,null,null,{"$f":"IFERROR(VLOOKUP(AM76,dictionary_branches_1!B:D,2,0),\"\")","v":""}]
[null,null,null,null,null,null,null,null,null,null,null,null,null,null,null,null,null,null,null,null,null,null,null,null,null,null,null,null,null,null,null,null,null,null,null,null,null,null,null,{"$f":"IFERROR(VLOOKUP(AM77,dictionary_branches_1!B:D,2,0),\"\")","v":""}]
[null,null,null,null,null,null,null,null,null,null,null,null,null,null,null,null,null,null,null,null,null,null,null,null,null,null,null,null,null,null,null,null,null,null,null,null,null,null,null,{"$f":"IFERROR(VLOOKUP(AM78,dictionary_branches_1!B:D,2,0),\"\")","v":""}]
[null,null,null,null,null,null,null,null,null,null,null,null,null,null,null,null,null,null,null,null,null,null,null,null,null,null,null,null,null,null,null,null,null,null,null,null,null,null,null,{"$f":"IFERROR(VLOOKUP(AM79,dictionary_branches_1!B:D,2,0),\"\")","v":""}]
[null,null,null,null,null,null,null,null,null,null,null,null,null,null,null,null,null,null,null,null,null,null,null,null,null,null,null,null,null,null,null,null,null,null,null,null,null,null,null,{"$f":"IFERROR(VLOOKUP(AM80,dictionary_branches_1!B:D,2,0),\"\")","v":""}]
[null,null,null,null,null,null,null,null,null,null,null,null,null,null,null,null,null,null,null,null,null,null,null,null,null,null,null,null,null,null,null,null,null,null,null,null,null,null,null,{"$f":"IFERROR(VLOOKUP(AM81,dictionary_branches_1!B:D,2,0),\"\")","v":""}]
[null,null,null,null,null,null,null,null,null,null,null,null,null,null,null,null,null,null,null,null,null,null,null,null,null,null,null,null,null,null,null,null,null,null,null,null,null,null,null,{"$f":"IFERROR(VLOOKUP(AM82,dictionary_branches_1!B:D,2,0),\"\")","v":""}]
[null,null,null,null,null,null,null,null,null,null,null,null,null,null,null,null,null,null,null,null,null,null,null,null,null,null,null,null,null,null,null,null,null,null,null,null,null,null,null,{"$f":"IFERROR(VLOOKUP(AM83,dictionary_branches_1!B:D,2,0),\"\")","v":""}]
[null,null,null,null,null,null,null,null,null,null,null,null,null,null,null,null,null,null,null,null,null,null,null,null,null,null,null,null,null,null,null,null,null,null,null,null,null,null,null,{"$f":"IFERROR(VLOOKUP(AM84,dictionary_branches_1!B:D,2,0),\"\")","v":""}]
[null,null,null,null,null,null,null,null,null,null,null,null,null,null,null,null,null,null,null,null,null,null,null,null,null,null,null,null,null,null,null,null,null,null,null,null,null,null,null,{"$f":"IFERROR(VLOOKUP(AM85,dictionary_branches_1!B:D,2,0),\"\")","v":""}]
[null,null,null,null,null,null,null,null,null,null,null,null,null,null,null,null,null,null,null,null,null,null,null,null,null,null,null,null,null,null,null,null,null,null,null,null,null,null,null,{"$f":"IFERROR(VLOOKUP(AM86,dictionary_branches_1!B:D,2,0),\"\")","v":""}]
[null,null,null,null,null,null,null,null,null,null,null,null,null,null,null,null,null,null,null,null,null,null,null,null,null,null,null,null,null,null,null,null,null,null,null,null,null,null,null,{"$f":"IFERROR(VLOOKUP(AM87,dictionary_branches_1!B:D,2,0),\"\")","v":""}]
[null,null,null,null,null,null,null,null,null,null,null,null,null,null,null,null,null,null,null,null,null,null,null,null,null,null,null,null,null,null,null,null,null,null,null,null,null,null,null,{"$f":"IFERROR(VLOOKUP(AM88,dictionary_branches_1!B:D,2,0),\"\")","v":""}]
[null,null,null,null,null,null,null,null,null,null,null,null,null,null,null,null,null,null,null,null,null,null,null,null,null,null,null,null,null,null,null,null,null,null,null,null,null,null,null,{"$f":"IFERROR(VLOOKUP(AM89,dictionary_branches_1!B:D,2,0),\"\")","v":""}]
[null,null,null,null,null,null,null,null,null,null,null,null,null,null,null,null,null,null,null,null,null,null,null,null,null,null,null,null,null,null,null,null,null,null,null,null,null,null,null,{"$f":"IFERROR(VLOOKUP(AM90,dictionary_branches_1!B:D,2,0),\"\")","v":""}]
[null,null,null,null,null,null,null,null,null,null,null,null,null,null,null,null,null,null,null,null,null,null,null,null,null,null,null,null,null,null,null,null,null,null,null,null,null,null,null,{"$f":"IFERROR(VLOOKUP(AM91,dictionary_branches_1!B:D,2,0),\"\")","v":""}]
[null,null,null,null,null,null,null,null,null,null,null,null,null,null,null,null,null,null,null,null,null,null,null,null,null,null,null,null,null,null,null,null,null,null,null,null,null,null,null,{"$f":"IFERROR(VLOOKUP(AM92,dictionary_branches_1!B:D,2,0),\"\")","v":""}]
[null,null,null,null,null,null,null,null,null,null,null,null,null,null,null,null,null,null,null,null,null,null,null,null,null,null,null,null,null,null,null,null,null,null,null,null,null,null,null,{"$f":"IFERROR(VLOOKUP(AM93,dictionary_branches_1!B:D,2,0),\"\")","v":""}]
[null,null,null,null,null,null,null,null,null,null,null,null,null,null,null,null,null,null,null,null,null,null,null,null,null,null,null,null,null,null,null,null,null,null,null,null,null,null,null,{"$f":"IFERROR(VLOOKUP(AM94,dictionary_branches_1!B:D,2,0),\"\")","v":""}]
[null,null,null,null,null,null,null,null,null,null,null,null,null,null,null,null,null,null,null,null,null,null,null,null,null,null,null,null,null,null,null,null,null,null,null,null,null,null,null,{"$f":"IFERROR(VLOOKUP(AM95,dictionary_branches_1!B:D,2,0),\"\")","v":""}]
[null,null,null,null,null,null,null,null,null,null,null,null,null,null,null,null,null,null,null,null,null,null,null,null,null,null,null,null,null,null,null,null,null,null,null,null,null,null,null,{"$f":"IFERROR(VLOOKUP(AM96,dictionary_branches_1!B:D,2,0),\"\")","v":""}]
[null,null,null,null,null,null,null,null,null,null,null,null,null,null,null,null,null,null,null,null,null,null,null,null,null,null,null,null,null,null,null,null,null,null,null,null,null,null,null,{"$f":"IFERROR(VLOOKUP(AM97,dictionary_branches_1!B:D,2,0),\"\")","v":""}]
[null,null,null,null,null,null,null,null,null,null,null,null,null,null,null,null,null,null,null,null,null,null,null,null,null,null,null,null,null,null,null,null,null,null,null,null,null,null,null,{"$f":"IFERROR(VLOOKUP(AM98,dictionary_branches_1!B:D,2,0),\"\")","v":""}]
[null,null,null,null,null,null,null,null,null,null,null,null,null,null,null,null,null,null,null,null,null,null,null,null,null,null,null,null,null,null,null,null,null,null,null,null,null,null,null,{"$f":"IFERROR(VLOOKUP(AM99,dictionary_branches_1!B:D,2,0),\"\")","v":""}]
[null,null,null,null,null,null,null,null,null,null,null,null,null,null,null,null,null,null,null,null,null,null,null,null,null,null,null,null,null,null,null,null,null,null,null,null,null,null,null,{"$f":"IFERROR(VLOOKUP(AM100,dictionary_branches_1!B:D,2,0),\"\")","v":""}]
[null,null,null,null,null,null,null,null,null,null,null,null,null,null,null,null,null,null,null,null,null,null,null,null,null,null,null,null,null,null,null,null,null,null,null,null,null,null,null,{"$f":"IFERROR(VLOOKUP(AM101,dictionary_branches_1!B:D,2,0),\"\")","v":""}]
[null,null,null,null,null,null,null,null,null,null,null,null,null,null,null,null,null,null,null,null,null,null,null,null,null,null,null,null,null,null,null,null,null,null,null,null,null,null,null,{"$f":"IFERROR(VLOOKUP(AM102,dictionary_branches_1!B:D,2,0),\"\")","v":""}]
[null,null,null,null,null,null,null,null,null,null,null,null,null,null,null,null,null,null,null,null,null,null,null,null,null,null,null,null,null,null,null,null,null,null,null,null,null,null,null,{"$f":"IFERROR(VLOOKUP(AM103,dictionary_branches_1!B:D,2,0),\"\")","v":""}]
[null,null,null,null,null,null,null,null,null,null,null,null,null,null,null,null,null,null,null,null,null,null,null,null,null,null,null,null,null,null,null,null,null,null,null,null,null,null,null,{"$f":"IFERROR(VLOOKUP(AM104,dictionary_branches_1!B:D,2,0),\"\")","v":""}]
[null,null,null,null,null,null,null,null,null,null,null,null,null,null,null,null,null,null,null,null,null,null,null,null,null,null,null,null,null,null,null,null,null,null,null,null,null,null,null,{"$f":"IFERROR(VLOOKUP(AM105,dictionary_branches_1!B:D,2,0),\"\")","v":""}]

{"sheet":"Информация","index":2,"n_rows":3,"n_cols":1,"rows_kept":3,"cut":false,"hidden":false,"merged":[]}
["Наименование компании"]
["ИНН компании"]
["Зарплатный проект"]

{"sheet":"dictionary_city","index":3,"n_rows":325,"n_cols":1,"rows_kept":325,"cut":false,"hidden":true,"merged":[]}
["Наименование"]
["Москва"]
["Санкт-Петербург"]
["Абакан"]
["Азов"]
["Аксай"]
["Александров"]
["Алексеевка"]
["Алексин"]
["Альметьевск"]
["Анапа"]
["Ангарск"]
["Анжеро-Судженск"]
["Апатиты"]
["Арзамас"]
["Армавир"]
["Арсеньев"]
["Арск"]
["Артем"]
["Архангельск"]
["Асбест"]
["Астрахань"]
["Ачинск"]
["Балаково"]
["БАЛАШИХА"]
["Балашов"]
["Барнаул"]
["Батайск"]
["Белгород"]
["Белебей"]
["Белово"]
["Белогорск"]
["Белорецк"]
["Белореченск"]
["Бердск"]
["Березники"]
["Березовский"]
["Бийск"]
["Биробиджан"]
["Благовещенск"]
["Большой Камень"]
["Бор"]
["Борисоглебск"]
["Боровичи"]
["Братск"]
["Брянск"]
["Бугульма"]
["Буденновск"]
["Бузулук"]
["Великие Луки"]
["Великий Новгород"]
["Верхняя Пышма"]
["Видное"]
["Владивосток"]
["Владикавказ"]
["Владимир"]
["Волгоград"]
["Волгодонск"]
["Волжск"]
["Волжский"]
["Вологда"]
["Волоколамск"]
["Вольск"]
["Воронеж"]
["Воскресенск"]
["Воткинск"]
["Всеволожск"]
["Выборг"]
["Выкса"]
["Вышний Волочек"]
["Вязьма"]
["Гатчина"]
["Геленджик"]
["Георгиевск"]
["Глазов"]
["Горно-Алтайск"]
["ГРОЗНЫЙ"]
["Губкин"]
["Гусь-Хрустальный"]
["Дзержинск"]
["Димитровград"]
["Дмитров"]
["Долгопрудный"]
["Домодедово"]
["Донецк"]
["Донской"]
["Дубна"]
["Егорьевск"]
["Ейск"]
["Екатеринбург"]
["Елабуга"]
["Елец"]
["Ессентуки"]
["Железногорск"]
["Жуковский"]
["Заречный"]
["Зеленогорск"]
["Зеленодольск"]
["Златоуст"]
["Иваново"]
["Ижевск"]
["Иркутск"]
["Искитим"]
["Истра"]
["Ишим"]
["Йошкар-Ола"]
["Казань"]
["Калининград"]
["Калуга"]
["Каменск-Уральский"]
["Каменск-Шахтинский"]
["Камышин"]
["Канск"]
["Кемерово"]
["Кингисепп"]
["Кинешма"]
["Кириши"]
["Киров"]
["Кирово-Чепецк"]
["Кировск"]
["Киселевск"]
["Кисловодск"]
["Клин"]
["Клинцы"]
["Ковров"]
["Когалым"]
["Коломна"]
["Колпино"]
["Коммунарка"]
["Комсомольск-на-Амуре"]
["Копейск"]
["Королев"]
["Кострома"]
["Котельники"]
["Котлас"]
["Красногорск"]
["Краснодар"]
["Краснокаменск"]
["Краснокамск"]
["Краснотурьинск"]
["Красноярск"]
["Кропоткин"]
["Крымск"]
["Кстово"]
["Кудрово"]
["Кузнецк"]
["Кумертау"]
["Кунгур"]
["Курган"]
["Курск"]
["Курчатов"]
["Кызыл"]
["Лабинск"]
["Лениногорск"]
["Ленинск-Кузнецкий"]
["Лесной"]
["Лесосибирск"]
["Ливны"]
["Липецк"]
["Лиски"]
["Лобня"]
["Лысьва"]
["Лыткарино"]
["Люберцы"]
["Магадан"]
["Магнитогорск"]
["Майкоп"]
["Махачкала"]
["Мегион"]
["Междуреченск"]
["Мелеуз"]
["Миасс"]
["Минеральные Воды"]
["Минусинск"]
["Михайловка"]
["Михайловск"]
["Мичуринск"]
["Московский"]
["Мурино"]
["Мурманск"]
["Муром"]
["Мытищи"]
["Набережные Челны"]
["Назрань"]
["Нальчик"]
["Наро-Фоминск"]
["Находка"]
["Невинномысск"]
["Нерюнгри"]
["Нефтекамск"]
["Нефтеюганск"]
["Нижневартовск"]
["Нижнекамск"]
["Нижний Новгород"]
["Нижний Тагил"]
["Новоалтайск"]
["Новокузнецк"]
["Новокуйбышевск"]
["Новомосковск"]
["Новороссийск"]
["Новосибирск"]
["Новотроицк"]
["Новоуральск"]
["Новочебоксарск"]
["Новочеркасск"]
["Новошахтинск"]
["Новый Уренгой"]
["Ногинск"]
["Ноябрьск"]
["Нягань"]
["Обнинск"]
["Одинцово"]
["Октябрьский"]
["Омск"]
["Орел"]
["Орёл"]
["Оренбург"]
["Орехово-Зуево"]
["Орск"]
["Павлово"]
["Павловский Посад"]
["Пенза"]
["Первоуральск"]
["Пермь"]
["Петергоф"]
["Петрозаводск"]
["Петропавловск-Камчатский"]
["Подольск"]
["Прокопьевск"]
["Псков"]
["Пушкин"]
["Пушкино"]
["Пятигорск"]
["Раменское"]
["Ревда"]
["Реутов"]
["Ржев"]
["Россошь"]
["Ростов-на-Дону"]
["Рубцовск"]
["Рыбинск"]
["Рязань"]
["Салават"]
["Салехард"]
["Сальск"]
["Самара"]
["Саранск"]
["Сарапул"]
["Саратов"]
["Саров"]
["Северодвинск"]
["Североморск"]
["Северск"]
["Сергиев Посад"]
["Серпухов"]
["Сибай"]
["Славянск-на-Кубани"]
["Смоленск"]
["Снежинск"]
["Соликамск"]
["Солнечногорск"]
["Сосновый Бор"]
["Сочи"]
["Ставрополь"]
["Старый Оскол"]
["Стерлитамак"]
["Ступино"]
["Сургут"]
["Сызрань"]
["Сыктывкар"]
["Таганрог"]
["Тамбов"]
["Тверь"]
["Темрюк"]
["Тимашевск"]
["Тихвин"]
["Тихорецк"]
["Тобольск"]
["Тольятти"]
["Томск"]
["Трехгорный"]
["Троицк"]
["Туапсе"]
["Туймазы"]
["Тула"]
["Тюмень"]
["Улан-Удэ"]
["Ульяновск"]
["Усинск"]
["Усолье-Сибирское"]
["Уссурийск"]
["Усть-Илимск"]
["Усть-Лабинск"]
["Уфа"]
["Ухта"]
["Фрязино"]
["Хабаровск"]
["Ханты-Мансийск"]
["Химки"]
["Чайковский"]
["Чапаевск"]
["Чебоксары"]
["Челябинск"]
["Черемхово"]
["Череповец"]
["Черногорск"]
["Черняховск"]
["Чехов"]
["Чистополь"]
["Чита"]
["Шадринск"]
["Шахты"]
["Шуя"]
["Щекино"]
["Щелково"]
["Щербинка"]
["Электросталь"]
["Элиста"]
["Энгельс"]
["Южно-Сахалинск"]
["Южноуральск"]
["Юрга"]
["Якутск"]
["Ярославль"]
["Ясный"]

{"sheet":"dictionary_branches_1","index":4,"n_rows":596,"n_cols":7,"rows_kept":596,"cut":false,"hidden":true,"merged":[]}
["Город","отделение","Код","Мнемоника",null,"Абакан","692342, г. Арсеньев, ул. Калининская, д. 24"]
["Абакан","655017, г. Абакан, ул. Щетинкина, д. 63","0739","MOJG",null,"Этот список должен быть осортирован"]
["Азов","346787, г. Азов, ул. Мира, д. 45/64","1821","MAC2"]
["Аксай","346720, г. Аксай, пр-кт Ленина, д. 26","1791","MAH8"]
["Александров","601650, г. Александров, ул. Ленина, д. 22","8107","MAL3"]
["Алексеевка","309857, г. Алексеевка, ул. Мостовая, зд. 90","8078","MAKZ"]
["Алексин","301361, г. Алексин, ул. Мира, 20","1666","MAEB"]
["Альметьевск","423452, г. Альметьевск, ул. Ленина, 29","0953","MOLM"]
["Анапа","353440, г. Анапа, ул. Крымская, д. 172","1186","MAAK"]
["Ангарск","665824, г. Ангарск, квартал 212, д. 15","0886","MOCB"]
["Анжеро-Судженск","652470, г. Анжеро-Судженск, ул. Ленина, д. 22","1656","MADY"]
["Апатиты","184209, г. Апатиты, ул. Ленина, д. 4","1811","MAB5"]
["Арзамас","607228, г. Арзамас, пр-кт Ленина, д. 198","1817","MACM"]
["Армавир","352900, г. Армавир, ул. Ленина, д. 101а","1151","MO80"]
["Арсеньев","692342, г. Арсеньев, ул. Калининская, д. 24","1812","MAB6"]
["Арск","422000, г. Арск, пл. Советская, д. 23","8166","MAOA"]
["Артем","692760, г. Артем,ул. Фрунзе, д. 65","1700","MAFC"]
["Архангельск","163060, г. Архангельск, ул.Воскресенская, д. 108","0876","MOBF"]
["Архангельск","163000, г. Архангельск, ул. Воскресенская, д. 6","1058","MOO5"]
["Асбест","624272, г. Асбест, пр-кт имени В.И. Ленина, д. 15","1617","MACA"]
["Астрахань","414000, г. Астрахань, ул. Кирова, д. 12/2","1534","MO7I"]
["Астрахань","414040, г. Астрахань, пл. Вокзальная, стр. 20б","8158","MAN2"]
["Ачинск","662153, г. Ачинск, ул. 28 квартал, д. 5,пом.30","0686","MOWJ"]
["Балаково","413860, г. Балаково, ул. Трнавская, д. 23","1539","MO8B"]
["БАЛАШИХА","143912, г. Балашиха, ш. Энтузиастов, д.7/1","0620","MOLJ"]
["БАЛАШИХА","143980, г. Балашиха, ул. Пролетарская, д. 2А","1181","MAAA"]
["Балашов","412309, г. Балашов, ул. Ленина, д. 21Б","1608","MABO"]
["Барнаул","656049, г. Барнаул,пр-кт Красноармейский, д. 58 \"Б\"","0813","MOJP"]
["Барнаул","656015, г. Барнаул, пр-т Социалистический, д. 130","0859","MOBD"]
["Барнаул","656038, г. Барнаул, пр-т Ленина, д. 58","0896","MOEQ"]
["Барнаул","656039, г. Барнаул,ул. Антона Петрова, д. 219 Б","1120","MO3X"]
["Барнаул","656057, г. Барнаул,тракт Павловский, д. 251А","1155","MO87"]
["Батайск","346880, г. Батайск, ул. Энгельса, д. 182","1173","MO8T"]
["Белгород","308009, г. Белгород, ул. Попова, д. 12","0957","MOEX"]
["Белгород","308000, г. Белгород, пр-кт Ватутина, д. 9б","1061","MOV0"]
["Белгород","308027, г. Белгород, ул. Щорса, 8","1123","MO61"]
["Белгород","308010, г. Белгород, пр-кт Б. Хмельницкого, д. 164","8117","MAMG"]
["Белебей","452005, г. Белебей, ул. Красная, д. 134","1716","MAFT"]
["Белово","652600, г. Белово, ул. Юбилейная, д. 8","1734","MAGG"]
["Белогорск","676805, г. Белогорск, ул. Кирова, д. 119","1744","MAGR"]
["Белорецк","453509, г. Белорецк, ул. Карла Маркса, д. 75","1745","MAGS"]
["Белореченск","352630, г. Белореченск, ул. Ленина, д. 145","1615","MAB7"]
["Бердск","633010, г. Бердск, ул. Ленина, 41А","0722","MOQG"]
["Березники","618419, г. Березники, ул. Пятилетки, д. 50","1170","MO7O"]
["Березовский","623700, г. Березовский, ул. Восточная, д. 11а","1713","MAFQ"]
["Бийск","659305, г. Бийск, ул. имени Героя Советского Союза Васильева, зд. 26","0777","MOJC"]
["Биробиджан","679016, г. Биробиджан, ул. Шолом-Алейхема, зд. 8","1606","MABK"]
["Благовещенск","675004, г. Благовещенск, ул. Островского, д. 12","1178","MO9L"]
["Большой Камень","692806, г. БольшойКамень, ул. Карла Маркса, д. 13","1671","MAEG"]
["Бор","606440, г. Бор, ул. Ленина, д. 129","1631","MACW"]
["Борисоглебск","397160, г. Борисоглебск, ул. Свободы, зд. 213/ул.Советская, д. 8","1680","MAEP"]
["Боровичи","174411, г. Боровичи, ул. Подбельского, д. 36","1652","MADS"]
["Братск","665708, г. Братск, ул. Кирова, д. 18","1831","MAID"]
["Брянск","241050, г. Брянск, ул. Красноармейская, д. 41","1154","MO85"]
["Брянск","241035, г. Брянск, ул. Комсомольская, д. 12","8178","MAOP"]
["Бугульма","423236, г. Бугульма, ул. Газинура Гафиатуллина, д. 31","1825","MADN"]
["Буденновск","356800, г. Буденновск, ул. Октябрьская, д. 79","1662","MAD6"]
["Бузулук","461040, г. Бузулук, ул. Комсомольская, зд. 81","0958","MOEY"]
["Великие Луки","182113, г. Великие Луки, пр-кт Ленина, д. 39","1175","MO8V"]
["Великий Новгород","173001, г. Великий Новгород, ул. Большая Санкт-Петербургская, 13","1157","MO89"]
["Верхняя Пышма","624090, г. Верхняя Пышма, пр-кт Успенский, д. 20","1194","MAAX"]
["Видное","142703, г. Видное, ул. Школьная, 23","1171","MO7W"]
["Владивосток","690002, г. Владивосток, пр-т Острякова, д. 5Г","0685","MOXN"]
["Владивосток","690048, г. Владивосток ,пр-кт 100 лет Владивостока, д. 51","0893","MOEI"]
["Владивосток","690035, г. Владивосток, ул. Харьковская, д. 8","1128","MO4S"]
["Владивосток","690091, г. Владивосток, ул. Светланская, д. 43","0504","MOVV"]
["Владикавказ","362008, г. Владикавказ, ул. Генерала Плиева, д. 10","1830","MAHF"]
["Владимир","600015, г. Владимир, ул. Ленина, д. 26, 26А","0792","MOVY"]
["Волгоград","400066, г. Волгоград, пр-кт имени В.И. Ленина, д. 2","0805","MOIK"]
["Волгоград","400112, г. Волгоград, пр-кт им. Героев Сталинграда, д. 49","0824","MOKV"]
["Волгоград","400066, г. Волгоград, ул.Комсомольская, д. 10","0861","MOAU"]
["Волгоград","400121, г. Волгоград, ул. Николая Отрады, д. 6","0864","MOAX"]
["Волгоград","400117, г. Волгоград, ул. 8-й Воздушной Армии,д. 47а","1121","MO3Z"]
["Волгоград","400123, г. Волгоград, ул. им. маршала Еременко,д. 124","8143","MANF"]
["Волгодонск","347382, г. Волгодонск, пр-кт Строителей, д. 21","1196","MAAZ"]
["Волжск","425000, г. Волжск, ул. Ленина, д. 56б","1702","MAFE"]
["Волжский","404105, г. Волжский, ул. Мира, д. 74 А","0863","MOVM"]
["Вологда","160000, г. Вологда, ул. Ленина, д. 5","1162","MO95"]
["Волоколамск","143600, г. Волоколамск, ул. Советская, д. 1/1","8001","MAIJ"]
["Вольск","412906, г. Вольск, пл. 10-летия Октября, д. 4/1","1642","MADD"]
["Воронеж","394030, г. Воронеж, ул. Кольцовская, д. 31","0452","MOKF"]
["Воронеж","394006, г. Воронеж, ул. Кирова, д.11","0733","MOJZ"]
["Воронеж","394088, г. Воронеж, ул. Генерала Лизюкова, д. 50","1050","MOL2"]
["Воронеж","394053, г. Воронеж, ул. Загоровского, д. 1","1147","MO6W"]
["Воронеж","394007, г. Воронеж, Ленинский пр-кт, д. 116А","1169","MO7T"]
["Воскресенск","140200, г. Воскресенск, ул. Октябрьская, д. 2","1806","MABP"]
["Воткинск","427433, г. Воткинск, ул. 1 Мая, д. 102","1728","MAGA"]
["Всеволожск","188640, г. Всеволожск, Всеволожский пр-кт, д. 29","1804","MABL"]
["Выборг","188800, г. Выборг, ул. Вокзальная, д. 7","1768","MAHJ"]
["Выкса","607061, г. Выкса, ул. Островского, зд. 33","1658","MAD2"]
["Вышний Волочек","171163, г. Вышний Волочек, пр-кт Казанский, д. 44","1813","MAB8"]
["Вязьма","215110, г. Вязьма, ул. 25 Октября, д. 4","1654","MADV"]
["Гатчина","188300, г. Гатчина, пр-кт 25 Октября, д. 11/13","1754","MAG3"]
["Геленджик","353460, г. Геленджик, ул. Херсонская, д. 23","8034","MAJK"]
["Георгиевск","357821, г. Георгиевск, ул. Салогубова, д. 16","8028","MAJE"]
["Глазов","427620, г. Глазов,ул. Кирова, д. 13","0874","MOGC"]
["Горно-Алтайск","649000, г. Горно-Алтайск, пр-кт Коммунистический, д.27","1616","MAB9"]
["ГРОЗНЫЙ","364024, г. Грозный, ул. им. С. Ш. Лорсанова, д.14","1836","MAMN"]
["Губкин","309181, г. Губкин, ул. Кирова, д. 53","1725","MAF4"]
["Гусь-Хрустальный","601501, г. Гусь-Хрустальный, ул. Калинина, д. 30","1762","MAHB"]
["Дзержинск","606029, г. Дзержинск, ул. Гайдара, д. 61","0753","MOHL"]
["Димитровград","433512, г. Димитровград, пр-кт. Ленина, зд. 39д","1177","MO9I"]
["Дмитров","141800, г. Дмитров, ул. Загорская, д. 24","1739","MAGM"]
["Долгопрудный","141700, г. Долгопрудный, Новый бульвар, д. 2","1525","MO76"]
["Домодедово","142000, г. Домодедово, Каширское шоссе, д. 51","1527","MO86"]
["Донецк","346330, г. Донецк, ул. Максима Горького, д. 67","8067","MAKL"]
["Донской","301764, г. Донской, ул. Октябрьская, д. 59а","1727","MAF9"]
["Дубна","141986, г. Дубна, пр-кт Боголюбова, д. 14А","1818","MACO"]
["Егорьевск","140301, г. Егорьевск, ул. Советская, д. 82А","1669","MAEE"]
["Ейск","353680, г. Ейск, ул. Победы, д. 78","8195","MAP4"]
["Екатеринбург","620014, г. Екатеринбург, ул. 8 Марта, д. 10/ ул. Малышева, д. 42 (литер А)","0482","MOUR"]
["Екатеринбург","620041, г. Екатеринбург, ул.Уральская д 75","0684","MOYO"]
["Екатеринбург","620144, г. Екатеринбург, ул. 8 марта, д. 194","0818","MOQV"]
["Екатеринбург","620086, г. Екатеринбург ул. Белореченская, д. 12а","0978","MOFP"]
["Екатеринбург","620000, г. Екатеринбург, ул. Кузнецова , д. 2","0981","MOFS"]
["Екатеринбург","620062, г. Екатеринбург, пр-кт Ленина, д. 60","0982","MOFU"]
["Екатеринбург","620012, г. Екатеринбург, ул.Машиностроителей, д. 19","0983","MORM"]
["Екатеринбург","620089, г. Екатеринбург, ул. Родонитовая, д. 4","0984","MORI"]
["Екатеринбург","620000, г. Екатеринбург ул. Сони Морозовой, д. 190","0986","MOFW"]
["Екатеринбург","620000, г. Екатеринбург, ул. Горького, стр. 7-а","0998","MORO"]
["Екатеринбург","620109, г. Екатеринбург, ул. Крауля, 44","1097","MO2P"]
["Екатеринбург","620105, г. Екатеринбург, ул. Вильгельма деГеннина, д. 31","1163","MO96"]
["Елабуга","423603, г. Елабуга, пр-кт Нефтяников, д. 17","1682","MAER"]
["Елец","399770, г. Елец,улица Мира, д. 133","1192","MAAV"]
["Ессентуки","357601, г. Ессентуки,  Привокзальная площадь, пом. 1к","1624","MACI"]
["Железногорск","662971, г. Железногорск, ул. Свердлова, д. 21","0880","MOBI"]
["Железногорск","307179, г. Железногорск, ул. Воинов-интернационалистов, д. 6","1672","MAEI"]
["Жуковский","140184, г. Жуковский, ул. Гагарина, д. 24","1529","MO99"]
["Заречный","442963, г. Заречный, ул. Ленина, д. 20А","8015","MAIZ"]
["Зеленогорск","663693, г. Зеленогорск, ул. Ленина, д. 2","8084","MAK7"]
["Зеленодольск","422550, г. Зеленодольск, ул. Ленина, д. 25","1696","MAE8"]
["Златоуст","456228, г. Златоуст, пр. им. Ю.А. Гагарина, 3 м/р-н, д. 14-в","1005","MOD2"]
["Иваново","153000, г. Иваново, пр-кт Ленина, 11","1146","MO6T"]
["Иваново","153038, г. Иваново, пр-кт Строителей, д. 25","8190","MAPC"]
["Ижевск","426008, г. Ижевск, ул. Пушкинская д. 216","0736","MOJT"]
["Ижевск","426004, г. Ижевск, ул. Ленина, д. 21","0804","MODH"]
["Ижевск","426073, г. Ижевск, ул. Молодежная,д. 87","0869","MOIJ"]
["Иркутск","664074, г. Иркутск  ул. Лермонтова, д. 63","0741","MOHK"]
["Иркутск","664003, г. Иркутск ул. Ленина  д. 25","0865","MOAY"]
["Иркутск","664003, г. Иркутск,  ул. Литвинова  д. 2","0891","MODV"]
["Иркутск","664022, г. Иркутск, ул. Кожова, д. 20","0991","MORK"]
["Искитим","633209, г. Искитим, ул. Пушкина, д. 40А","1633","MACY"]
["Истра","143500, г. Истра, ул. Ленина, д. 75","8047","MAJX"]
["Ишим","627754, г. Ишим,ул. Карла Маркса, д. 77А","1703","MAFF"]
["Йошкар-Ола","424008, г. Йошкар-Ола, ул. Первомайская, д. 164","1006","MOD3"]
["Йошкар-Ола","424033, г. Йошкар-Ола, ул. Эшкинина, д. 10д","8182","MAOU"]
["Казань","420061, г. Казань, ул. Николая Ершова, д. 29 \"Б\"","0705","MODA"]
["Казань","420107, г. Казань, ул. Островского, д. 103","0825","MOUN"]
["Казань","420126, г. Казань, пр-т Ямашева, д. 82","0843","MOAF"]
["Казань","420110, г. Казань, ул. Рихарда Зорге, д. 75","0848","MOAK"]
["Казань","420080, г. Казань, ул. Декабристовд.129","0885","MOVS"]
["Казань","420100, г. Казань, ул. Закиева, д. 1","1115","MO3S"]
["Калининград","236022, г. Калининград, площадь Победы, д. 4","0455","MOKB"]
["Калининград","236044, г. Калининград, б-р Л.Шевцовой, д. 1А","0732","MOOX"]
["Калининград","236006, г. Калининград, ул Шевченко, д. 11а","0836","MOPZ"]
["Калининград","236041, г. Калининград , ул. Куйбышева, д. 2","1533","MOE0"]
["Калининград","236001, г. Калининград, ул. Генерала Челнокова, д. 11","8164","MAN8"]
["Калуга","248023, г. Калуга, пл. Победы, д. 15","0672","MOC2"]
["Калуга","248001, г. Калуга, ул. Кирова, д. 14","1140","MO6A"]
["Каменск-Уральский","623400, г. Каменск-Уральский, пр-кт Победы, д. 39а","0990","MOFZ"]
["Каменск-Шахтинский","347810, г. Каменск-Шахтинский, пр-кт Карла Маркса,д. 73","1667","MAEC"]
["Камышин","403873, г. Камышин, ул. Пролетарская, д. 101","1657","MADZ"]
["Канск","663604, г. Канск, ул. 40 лет Октября, зд. 62, стр.4","1802","MABF"]
["Кемерово","650991, г. Кемерово, пр-кт Советский, д. 32","0838","MOAA"]
["Кемерово","650003, г. Кемерово, бр. Строителей, д. 28, лит. А","0960","MORU"]
["Кемерово","650066, г. Кемерово, пр-кт Ленина, д. 64а","0999","MONB"]
["Кингисепп","188480, г. Кингисепп, ул. Большая Советская, д.39Б","8123","MAMM"]
["Кинешма","155800, г. Кинешма, ул. им. Ленина, д. 6","1665","MAEA"]
["Кириши","187112, г. Кириши, пр-кт Героев, д. 2","8074","MAKV"]
["Киров","610027, г. Киров,ул. Карла Маркса, д. 99","0763","MOB6"]
["Киров","610045, г. Киров, ул. Маршала И. С. Конева, д. 1","1839","MANY"]
["Кирово-Чепецк","613050, г. Кирово-Чепецк, пр-кт Мира, д. 74","1635","MAC3"]
["Кировск","187342, г. Кировск, ул. Набережная, д. 6","8110","MAL7"]
["Киселевск","652700, г. Киселевск, ул. Ленина, д. 38","1692","MAE4"]
["Кисловодск","357700, г. Кисловодск, ул. Горького, д. 17Б","1612","MABV"]
["Клин","141607, г. Клин, ул. К. Маркса, д. 4","1659","MAD3"]
["Клинцы","243140, г. Клинцы, пр-кт Ленина, д. 21","1197","MAA3"]
["Ковров","601900, г. Ковров, пр-кт Ленина, д. 38","1542","MO9H"]
["Когалым","628484, г. Когалым, ул. Ленинградская, д. 17","1826","MADU"]
["Коломна","140408, г. Коломна, пл. Восстания, д. 7","1622","MACG"]
["Колпино","196655, г. Санкт-Петербург, г. Колпино, ул. Тверская, д. 34, лит. А","1820","MACS"]
["Коммунарка","108801, г. Москва, пос. Коммунарка,ул. Липовый парк, д. 11","1729","MAGB"]
["Комсомольск-на-Амуре","681013, г. Комсомольск-на-Амуре, пр-кт Ленина, д. 13, пом. 1002","0690","MOXI"]
["Копейск","456618, г. Копейск, пр-кт Коммунистический, д. 28","1621","MACF"]
["Королев","141080, г. Королев, пр. Космонавтов, д.  27б","0613","MOTE"]
["Кострома","156000, г. Кострома, ул. Советская, д. 30","1165","MO98"]
["Кострома","156013, г. Кострома, пр-кт Мира, д. 65/51","8181","MAOT"]
["Котельники","140056, г. Котельники, ул. Сосновая, д. 2, корп. 4","8018","MAI4"]
["Котлас","165313, г. Котлас, ул. Невского, д. 20","1634","MACZ"]
["Красногорск","143409, г. Красногорск, ул. Ленина, д. 38Б","0626","MOHG"]
["Краснодар","350000, г. Краснодар, ул Красная, д. 124, литер `Б`","0480","MOKD"]
["Краснодар","350075, г. Краснодар, ул.Селезнева, д.134","0688","MOWI"]
["Краснодар","350015, г. Краснодар, ул. Красная, д. 176/1","0725","MOZY"]
["Краснодар","350049, г. Краснодар, ул. Тургенева, д. 107 лит А","0807","MOIP"]
["Краснодар","350001, г. Краснодар, ул. Ставропольская, д. 184","0808","MOIR"]
["Краснодар","350901, г. Краснодар, ул. 1 Мая, д. 158","1052","MON7"]
["Краснодар","350051, г. Краснодар,ул. Красных Партизан, д. 525","1080","MOW4"]
["Краснокаменск","674676, г. Краснокаменск, пр-кт Шахтеров, д. 4а","1705","MAFI"]
["Краснокамск","617060, г. Краснокамск, пр-кт Мира, д. 6","1623","MACH"]
["Краснотурьинск","624440, г. Краснотурьинск, ул. Ленина, д. 37","1792","MAH9"]
["Красноярск","660017, г. Красноярск, ул. Горького, д. 10","0456","MOKY"]
["Красноярск","660049, г. Красноярск, ул. Мира, д. 10","0776","MORR"]
["Красноярск","660037, г. Красноярск, пр-кт им. газеты \"Красноярский рабочий\", д.35","0862","MOAW"]
["Красноярск","660041, г. Красноярск, ул. Высотная, д.1","0882","MOBZ"]
["Красноярск","660135, г. Красноярск, ул. Взлётная, 18","0887","MOBO"]
["Красноярск","660077, г. Красноярск, просп. им. газеты \"Красноярский рабочий\", д. 199","0889","MOCG"]
["Красноярск","660001, г. Красноярск, ул. Копылова, д. 66","1139","MO5Y"]
["Кропоткин","352380, г. Кропоткин, ул. Красная, д. 96","1714","MAFR"]
["Крымск","353380, г. Крымск, ул. Синева, д. 9Б","1723","MAF2"]
["Кстово","607651, г. Кстово, ул. 40 лет Октября, д. 4","1602","MABB"]
["Кудрово","188693, г. Кудрово, Европейский пр-кт, д. 8","8022","MAI8"]
["Кузнецк","442530, г. Кузнецк, ул. Белинского, д. 127/1","1613","MABW"]
["Кумертау","453300, г. Кумертау, ул. Карла Маркса, д. 11","1685","MAEV"]
["Кунгур","617470, г. Кунгур, ул. Пугачева, д. 25","1676","MAEL"]
["Курган","640002, г. Курган, ул. Гоголя, д. 17/1","0694","MOXC"]
["Курган","640002, г. Курган, ул. Гоголя, д 39Б","0851","MOAQ"]
["Курск","305029, г. Курск, ул. Карла Маркса, д. 59А","1042","MOJ3"]
["Курск","305000, г. Курск,ул. Ленина, д. 31, пом. 1б","1130","MO4U"]
["Курск","305040, г. Курск,ул. Студенческая, д. 3","1543","MAMT"]
["Курчатов","307250, г. Курчатов, ул. Садовая, д. 11А","1793","MAIA"]
["Кызыл","667000, г. Кызыл,ул. Ленина, д. 24","8173","MAOJ"]
["Лабинск","352500, г. Лабинск, ул. Халтурина, д. 18","1794","MAIB"]
["Лениногорск","423250, г. Лениногорск, пр-кт 50 лет Победы, зд.11А","1822","MAC7"]
["Ленинск-Кузнецкий","652500, г. Ленинск-Кузнецкий, проспект Кирова, д.49","1188","MAAN"]
["Лесной","624205, г. Лесной, ул. Ленина, д. 64","8114","MAMB"]
["Лесосибирск","662547, г. Лесосибирск, 5-й микрорайон, д. 26","1810","MAB4"]
["Ливны","303850, г. Ливны, ул. Максима Горького, д. 2","1619","MACC"]
["Липецк","398043, г. Липецк, ул. Космонавтов, д. 16/1","0726","MOYM"]
["Липецк","398059, г. Липецк, ул. Барышева д. 7","0798","MOZM"]
["Липецк","398024, г. Липецк, пр-кт Победы,д. 20","0841","MOLS"]
["Липецк","398046, г. Липецк, ул. Им. Генерала Меркулова, д. 10А, пом.1","1127","MO4O"]
["Липецк","398027, г. Липецк, ул. Героя России Эдуарда Белана, д. 10а","8191","MAPD"]
["Лиски","397901, г. Лиски, ул. Коммунистическая, д. 36","8019","MAI5"]
["Лобня","141730, г. Лобня, ул. Ленина, д. 16","1639","MADA"]
["Лысьва","618900, г. Лысьва, ул. Мира, д. 11","1715","MAFS"]
["Лыткарино","140080, г. Лыткарино, ул. Парковая, стр. 2","8113","MAMA"]
["Люберцы","140000, г. Люберцы, Октябрьский пр-кт, д.151/9","0639","MOQL"]
["Магадан","685000, г. Магадан, пр-кт Карла Маркса, д. 36/20","1638","MAC9"]
["Магнитогорск","455000, г. Магнитогорск, пр-кт Ленина, д. 51","0961","MOFA"]
["Магнитогорск","455037, г. Магнитогорск, пр-т Ленина, д. 90","0989","MOFY"]
["Магнитогорск","455045, г. Магнитогорск, пр. Карла Маркса, д.179а","1132","MO4Y"]
["Майкоп","385000, г. Майкоп, ул. Жуковского, д. 20А/ ул. Советская, д. 199","1814","MACD"]
["Махачкала","367026, г. Махачкала, пр-кт Имама Шамиля, д. 36К","1808","MABX"]
["Мегион","628681, г. Мегион, ул.Нефтеразведочная, д. 2","0884","MOMN"]
["Междуреченск","652870, г. Междуреченск, Коммунистический пр-кт,д. 18","1636","MAC4"]
["Мелеуз","453856, г. Мелеуз, ул. Ленина, д. 133","1673","MAD7"]
["Миасс","456300, г. Миасс, пр. Автозаводцев, д. 61 Б","0696","MOXB"]
["Минеральные Воды","357207, г. Минеральные Воды, пр-кт 22 Партсъезда,влд. 94/1","1769","MAHK"]
["Минусинск","662606, г. Минусинск, ул. Абаканская, д. 48","1770","MAHL"]
["Михайловка","403343, г. Михайловка, ул. Обороны, д. 44/53","1628","MACT"]
["Михайловск","356240, г. Михайловск, ул. Войкова, д. 454/1","1740","MAGN"]
["Мичуринск","393760, г. Мичуринск, ул. Советская, д. 323","1620","MACE"]
["Москва","111396, г. Москва, пр-кт Свободный, д. 20А","0404","MOOG"]
["Москва","119021, г. Москва, пр-кт  Комсомольский, д. 24 , стр. 1","0405","MOMS"]
["Москва","123022, г. Москва, ул.ПресненскийВал, д. 7, стр. 1","0410","MOPV"]
["Москва","107113, г. Москва, ул.Русаковская, д. 29","0414","MOSK"]
["Москва","107031, г. Москва, ул. Неглинная, д. 10","0417","MOKN"]
["Москва","105066, г. Москва, ул. Нижняя Красносельская, д. 45/17","0419","MOKR"]
["Москва","127030, г. Москва,  ул. Новослободская, д. 23","0420","MONV"]
["Москва","119019, г. Москва, ул. Арбат, д. 4, стр. 1","0422","MOAB"]
["Москва","129085, г. Москва, пр-т Мира, д. 91, корп. 2","0423","MOAL"]
["Москва","115035, г. Москва, ул. Большая Ордынка, д. 21, стр. 2","0426","MOTR"]
["Москва","129090, г. Москва, пр-кт. Мира, д. 42","0427","MOOL"]
["Москва","121165, г. Москва, Кутузовский пр-кт, д. 30/32","0428","MOKS"]
["Москва","115191, г. Москва, ул.Большая Тульская, д.2","0430","MOBT"]
["Москва","117556, г. Москва, ш. Варшавское., д. 76, корп. 1","0433","MOWR"]
["Москва","109462, г. Москва, ул. Маршала Чуйкова, д. 3","0436","MOKU"]
["Москва","119421, г. Москва, Ленинский проспект, д. 99","0437","MOLE"]
["Москва","105120, г. Москва, ул. Земляной Вал, д. 41, стр. 1","0440","MOLY"]
["Москва","109652, г. Москва, ул. Люблинская, д. 165, корп. 1","0444","MOMQ"]
["Москва","125315, г. Москва, пр-кт Ленинградский, д. 74, к. 1","0450","MOBA"]
["Москва","125565, г. Москва, ул.Фестивальная, д. 13, корп.1","0600","MODI"]
["Москва","119192, г. Москва, пр-кт  Мичуринский, д.7","0603","MOSH"]
["Москва","125430, г. Москва, ул. Митинская, д. 36, корп. 1","0605","MOMT"]
["Москва","119571, г. Москва, пр-кт Вернадского , д.119","0610","MOES"]
["Москва","117437, г. Москва, ул. Профсоюзная, д. 104","0612","MOLV"]
["Москва","127015, г. Москва, ул. Бутырская, д. 89","0616","MOMW"]
["Москва","121609, г. Москва, Осенний бульвар, д. 7, корп. 1","0617","MORW"]
["Москва","119311, г. Москва, пр-кт Ломоносовский, д. 25 к.1","0619","MOGY"]
["Москва","123007, г. Москва, ш. Хорошевское, д. 35, корп. 1","0621","MOXR"]
["Москва","123182, г. Москва, ул. Авиационная, д. 66","0625","MOTJ"]
["Москва","127349, г. Москва, ул. Лескова, д. 3Г","0627","MOHH"]
["Москва","117218, г. Москва, ул. Профсоюзная, д. 13/12","0628","MOYB"]
["Москва","109145, г. Москва, Лермонтовский пр-кт, д. 10, корп. 1","0630","MOJI"]
["Москва","124683, г. Москва, Зеленоград, корп. 1824","0631","MOJW"]
["Москва","117639, г. Москва, ул. Чертановская, д.1В, корп. 1","0633","MOZT"]
["Москва","119121, г. Москва, пл. Смоленская-Сенная, д. 27, стр.1","0635","MOYH"]
["Москва","125363, г. Москва, б-р Яна Райниса, д. 1","0636","MOYY"]
["Москва","115470, г. Москва, пр-кт Андропова, д. 21","0637","MOQH"]
["Москва","115280, г. Москва, ул. Автозаводская, д. 5","0638","MOQI"]
["Москва","115516, г.Москва, ул.Луганская, д.10","0642","MOXE"]
["Москва","127566, г. Москва, ул. Декабристов, д. 17","0643","MOWD"]
["Москва","117216, г. Москва, б-р Дмитрия Донского, д. 11","0644","MOWF"]
["Москва","117519, г. Москва, ул. Красного Маяка, д. 2Б","0645","MOXJ"]
["Москва","127434, г. Москва, ш. Дмитровское, д. 15, корпус 1","0646","MOWK"]
["Москва","125171, г. Москва, ш. Ленинградское, д. 15","0651","MOA7"]
["Москва","109044, г. Москва, 3-й Крутицкий переулок, д. 13","0654","MOJ8"]
["Москва","108811, г. Москва, п Московский, ш.Киевское  22-й км, вл.4, стр.1","0655","MON4"]
["Москва","107078, г. Москва,  ул. Каланчевская, д. 27","0660","MOT3"]
["Москва","109341, г. Москва, ул. Перерва, д. 43, корп. 1","0661","MOT7"]
["Москва","115054, г. Москва, ул. Валовая, д. 6","0663","MOW2"]
["Москва","117042, г. Москва, улица Венёвская, д. 6","0664","MOE1"]
["Москва","107241, г. Москва, ул. Уральская, д. 1","0669","MOY5"]
["Москва","108849, г. Москва, пос. Внуковское,ул. Корнея Чуковского, д. 2","1187","MAAL"]
["Москва","121552, г. Москва, ул. Ярцевская, д. 27, корп. 1","1512","MO52"]
["Москва","111674, г. Москва, ул. Покровская,д. 20","1513","MO3Y"]
["Москва","105043, г. Москва, ул. 9-я Парковая, д. 23","1515","MO4B"]
["Москва","125466, г. Москва, ул. Воротынская,д. 2","1516","MO4C"]
["Москва","115583, г. Москва, ул. Генерала Белова, д. 35","1520","MO4L"]
["Москва","129327, г. Москва, ул. Менжинского, д. 23 корп.1","1521","MO4M"]
["Москва","123104, г. Москва, ул. Малая Бронная д.15 Б","1523","MO5D"]
["Москва","125375, г. Москва, ул. Тверская, д.28, корп. 1","1537","MO7Y"]
["Москва","125252, г. Москва, ул. Авиаконструктора Микояна, д. 12","1598","MO23"]
["Москва","109544, г. Москва, б-р Энтузиастов,д. 2","1599","MO2L"]
["Москва","127282, г. Москва, ул. Грекова, д.3, корп. 3","1609","MABQ"]
["Москва","123060, г. Москва, ул. Народного Ополчения, д. 45","1801","MABD"]
["Москва","123112, г. Москва, Пресненская наб., д. 2","1838","MANP"]
["Москва","109386, г. Москва, ул. Совхозная, д. 39","8124","MAMO"]
["Москва","115432, г. Москва, пр-кт Андропова, д.18, корп.6","0658","MOT0"]
["Москва","117588, г. Москва, пр-кт Новоясеневский, д. 7","1504","MO2O"]
["Московский","108811, г. Москва, г. Московский, ул. Никитина, д. 2","8094","MALK"]
["Мурино","188677, г. Мурино, б-р Менделеева, д. 11, корп.1","1800","MAA6"]
["Мурманск","183038, г. Мурманск, пр-кт Ленина, д. 82","0445","MOMO"]
["Мурманск","183038, г. Мурманск, пр-кт Ленина, д. 19А","0823","MOMU"]
["Мурманск","183052, г. Мурманск, пр-кт Кольский, д. 158","1066","MOP8"]
["Муром","602267, г. Муром, ул. Московская, д. 47","1189","MAAQ"]
["Мытищи","141006, г. Мытищи, пр-кт Олимпийский, д.19, корп.1","0622","MOMX"]
["Мытищи","141008, г. Мытищи,ул. Мира, д. 26А","0665","MOX2"]
["Набережные Челны","423831, г. Набережные Челны, просп. Хасана Туфана, д. 29б","0749","MONH"]
["Набережные Челны","423812, г. Набережные Челны, пр-кт Мира, д.24М","0853","MONC"]
["Набережные Челны","423803, г. Набережные Челны, Набережночелнинскийпр-кт, д. 7","8104","MALY"]
["Назрань","386102, г. Назрань, ул. Московская, д. 28","8131","MAMY"]
["Нальчик","360051, г. Нальчик, пр-кт Шогенцукова, д. 21","8121","MAMK"]
["Наро-Фоминск","143300, г. Наро-Фоминск, пл. Свободы, д. 2","1632","MACX"]
["Находка","692914, г. Находка, пр-кт Северный, д.2, корпус 1","0877","MONR"]
["Невинномысск","357100, г. Невинномысск, ул. Гагарина, д. 70Б","1198","MAA5"]
["Нерюнгри","678967, г. Нерюнгри, пр-кт Ленина, д. 6","8003","MAIL"]
["Нефтекамск","452680, г. Нефтекамск, улица Ленина,д. 19Е","1159","MO92"]
["Нефтеюганск","628306, г. Нефтеюганск, 15 микрорайон, 8б","1161","MO94"]
["Нижневартовск","628606, г. Нижневартовск, пр-т Победы, д. 11","0465","MOMI"]
["Нижневартовск","628611, г. Нижневартовск, ул.Ленина, д. 17а","0708","MODE"]
["Нижнекамск","423571, г. Нижнекамск, пр-кт Мира, д. 61Г","1149","MO75"]
["Нижний Новгород","603024, г. Нижний Новгород, ул. Белинского , д.61, корп.2","0483","MONN"]
["Нижний Новгород","603002, г. Нижний Новгород, ул. Фильченкова, д.10","0740","MOHQ"]
["Нижний Новгород","603135, г. Нижний Новгород, пр-кт Ленина, д. 45","0790","MONA"]
["Нижний Новгород","603003, г. Нижний Новгород, ул. Коминтерна, д. 164, пом. П5.","0831","MOSM"]
["Нижний Новгород","603035, г. Нижний Новгород, ул. Горького Максима, д. 140","0835","MOGO"]
["Нижний Новгород","603004, г. Нижний Новгород, пр-кт Ленина, д. 100Д, пом. П8","1117","MO3U"]
["Нижний Тагил","622034, г. Нижний Тагил, пр-кт Ленина, д. 61","0964","MONT"]
["Нижний Тагил","622007, г. Нижний Тагил, пр-кт Вагоностроителей, д. 13","0969","MOFH"]
["Новоалтайск","658087, г. Новоалтайск, ул. Октябрьская, д. 13","1780","MAHV"]
["Новокузнецк","654007, г. Новокузнецк, пр-кт Металлургов, д. 32","0693","MOXF"]
["Новокузнецк","654080, г. Новокузнецк, ул.Тольятти, д 44","0962","MOFC"]
["Новокузнецк","654007, г. Новокузнецк, пр-кт Н. С. Ермакова, зд.9А","8170","MAOG"]
["Новокуйбышевск","446200, г. Новокуйбышевск, ул. Миронова, д. 3","1195","MAAY"]
["Новомосковск","301650, г. Новомосковск, ул. Комсомольская/ул. Трудовые резервы, д.21/34, пом. 1-4, 6-11","1152","MO81"]
["Новороссийск","353905, г. Новороссийск, ул. Толстого, д. 2Г","0883","MOCA"]
["Новороссийск","353915, г. Новороссийск, пр-кт Дзержинского, д. 205 А","1110","MO53"]
["Новосибирск","630004, г. Новосибирск, ул. Ленина, д. 52","0481","MOSV"]
["Новосибирск","630082, г. Новосибирск, улица ДусиКовальчук, д. 179/4","0727","MOYJ"]
["Новосибирск","630073, г. Новосибирск, пр-кт Карла Маркса, д. 55","0797","MONQ"]
["Новосибирск","630099, г. Новосибирск, ул. Мичурина, д. 23.","0811","MOJN"]
["Новосибирск","630099, г. Новосибирск, ул. Орджоникидзе, д. 23","1099","MO2X"]
["Новосибирск","630078, г. Новосибирск, пл. Карла Маркса, д. 5.","1102","MO36"]
["Новосибирск","630089, г. Новосибирск, ул. Бориса Богаткова, д.201/1","1131","MO4V"]
["Новосибирск","630090, г. Новосибирск, ул. Ильича, д.6","1137","MO5V"]
["Новосибирск","630102, г. Новосибирск, ул. Кирова,д. 46/1","1145","MO6N"]
["Новосибирск","630054, г. Новосибирск, ул. Титова, зд. 22а","1837","MAM8"]
["Новотроицк","462353, г. Новотроицк, ул. Советская, д. 52","0828","MONO"]
["Новоуральск","624132, г. Новоуральск, ул. Комсомольская, зд. 6А","1653","MADT"]
["Новочебоксарск","429965, г. Новочебоксарск, ул. Советская, д. 15","1180","MO9W"]
["Новочеркасск","346400, г.Новочеркасск, ул.Московская, 1/пр. Платовский, д. 90","0719","MOWT"]
["Новошахтинск","346918, г. Новошахтинск, пр-кт Ленина, д. 5а","1689","MAEZ"]
["Новый Уренгой","629303, г. Новый Уренгой, мкр. Мирный, д. 6, корп. 2","8103","MALX"]
["Ногинск","142400, г. Ногинск, ул. 3-го Интернационала, д. 62","1528","MO7N"]
["Ноябрьск","629807, г. Ноябрьск, пр-кт Мира, д. 56","8097","MALR"]
["Нягань","628181, г. Нягань, мкр. 1-й, д.1","1815","MACJ"]
["Обнинск","249039, г. Обнинск, пр-кт Маркса, д. 50","1807","MABT"]
["Одинцово","143005, г. Одинцово, ш. Можайское, д. 76А","0614","MOOD"]
["Октябрьский","452614, г. Октябрьский, пр-кт Ленина, д. 5","1160","MO93"]
["Омск","644024, г. Омск, ул. Маршала Жукова угол ул. 10 Лет Октября, д. 25","0447","MOKJ"]
["Омск","644021, г. Омск, ул. Богдана Хмельницкого, д. 162","0720","MOWP"]
["Омск","644074, г. Омск, ул. 70 лет Октября, д. 13/3","0743","MOOJ"]
["Омск","644043, г. Омск, ул. Красный Путь, д. 61","0778","MOUK"]
["Омск","644029, г. Омск, пр-кт  Мира, д. 54","0815","MOJR"]
["Омск","644010, г. Омск, пр-кт Маркса,д. 10","0873","MOOU"]
["Омск","644020, г. Омск, пр-кт Карла Маркса, д. 84","8159","MAN3"]
["Орел","302030, г. Орел,ул. Московская, д. 28","8183","MAOX"]
["Орёл","302026, г. Орел,ул. Комсомольская, д. 78","1164","MO97"]
["Оренбург","460024, г. Оренбург, ул.Маршала Жукова, д. 26","0461","MORE"]
["Оренбург","460058, г. Оренбург, ул. Чкалова, д. 35/1","0791","MOOP"]
["Оренбург","460052, г. Оренбург, ул. Салмышская, д.37","1119","MO3W"]
["Орехово-Зуево","142600, г. Орехово-Зуево, ул. Ленина, д. 53","1191","MAAS"]
["Орск","462431, г. Орск, пр-кт Ленина, д. 78","0850","MOOS"]
["Павлово","606100, г. Павлово, ул. Красноармейская, д. 33,стр. 1","1614","MAB3"]
["Павловский Посад","142500, г. Павловский Посад, ул. Большая Покровская, д. 10","1675","MAEK"]
["Пенза","440000, г. Пенза, ул. Московская, д. 73","0746","MOZB"]
["Пенза","440008, г. Пенза, ул. Суворова, д. 139","1144","MO6L"]
["Пенза","440062, г. Пенза, пр-кт Строителей, д. 40","8125","MAMQ"]
["Первоуральск","623104, г. Первоуральск, ул. Ватутина, д. 37","0970","MOFI"]
["Пермь","614066, г. Пермь,улица Мира, д. 70","0724","MOGB"]
["Пермь","614000, г. Пермь,ул. Ленина, д. 66","0803","MODG"]
["Пермь","614077, г. Пермь, бульвар Гагарина, д. 67","0834","MOPA"]
["Пермь","614039, г. Пермь, Комсомольский пр-кт, 49","0845","MOAH"]
["Пермь","614000, г. Пермь, ул.Советская, д.45","0994","MOGE"]
["Пермь","614113, г. Пермь, ул. Автозаводская, д. 44а","1051","MOL9"]
["Петергоф","198510, г. Санкт-Петербург, г. Петергоф, пр-кт Санкт-Петербургский, д.29","1706","MAFJ"]
["Петрозаводск","185035, г. Петрозаводск, пр-т Ленина, д. 26","0712","MOWX"]
["Петрозаводск","185014, г. Петрозаводск, ш. Лососинское, д. 26","1073","MOM4"]
["Петропавловск-Камчатский","683024, г. Петропавловск-Камчатский, пр-кт 50 лет Октября, д. 24а","1819","MACR"]
["Подольск","142100, г. Подольск, ул. Рабочая, д. 4","0624","MOLX"]
["Подольск","142118, г. Подольск, ул. Академика Доллежаля, д. 3, стр. 2","8175","MAOL"]
["Прокопьевск","653039, г. Прокопьевск, ул. Шишкина, д. 11","0687","MOXM"]
["Псков","180004, г. Псков, ул.Яна Фабрициуса, д. 27, пом. 1005","0689","MOXL"]
["Псков","180007, г. Псков, пр-т Рижский, д.16","1065","MOP7"]
["Пушкин","196608, г. Санкт-Петербург, г. Пушкин, ул. Ленинградская, д. 29","1733","MAGF"]
["Пушкино","141207, г. Пушкино, Московский проспект, д. 9/2","1538","MO8L"]
["Пятигорск","357500, г. Пятигорск, ул. Октябрьская, д. 1","1172","MO8S"]
["Раменское","140108, г. Раменское, ул. Михалевича, д. 1а","1182","MAAC"]
["Ревда","623286, г. Ревда, ул. Максима Горького, д. 30","1795","MAIC"]
["Реутов","143965, г. Реутов, ш. Носовихинское , д. 7","0648","MOXT"]
["Ржев","172390, г. Ржев,ул. Ленина, д. 7","1827","MADX"]
["Россошь","396658, г. Россошь, пр-кт Труда, д. 4б","1604","MABI"]
["Ростов-на-Дону","344002, г. Ростов-на-Дону, ул. Темерницкая, д. 80/31/81","0441","MORT"]
["Ростов-на-Дону","344116, г. Ростов-на-Дону, Пролетарский р-н,ул. 20-я линия, д. 4/3/13","0744","MOHT"]
["Ростов-на-Дону","344010, г. Ростов-на-Дону, ул.Красноармейская, д. 170","0832","MOYU"]
["Ростов-на-Дону","344091, г. Ростов-на-Дону, пр. Коммунистический, д.27","0837","MOSD"]
["Ростов-на-Дону","344092, г. Ростов-На-Дону, пр-кт Космонавтов,д. 15","0857","MORD"]
["Ростов-на-Дону","344002, г. Ростов-на-Дону, пр. Буденновский, д.42/50","0868","MOBU"]
["Ростов-на-Дону","344113, г. Ростов-на-Дону, пр-кт Королева, д. 14а","1126","MO4G"]
["Рубцовск","658210, г. Рубцовск, пр-кт Ленина, д. 46","1626","MACP"]
["Рыбинск","152903, г. Рыбинск, ул. Кирова, д. 18","1532","MOD1"]
["Рязань","390023, г. Рязань, ул.Ленина, д. 9","0748","MOHO"]
["Рязань","390013, г. Рязань, Первомайский пр-кт, д. 39/2","1122","MO4D"]
["Салават","453260, г. Салават, б-р Космонавтов, д. 13","1193","MAAW"]
["Салехард","629004, г. Салехард, ул. Мира, д. 2","1809","MAB2"]
["Сальск","347630, г. Сальск, ул. Пушкина, д. 15","8085","MAK9"]
["Самара","443013, г. Самара, ул. Мичурина, д. 19В","0471","MOS1"]
["Самара","443080, г. Самара, шоссе Московское, д. 47","0677","MOA0"]
["Самара","443087, г. Самара, пр-кт Кирова, д. 228, ул. Стара-Загора, д. 126","0734","MOJY"]
["Самара","443009, г. Самара, ул. Победы, д. 101","0742","MOUJ"]
["Самара","443041, г. Самара, ул. Агибалова, д.76","0800","MOCS"]
["Самара","443045, г. Самара, ул. Гагарина, д. 64","0870","MOAZ"]
["Санкт-Петербург","191186, г. Санкт-Петербург, Б.Конюшенная улица, д. 19/8. литА.24Н.25Н","0473","MOSP"]
["Санкт-Петербург","195196, г. Санкт-Петербург, Новочеркасский пр-т, д. 43/17","0475","MOSZ"]
["Санкт-Петербург","198097, г. Санкт-Петербург, пр-т Стачек, д. 47Е","0476","MOKK"]
["Санкт-Петербург","191040, г. Санкт-Петербург, Лиговский пр-т, д. 73А","0478","MOLI"]
["Санкт-Петербург","197022, г. Санкт-Петербург, Каменноостровский пр-кт, д. 41, литера А","0678","MOA3"]
["Санкт-Петербург","196105, г. Санкт-Петербург, Московский пр-кт, д. 172, лит. А","0679","MOA1"]
["Санкт-Петербург","193168, г. Санкт-Петербург, проспект Большевиков, д. 17, литера Ч","0681","MOXU"]
["Санкт-Петербург","192238, г. Санкт-Петербург, ул.Бухарестская, д. 74, кор. 3, лит. А","0710","MOQO"]
["Санкт-Петербург","191123, г. Санкт-Петербург, ул.Фурштатская, д. 40","0713","MOWW"]
["Санкт-Петербург","198216, г. Санкт-Петербург, пр-т Ленинский, д. 130/6, литер А","0715","MOWV"]
["Санкт-Петербург","193231, г. Санкт-Петербург, пр-т Большевиков д.2","0731","MOQA"]
["Санкт-Петербург","192131, г. Санкт-Петербург, ул. Ивановская, д. 6, литера А","0735","MOJX"]
["Санкт-Петербург","197348, г. Санкт-Петербург, Коломяжский пр-кт, д. 15, корпус 2, лит. А","0774","MOPW"]
["Санкт-Петербург","196233, г. Санкт-Петербург, пр-кт Витебский, д. 101, корп. 1, стр.1","0789","MOPQ"]
["Санкт-Петербург","194356, г. Санкт-Петербург, пр-кт Энгельса, д. 139/21, лит. А","0795","MOPH"]
["Санкт-Петербург","196066, г. Санкт-Петербург, Московский пр., д. 193, пом. 14Н,лит. А","0799","MOSE"]
["Санкт-Петербург","195267, г. Санкт-Петербург,пр-кт Просвещения, д. 84 корпус1, Литер А, пом. 50Н","0819","MOQW"]
["Санкт-Петербург","197371, г. Санкт-Петербург, пр-кт Комендантский, д. 13, корп. 1, лит. А","0866","MOPP"]
["Санкт-Петербург","199004, г. Санкт-Петербург, В.О. 7-ая линия, д.54, Лит. А, пом. 3Н","0890","MOCV"]
["Санкт-Петербург","195009, г. Санкт-Петербург, ул.Академика Лебедева, д.31, корп. 2,лит. А","0995","MOGF"]
["Санкт-Петербург","197374, г. Санкт-Петербург, ул. Савушкина, д. 127","1009","MOD8"]
["Санкт-Петербург","197110, г. Санкт-Петербург, пр-кт Дачный, д.17, к. 3","1056","MOO3"]
["Санкт-Петербург","195256, г. Санкт-Петербург, пр-кт Науки, д. 14к1","1067","MOQ3"]
["Санкт-Петербург","194021, г. Санкт-Петербург, просп.Тореза, д. 9, литера А","1166","MO7G"]
["Санкт-Петербург","192177, г. Санкт-Петербург, ул. Караваевская, д. 24, корп. 1, лит. А","8155","MANW"]
["Саранск","430005, г. Саранск, ул. Коммунистическая, д. 52","1010","MOD9"]
["Саранск","430027, г. Саранск, ул. Гагарина, д. 99Е","8184","MAO3"]
["Сарапул","427960, г. Сарапул, ул. Горького, д. 15а, стр.1","1720","MAFX"]
["Саратов","410012, г. Саратов, ул. им. Василия Люкшина, здание № 5","0829","MOIL"]
["Саратов","410041, г. Саратов, пр-кт Строителей, д. 19","1108","MO44"]
["Саратов","410012, г. Саратов, ул. Московская, д. 66","0772","MOTZ"]
["Саров","607183, г. Саров, ул. Московская, д. 3, стр. 1","8177","MAON"]
["Северодвинск","164504, г. Северодвинск, ул. Ломоносова, д. 64","0751","MOHS"]
["Североморск","184604, г. Североморск, ул. Сафонова, д. 13","1790","MAH7"]
["Северск","636000, г. Северск, пр-кт Коммунистический, д. 63","1760","MAG9"]
["Сергиев Посад","141310, г. Сергиев Посад, пр-кт Красной Армии, д.180","1526","MO83"]
["Серпухов","142203, г. Серпухов, ул. Ворошилова, д. 127","1531","MOC1"]
["Сибай","453833, г. Сибай, пр-кт Горняков, д. 22","8069","MAKN"]
["Славянск-на-Кубани","353560, г. Славянск-на-Кубани, ул. Ковтюха, д. 17","1695","MAE7"]
["Смоленск","214004, г. Смоленск, ул. Николаева, д. 8","1158","MO90"]
["Смоленск","214036, г. Смоленск, ул. Петра Алексеева, д. 1а","8187","MAO7"]
["Снежинск","456770, г. Снежинск, ул. Свердлова, д. 36","8106","MAL2"]
["Соликамск","618554, г. Соликамск, ул. 20-летия Победы, д. 119","1805","MABM"]
["Солнечногорск","141506, г. Солнечногорск, ул. Почтовая, стр. 9/2","1678","MAEN"]
["Сосновый Бор","188541, г. Сосновый Бор, ул. Солнечная, д. 12","0758","MOHR"]
["Сочи","354000, г. Сочи, ул. Конституции СССР, д.18","0729","MOYD"]
["Сочи","354000, г. Сочи, ул. Северная, д. 6","1143","MO6K"]
["Сочи","354340, г. Сочи, ул. Молокова, д. 18/78","1179","MO9M"]
["Сочи","354200, г. Сочи, ул. Калараша, д. 111А, корп. 1","8189","MAPB"]
["Сочи","354002, г. Сочи, ул. Учительская, д. 3","0802","MOCZ"]
["Ставрополь","355029, г. Ставрополь, ул.Ленина, д. 299","0779","MOTH"]
["Ставрополь","355035, г. Ставрополь, ул. Дзержинского, д. 114","1138","MO5X"]
["Ставрополь","355040, г. Ставрополь, ул. 50-лет ВЛКСМ, д. 11, к. 1","1607","MABN"]
["Старый Оскол","309512, г. Старый Оскол, мкр. Жукова, д. 48, помещение 6","1148","MO6Y"]
["Стерлитамак","453100, г. Стерлитамак, ул. Коммунистическая, д. 96","0756","MOLW"]
["Ступино","142802, г. Ступино, ул. Андропова, д. 63","1803","MABH"]
["Сургут","628406, г. Сургут, ул. Каролинского, д. 13","0937","MOSU"]
["Сургут","628416, г. Сургут, пр-т Ленина д.38","1094","MO2G"]
["Сызрань","446001, г. Сызрань, ул. Советская, д. 51","1011","MOE2"]
["Сызрань","446031, г. Сызрань, ул. 50 лет Октября, д. 54А","1637","MAC8"]
["Сыктывкар","167001, г. Сыктывкар, ул. Коммунистическая, д. 46","1829","MAEH"]
["Таганрог","347904, г. Таганрог, ул. Дзержинского/ул.Фрунзе, д.1/100","0714","MOQK"]
["Таганрог","347922, г. Таганрог, пер. 1-й Крепостной, д. 17","8108","MAL5"]
["Тамбов","392000, г. Тамбов, ул. Советская/Максима Горького,д. 104/14","1153","MO84"]
["Тверь","170100, г. Тверь, ул. Трехсвятская, д. 28","0682","MOXS"]
["Тверь","170100, г. Тверь, ул. Желябова, д. 3","1054","MON9"]
["Темрюк","353500, г. Темрюк, ул. Ленина, д. 68","1630","MACV"]
["Тимашевск","352700, г. Тимашевск, ул. Красная, д. 106","1694","MAE6"]
["Тихвин","187553, г. Тихвин, ул. Карла Маркса, д. 50","1751","MAGY"]
["Тихорецк","352120, г. Тихорецк, ул. Энгельса, д. 101","1641","MADC"]
["Тобольск","626158, г. Тобольск, 9-й микрорайон, д. 1","1184","MAAH"]
["Тольятти","445026, г. Тольятти, ул.Революционная, д.32","0817","MOQT"]
["Тольятти","445021, г. Тольятти, ул. Ленинградская, зд. 68В","0847","MOAJ"]
["Тольятти","445031, г. Тольятти, ул. Тополиная, д. 8а","1168","MO7J"]
["Томск","634034, г. Томск, ул.Красноармейская, д. 101а","0439","MOFT"]
["Томск","634009, г. Томск,пер. 1905 года, д. 14а","0716","MOWU"]
["Томск","634061, г. Томск, пр-кт Комсомольский, д. 53","1174","MO8U"]
["Томск","634049, г. Томск,тракт Иркутский, д. 26","8157","MANZ"]
["Трехгорный","456080, г. Трехгорный, ул. Мира, д. 12","8171","MAOH"]
["Троицк","457100, г. Троицк, ул. им. Ю.А. Гагарина, д. 41","1648","MADM"]
["Троицк","108842, г. Москва, г. Троицк, пл. Академическая, д. 5","1752","MAGZ"]
["Туапсе","352800, г. Туапсе, ул.С. Перовской, д. 2, пом. 21, 28-30","0898","MOTG"]
["Туймазы","452750, г.Туймазы, пр-кт Ленина, д. 10","1823","MADE"]
["Тула","300034, г. Тула, пр-кт Красноармейский, д. 27","0407","MOCK"]
["Тула","300041, г. Тула,просп. Ленина, д. 54а","1129","MO4T"]
["Тула","300041, г. Тула,ул. Советская,  д. 10","1141","MO6B"]
["Тюмень","625026, г. Тюмень, ул. Республики, д. 155","0468","MOTM"]
["Тюмень","625051, г. Тюмень,ул. Пермякова, д. 23а","0675","MOB5"]
["Тюмень","625000, г. Тюмень, ул. Ленина д. 57/2","0812","MOJO"]
["Тюмень","625048, г. Тюмень, ул. 50 лет","0966","MOTN"]
["Тюмень","625022, г. Тюмень,ул. Газовиков, д. 65/4","0674","MOB8"]
["Улан-Удэ","670000, г. Улан-Удэ, ул. Ленина, д. 35","1156","MO88"]
["Улан-Удэ","670031, г. Улан-Удэ, ул. Терешковой, д. 2","1833","MAKB"]
["Ульяновск","432011, г. Ульяновск, ул. Гончарова, д. 25","0711","MOWZ"]
["Ульяновск","432067, г. Ульяновск, Ульяновский пр-т, д.6","1118","MO3V"]
["Ульяновск","432045, г. Ульяновск, ул. Герасимова, д. 10","1133","MO5C"]
["Усинск","169710, г. Усинск,ул. Нефтяников, д. 50","8079","MAK2"]
["Усолье-Сибирское","665462, г. Усолье-Сибирское, ул. Орджоникидзе, зд.40","0897","MOER"]
["Уссурийск","692525, г. Уссурийск, ул. Пушкина  д.27","1048","MOK5"]
["Усть-Илимск","666683, г. Усть-Илимск, пр-кт Мира, д. 2","1681","MAEQ"]
["Усть-Лабинск","352330, г. Усть-Лабинск, ул. Октябрьская, д. 99","8002","MAIK"]
["Уфа","450075, г. Уфа, пр-кт.Октября, д. 107а","0671","MOC3"]
["Уфа","450077, г. Уфа, ул. Ленина, д. 32/1","0810","MOJM"]
["Уфа","450099, г. Уфа, ул. Жукова, д. 29","0826","MOPR"]
["Уфа","450044, г. Уфа, ул. Первомайская, д. 24","0844","MOAG"]
["Уфа","450009, г. Уфа, пр-кт Октября, д.6","0959","MOEZ"]
["Уфа","450106, г. Уфа, ул. Менделеева, д.130","1111","MO55"]
["Уфа","450039, г. Уфа, ул. Транспортная, д. 46","8122","MAML"]
["Ухта","169313, г. Ухта, пр-кт Ленина, д. 27","1796","MAIE"]
["Фрязино","141195, г. Фрязино, пр-кт Мира, д. 8","8076","MAKX"]
["Хабаровск","680000, г. Хабаровск, ул. Муравьева- Амурского, д. 36","0703","MOCW"]
["Хабаровск","680030, г. Хабаровск  ул. Ленина, д. 43","0773","MOHP"]
["Хабаровск","680051, г. Хабаровск, ул. Суворова, д. 32","1183","MAAE"]
["Ханты-Мансийск","628011, г. Ханты-Мансийск, ул.Энгельса, д. 3","1176","MO8Z"]
["Химки","141501, г. Химки,пр-кт Мельникова, д.2Б","0608","MOHI"]
["Чайковский","617760, г. Чайковский, ул. Мира, д. 19","1724","MAF3"]
["Чапаевск","446103, г. Чапаевск, ул. Запорожская, д. 18А","1797","MAIF"]
["Чебоксары","428000, г. Чебоксары, улица Карла Маркса, д. 51","0718","MOWQ"]
["Чебоксары","428003, г. Чебоксары,ул. Ярославская, д. 27","0899","MOEU"]
["Челябинск","454000, г. Челябинск, ул. Кирова, д. 108","0435","MOCH"]
["Челябинск","454080, г. Челябинск, пр-т Ленина, д. 73-а","0821","MOQS"]
["Челябинск","454014, г.Челябинск, ул.Молодогвардейцев, д.32 А","0822","MOEV"]
["Челябинск","454048, г. Челябинск, ул. Доватора, 35","0881","MOBW"]
["Челябинск","454003, г. Челябинск, ул. Чичерина, д.38 В","0968","MOFG"]
["Челябинск","454008, г. Челябинск, Комсомольский пр-т, д. 2а","0974","MOFM"]
["Челябинск","454091, г. Челябинск, ул.Свободы,д.82","0997","MOLO"]
["Черемхово","665412, г. Черемхово, ул. Первомайская, д. 160/Б","1686","MAEW"]
["Череповец","162602, г. Череповец, ул. Ленина, д. 68","1167","MO7H"]
["Черногорск","655158, г. Черногорск, ул. Юбилейная, д. 16","1816","MACK"]
["Черняховск","238150, г.Черняховск, ул. Ленина, д. 39","1693","MAE5"]
["Чехов","142300, г. Чехов, ул. Московская, вл. 96","1541","MO8N"]
["Чистополь","422981, г. Чистополь, ул. Ленина, д. 42Д","1758","MAG7"]
["Чита","672000, г. Чита, ул. Хабаровская, д. 6","1832","MAJ9"]
["Шадринск","641870, г. Шадринск, ул. Февральская, д. 54","1661","MAD5"]
["Шахты","346500, г. Шахты, пр-кт Победы Революции, д. 126","1150","MO78"]
["Шуя","155900, г. Шуя,ул. Ленина, д. 7, стр. 1","1781","MAHW"]
["Щекино","301245, г. Щекино, ул. Советская, д. 12Г","1629","MACU"]
["Щелково","141100, г. Щелково, Пролетарский пр-т, д.9","1536","MO7X"]
["Щербинка","108851, г. Москва, г. Щербинка, ул.40 лет Октября, д. 15/1","1824","MADF"]
["Электросталь","144000, г. Электросталь, ул. Советская, д. 14","1530","MO7P"]
["Элиста","358000, г. Элиста, ул. В. И. Ленина, д. 230","8105","MALZ"]
["Энгельс","413100, г. Энгельс, ул. Тельмана, д. 23","0747","MONF"]
["Южно-Сахалинск","693020, г. Южно-Сахалинск, ул. Ленина, д. 218","0846","MOAI"]
["Южно-Сахалинск","693008, г. Южно-Сахалинск, ул. Ленина, д. 287",8186,"MAO5"]
["Южноуральск","457040, г. Южноуральск, ул. Мира, д. 44","1701","MAFD"]
["Юрга","652050, г. Юрга, ул. Московская, д. 34А","0963","MOFD"]
["Якутск","677000, г. Якутск, пр-кт Ленина, д. 24","0752","MOHY"]
["Якутск","677000, г. Якутск, ул. Дзержинского, д. 27, корп. 1","8188","MAPA"]
["Ярославль","150000, г. Ярославль, ул. Свободы, д. 29","0702","MOCU"]
["Ярославль","150000, г. Ярославль, ул. Свободы, д. 2","0730","MOYC"]
["Ярославль","150045, г. Ярославль, Ленинградский пр-т, 52 А","1125","MO4F"]
["Ярославль","150030, г. Ярославль, Московский пр-кт, д. 125","1600","MAA4"]
["Ясный","462781, г. Ясный,ул. Ленина д. 9","0698","MOXA"]